Payment Date,Transaction Number,Net Amount,Supplier (Beneficiary) Name,Local Supplier Internal Reference,Directorate / Service Where Expenditure Incurred,Service Category Label,Service Category URI,SeRCOP Expenditure Category,SeRCOP Expenditure Code,Purpose of Spend,SeRCOP Detailed Expenditure Code,Capital/Revenue,Procurement Classification
19-MAY-2021,301,-7.99,AMAZON DIGITAL DWNLDS,386594,"Health, Education, Care and Safeguarding",Children's & Education Services,103,Supplies and Services,504,"Printing, Stationery and General Office Expenses",5026,Revenue,SUBSCRIPTIONS & PUBLICATIONS.BOOKS & PUBLICATIONS
19-MAY-2021,302,-22.48,NEW LOOK,382612,"Health, Education, Care and Safeguarding",Children's & Education Services,103,Third Party Payments,505,Other Establishments,5041,Revenue,CLOTHING.CHILDRENS & ADULTS
19-MAY-2021,302,9.16,NEW LOOK,382612,"Health, Education, Care and Safeguarding",Children's & Education Services,103,Third Party Payments,505,Other Establishments,5041,Revenue,CLOTHING.CHILDRENS & ADULTS
19-MAY-2021,302,10,NEW LOOK,382612,"Health, Education, Care and Safeguarding",Children's & Education Services,103,Supplies and Services,504,"Clothing, Uniforms and Laundry",5025,Revenue,CLOTHING.CHILDRENS & ADULTS
19-MAY-2021,7011461,145,GRAVEL MASTER,401451,"Environment, Housing & Leisure",Cultural & Related Services,104,Supplies and Services,504,Equipment,5023,Revenue,NON INFLUENCIBLE.NON INFLUENCIBLE
19-MAY-2021,7011462,197.95,DIVAN BED,401450,"Health, Education, Care and Safeguarding",Adult Social Care,101,Supplies and Services,504,"Printing, Stationery and General Office Expenses",5026,Revenue,NON INFLUENCIBLE.NON INFLUENCIBLE
19-MAY-2021,7011463,4.46,TEACHERS PAY TEACHERS,401432,"Health, Education, Care and Safeguarding",Children's & Education Services,103,Supplies and Services,504,Equipment,5023,Revenue,NON INFLUENCIBLE.NON INFLUENCIBLE
19-MAY-2021,7011464,30,MOIRA J FLORIST,401423,"Health, Education, Care and Safeguarding",Children's & Education Services,103,Supplies and Services,504,Miscellaneous Expenses,5034,Revenue,NON INFLUENCIBLE.INDIVIDUAL
19-MAY-2021,7011465,27.8,PERMAGARD,401422,Housing Property and Construction,Housing Services,108,Supplies and Services,504,Miscellaneous Expenses,5034,Revenue,NON INFLUENCIBLE.INDIVIDUAL
19-MAY-2021,7011466,24.16,VISUAL SIGNS LTD,401404,"Environment, Housing & Leisure",Cultural & Related Services,104,Supplies and Services,504,Equipment,5023,Revenue,NON INFLUENCIBLE.NON INFLUENCIBLE
19-MAY-2021,7011467,12.5,KATHY BRODIE,401403,"Health, Education, Care and Safeguarding",Children's & Education Services,103,Supplies and Services,504,Miscellaneous Expenses,5034,Revenue,NON INFLUENCIBLE.INDIVIDUAL
19-MAY-2021,7011468,20.87,ALTRO DIRECT,401402,Housing Property and Construction,Housing Services,108,Supplies and Services,504,Equipment,5023,Revenue,NON INFLUENCIBLE.NON INFLUENCIBLE
19-MAY-2021,7011469,43.32,UK COACHING SOLUTIONS,401401,Resources,Central Services,102,Employees,501,Indirect Employee Expenses,5002,Revenue,HUMAN RESOURCES.TRAINING & CONFERENCES
19-MAY-2021,7011470,-260,MALDRON HOTEL,401360,Housing Operations,Housing Revenue Account,N/A,Third Party Payments,505,Private Contractors,5042,Revenue,HUMAN RESOURCES.ACCOMMODATION
19-MAY-2021,7011470,61.9,MALDRON HOTEL,401360,Central Items,Planning Services ,110,Third Party Payments,505,Private Contractors,5042,Revenue,HUMAN RESOURCES.ACCOMMODATION
19-MAY-2021,7011470,61.9,MALDRON HOTEL,401360,Central Items,Planning Services ,110,Third Party Payments,505,Private Contractors,5042,Revenue,HUMAN RESOURCES.ACCOMMODATION
19-MAY-2021,7011470,61.9,MALDRON HOTEL,401360,Central Items,Planning Services ,110,Third Party Payments,505,Private Contractors,5042,Revenue,HUMAN RESOURCES.ACCOMMODATION
19-MAY-2021,7011470,61.9,MALDRON HOTEL,401360,Central Items,Planning Services ,110,Third Party Payments,505,Private Contractors,5042,Revenue,HUMAN RESOURCES.ACCOMMODATION
19-MAY-2021,7011470,61.9,MALDRON HOTEL,401360,Central Items,Planning Services ,110,Third Party Payments,505,Private Contractors,5042,Revenue,HUMAN RESOURCES.ACCOMMODATION
19-MAY-2021,7011470,61.9,MALDRON HOTEL,401360,Central Items,Planning Services ,110,Third Party Payments,505,Private Contractors,5042,Revenue,HUMAN RESOURCES.ACCOMMODATION
19-MAY-2021,7011470,61.9,MALDRON HOTEL,401360,Central Items,Planning Services ,110,Third Party Payments,505,Private Contractors,5042,Revenue,HUMAN RESOURCES.ACCOMMODATION
19-MAY-2021,7011470,61.9,MALDRON HOTEL,401360,Central Items,Planning Services ,110,Third Party Payments,505,Private Contractors,5042,Revenue,HUMAN RESOURCES.ACCOMMODATION
19-MAY-2021,7011470,61.9,MALDRON HOTEL,401360,Central Items,Planning Services ,110,Third Party Payments,505,Private Contractors,5042,Revenue,HUMAN RESOURCES.ACCOMMODATION
19-MAY-2021,7011470,61.9,MALDRON HOTEL,401360,Central Items,Planning Services ,110,Third Party Payments,505,Private Contractors,5042,Revenue,HUMAN RESOURCES.ACCOMMODATION
19-MAY-2021,7011470,61.9,MALDRON HOTEL,401360,Central Items,Planning Services ,110,Third Party Payments,505,Private Contractors,5042,Revenue,HUMAN RESOURCES.ACCOMMODATION
19-MAY-2021,7011470,61.9,MALDRON HOTEL,401360,Central Items,Planning Services ,110,Third Party Payments,505,Private Contractors,5042,Revenue,HUMAN RESOURCES.ACCOMMODATION
19-MAY-2021,7011470,61.9,MALDRON HOTEL,401360,Central Items,Planning Services ,110,Third Party Payments,505,Private Contractors,5042,Revenue,HUMAN RESOURCES.ACCOMMODATION
19-MAY-2021,7011470,61.9,MALDRON HOTEL,401360,Central Items,Planning Services ,110,Third Party Payments,505,Private Contractors,5042,Revenue,HUMAN RESOURCES.ACCOMMODATION
19-MAY-2021,7011470,61.9,MALDRON HOTEL,401360,Central Items,Planning Services ,110,Third Party Payments,505,Private Contractors,5042,Revenue,HUMAN RESOURCES.ACCOMMODATION
19-MAY-2021,7011470,185.71,MALDRON HOTEL,401360,Central Items,Planning Services ,110,Third Party Payments,505,Private Contractors,5042,Revenue,HUMAN RESOURCES.ACCOMMODATION
19-MAY-2021,7011470,185.71,MALDRON HOTEL,401360,Central Items,Planning Services ,110,Third Party Payments,505,Private Contractors,5042,Revenue,HUMAN RESOURCES.ACCOMMODATION
19-MAY-2021,7011470,185.71,MALDRON HOTEL,401360,Central Items,Planning Services ,110,Third Party Payments,505,Private Contractors,5042,Revenue,HUMAN RESOURCES.ACCOMMODATION
19-MAY-2021,7011470,247.62,MALDRON HOTEL,401360,Central Items,Planning Services ,110,Third Party Payments,505,Private Contractors,5042,Revenue,HUMAN RESOURCES.ACCOMMODATION
19-MAY-2021,7011470,260,MALDRON HOTEL,401360,Housing Operations,Housing Revenue Account,N/A,Third Party Payments,505,Private Contractors,5042,Revenue,HUMAN RESOURCES.ACCOMMODATION
19-MAY-2021,7011471,328.5,LBS HORTICULTURE LIMITED,401359,"Environment, Housing & Leisure",Environmental & Regulatory Services,105,Supplies and Services,504,Equipment,5023,Revenue,HORTICULTURAL.LANDSCAPING
19-MAY-2021,7011472,169.05,GLASSTOPS,401358,"Environment, Housing & Leisure",Cultural & Related Services,104,Supplies and Services,504,Equipment,5023,Revenue,BUILDING MATERIALS.GLAZING
19-MAY-2021,7011473,45,CO-OP FUNERALCARE,003108,"Health, Education, Care and Safeguarding",Adult Social Care,101,Supplies and Services,504,"Printing, Stationery and General Office Expenses",5026,Revenue,ENVIRONMENTAL SERVICES.ENVIRONMENTAL SERVICES
19-MAY-2021,7011474,20.39,TSO HOST,401173,Regeneration & Economic Development,Planning Services ,110,Supplies and Services,504,"Printing, Stationery and General Office Expenses",5026,Revenue,SUBSCRIPTIONS & PUBLICATIONS.MEMBERSHIPS
19-MAY-2021,7011475,22,NCS CITB,401170,"Health, Education, Care and Safeguarding",Children's & Education Services,103,Supplies and Services,504,Equipment,5023,Revenue,EDUCATIONAL SUPPLIES.CURRICULUM
19-MAY-2021,7011475,22,NCS CITB,401170,"Health, Education, Care and Safeguarding",Children's & Education Services,103,Supplies and Services,504,Equipment,5023,Revenue,EDUCATIONAL SUPPLIES.CURRICULUM
19-MAY-2021,7011475,22,NCS CITB,401170,"Health, Education, Care and Safeguarding",Children's & Education Services,103,Supplies and Services,504,Equipment,5023,Revenue,EDUCATIONAL SUPPLIES.CURRICULUM
19-MAY-2021,7011475,22,NCS CITB,401170,"Health, Education, Care and Safeguarding",Children's & Education Services,103,Supplies and Services,504,Equipment,5023,Revenue,EDUCATIONAL SUPPLIES.CURRICULUM
19-MAY-2021,7011475,22,NCS CITB,401170,"Health, Education, Care and Safeguarding",Children's & Education Services,103,Supplies and Services,504,Equipment,5023,Revenue,EDUCATIONAL SUPPLIES.CURRICULUM
19-MAY-2021,7011476,39,BOOK WHEN,401025,Central Items,Planning Services ,110,Supplies and Services,504,Miscellaneous Expenses,5034,Revenue,ICT.SOFTWARE
19-MAY-2021,7011477,82.5,BUNDLEDOCS,394983,"Health, Education, Care and Safeguarding",Children's & Education Services,103,Supplies and Services,504,Miscellaneous Expenses,5034,Revenue,ICT.SOFTWARE
19-MAY-2021,7011478,55.81,SONAR SOURCE,400564,Resources,Central Services,102,Supplies and Services,504,"Printing, Stationery and General Office Expenses",5026,Revenue,BUILDING MATERIALS.GENERAL MATERIALS
19-MAY-2021,7011479,145.61,BLUE LINE TAXIS,002700,Housing Operations,Housing Revenue Account,N/A,Supplies and Services,504,Miscellaneous Expenses,5034,Revenue,PUBLIC TRANSPORT.TAXI SERVICES
19-MAY-2021,7011480,61.9,THEMEL ROSEGUES,400318,"Environment, Housing & Leisure",Housing Services,108,Third Party Payments,505,Private Contractors,5042,Revenue,HUMAN RESOURCES.ACCOMMODATION
19-MAY-2021,7011480,66.67,THEMEL ROSEGUES,400318,"Environment, Housing & Leisure",Housing Services,108,Third Party Payments,505,Private Contractors,5042,Revenue,HUMAN RESOURCES.ACCOMMODATION
19-MAY-2021,7011480,100,THEMEL ROSEGUES,400318,Central Items,Planning Services ,110,Third Party Payments,505,Private Contractors,5042,Revenue,HUMAN RESOURCES.ACCOMMODATION
19-MAY-2021,7011480,133.33,THEMEL ROSEGUES,400318,Central Items,Planning Services ,110,Third Party Payments,505,Private Contractors,5042,Revenue,HUMAN RESOURCES.ACCOMMODATION
19-MAY-2021,7011480,166.67,THEMEL ROSEGUES,400318,Central Items,Planning Services ,110,Third Party Payments,505,Private Contractors,5042,Revenue,HUMAN RESOURCES.ACCOMMODATION
19-MAY-2021,7011480,200,THEMEL ROSEGUES,400318,Central Items,Planning Services ,110,Third Party Payments,505,Private Contractors,5042,Revenue,HUMAN RESOURCES.ACCOMMODATION
19-MAY-2021,7011480,223.81,THEMEL ROSEGUES,400318,"Environment, Housing & Leisure",Housing Services,108,Third Party Payments,505,Private Contractors,5042,Revenue,HUMAN RESOURCES.ACCOMMODATION
19-MAY-2021,7011480,233.33,THEMEL ROSEGUES,400318,"Environment, Housing & Leisure",Housing Services,108,Third Party Payments,505,Private Contractors,5042,Revenue,HUMAN RESOURCES.ACCOMMODATION
19-MAY-2021,7011480,233.33,THEMEL ROSEGUES,400318,Central Items,Planning Services ,110,Third Party Payments,505,Private Contractors,5042,Revenue,HUMAN RESOURCES.ACCOMMODATION
19-MAY-2021,7011480,266.67,THEMEL ROSEGUES,400318,"Environment, Housing & Leisure",Housing Services,108,Third Party Payments,505,Private Contractors,5042,Revenue,HUMAN RESOURCES.ACCOMMODATION
19-MAY-2021,7011481,-27.5,EBAY,400312,"Environment, Housing & Leisure",Cultural & Related Services,104,Supplies and Services,504,Equipment,5023,Revenue,ICT.ONLINE SERVICES
19-MAY-2021,7011481,27.5,EBAY,400312,"Environment, Housing & Leisure",Cultural & Related Services,104,Supplies and Services,504,Equipment,5023,Revenue,ICT.ONLINE SERVICES
19-MAY-2021,7011482,120,THE ROYAL LIFESAVING SOCIETY UK,259944,Resources,Children's & Education Services,103,Employees,501,Indirect Employee Expenses,5002,Revenue,FINANCIAL SERVICES.INVESTMENTS
19-MAY-2021,7011483,0.01,ROOMZZZ LIMITED,399988,"Environment, Housing & Leisure",Housing Services,108,Third Party Payments,505,Private Contractors,5042,Revenue,HUMAN RESOURCES.ACCOMMODATION
19-MAY-2021,7011483,30.95,ROOMZZZ LIMITED,399988,"Environment, Housing & Leisure",Housing Services,108,Supplies and Services,504,Miscellaneous Expenses,5034,Revenue,HUMAN RESOURCES.ACCOMMODATION
19-MAY-2021,7011483,57.14,ROOMZZZ LIMITED,399988,"Environment, Housing & Leisure",Housing Services,108,Third Party Payments,505,Private Contractors,5042,Revenue,HUMAN RESOURCES.ACCOMMODATION
19-MAY-2021,7011483,57.14,ROOMZZZ LIMITED,399988,"Environment, Housing & Leisure",Housing Services,108,Third Party Payments,505,Private Contractors,5042,Revenue,HUMAN RESOURCES.ACCOMMODATION
19-MAY-2021,7011483,57.14,ROOMZZZ LIMITED,399988,"Environment, Housing & Leisure",Housing Services,108,Third Party Payments,505,Private Contractors,5042,Revenue,HUMAN RESOURCES.ACCOMMODATION
19-MAY-2021,7011483,57.14,ROOMZZZ LIMITED,399988,"Environment, Housing & Leisure",Housing Services,108,Third Party Payments,505,Private Contractors,5042,Revenue,HUMAN RESOURCES.ACCOMMODATION
19-MAY-2021,7011483,57.14,ROOMZZZ LIMITED,399988,"Environment, Housing & Leisure",Housing Services,108,Third Party Payments,505,Private Contractors,5042,Revenue,HUMAN RESOURCES.ACCOMMODATION
19-MAY-2021,7011483,57.14,ROOMZZZ LIMITED,399988,"Environment, Housing & Leisure",Housing Services,108,Third Party Payments,505,Private Contractors,5042,Revenue,HUMAN RESOURCES.ACCOMMODATION
19-MAY-2021,7011483,57.14,ROOMZZZ LIMITED,399988,"Environment, Housing & Leisure",Housing Services,108,Third Party Payments,505,Private Contractors,5042,Revenue,HUMAN RESOURCES.ACCOMMODATION
19-MAY-2021,7011483,57.14,ROOMZZZ LIMITED,399988,"Environment, Housing & Leisure",Housing Services,108,Third Party Payments,505,Private Contractors,5042,Revenue,HUMAN RESOURCES.ACCOMMODATION
19-MAY-2021,7011483,57.14,ROOMZZZ LIMITED,399988,"Environment, Housing & Leisure",Housing Services,108,Third Party Payments,505,Private Contractors,5042,Revenue,HUMAN RESOURCES.ACCOMMODATION
19-MAY-2021,7011483,57.14,ROOMZZZ LIMITED,399988,"Environment, Housing & Leisure",Housing Services,108,Third Party Payments,505,Private Contractors,5042,Revenue,HUMAN RESOURCES.ACCOMMODATION
19-MAY-2021,7011483,57.14,ROOMZZZ LIMITED,399988,"Environment, Housing & Leisure",Housing Services,108,Third Party Payments,505,Private Contractors,5042,Revenue,HUMAN RESOURCES.ACCOMMODATION
19-MAY-2021,7011483,57.14,ROOMZZZ LIMITED,399988,"Environment, Housing & Leisure",Housing Services,108,Third Party Payments,505,Private Contractors,5042,Revenue,HUMAN RESOURCES.ACCOMMODATION
19-MAY-2021,7011483,57.14,ROOMZZZ LIMITED,399988,"Environment, Housing & Leisure",Housing Services,108,Third Party Payments,505,Private Contractors,5042,Revenue,HUMAN RESOURCES.ACCOMMODATION
19-MAY-2021,7011483,57.14,ROOMZZZ LIMITED,399988,"Environment, Housing & Leisure",Housing Services,108,Third Party Payments,505,Private Contractors,5042,Revenue,HUMAN RESOURCES.ACCOMMODATION
19-MAY-2021,7011483,57.14,ROOMZZZ LIMITED,399988,"Environment, Housing & Leisure",Housing Services,108,Third Party Payments,505,Private Contractors,5042,Revenue,HUMAN RESOURCES.ACCOMMODATION
19-MAY-2021,7011483,57.14,ROOMZZZ LIMITED,399988,"Environment, Housing & Leisure",Housing Services,108,Third Party Payments,505,Private Contractors,5042,Revenue,HUMAN RESOURCES.ACCOMMODATION
19-MAY-2021,7011483,57.14,ROOMZZZ LIMITED,399988,"Environment, Housing & Leisure",Housing Services,108,Third Party Payments,505,Private Contractors,5042,Revenue,HUMAN RESOURCES.ACCOMMODATION
19-MAY-2021,7011483,57.14,ROOMZZZ LIMITED,399988,"Environment, Housing & Leisure",Housing Services,108,Third Party Payments,505,Private Contractors,5042,Revenue,HUMAN RESOURCES.ACCOMMODATION
19-MAY-2021,7011483,57.14,ROOMZZZ LIMITED,399988,"Environment, Housing & Leisure",Housing Services,108,Third Party Payments,505,Private Contractors,5042,Revenue,HUMAN RESOURCES.ACCOMMODATION
19-MAY-2021,7011483,57.14,ROOMZZZ LIMITED,399988,"Environment, Housing & Leisure",Housing Services,108,Third Party Payments,505,Private Contractors,5042,Revenue,HUMAN RESOURCES.ACCOMMODATION
19-MAY-2021,7011483,57.14,ROOMZZZ LIMITED,399988,"Environment, Housing & Leisure",Housing Services,108,Third Party Payments,505,Private Contractors,5042,Revenue,HUMAN RESOURCES.ACCOMMODATION
19-MAY-2021,7011483,57.14,ROOMZZZ LIMITED,399988,"Environment, Housing & Leisure",Housing Services,108,Third Party Payments,505,Private Contractors,5042,Revenue,HUMAN RESOURCES.ACCOMMODATION
19-MAY-2021,7011483,57.14,ROOMZZZ LIMITED,399988,"Environment, Housing & Leisure",Housing Services,108,Third Party Payments,505,Private Contractors,5042,Revenue,HUMAN RESOURCES.ACCOMMODATION
19-MAY-2021,7011483,57.14,ROOMZZZ LIMITED,399988,"Environment, Housing & Leisure",Housing Services,108,Third Party Payments,505,Private Contractors,5042,Revenue,HUMAN RESOURCES.ACCOMMODATION
19-MAY-2021,7011483,57.14,ROOMZZZ LIMITED,399988,"Environment, Housing & Leisure",Housing Services,108,Third Party Payments,505,Private Contractors,5042,Revenue,HUMAN RESOURCES.ACCOMMODATION
19-MAY-2021,7011483,57.14,ROOMZZZ LIMITED,399988,"Environment, Housing & Leisure",Adult Social Care,101,Third Party Payments,505,Private Contractors,5042,Revenue,HUMAN RESOURCES.ACCOMMODATION
19-MAY-2021,7011483,57.14,ROOMZZZ LIMITED,399988,"Environment, Housing & Leisure",Adult Social Care,101,Third Party Payments,505,Private Contractors,5042,Revenue,HUMAN RESOURCES.ACCOMMODATION
19-MAY-2021,7011483,57.14,ROOMZZZ LIMITED,399988,"Environment, Housing & Leisure",Adult Social Care,101,Third Party Payments,505,Private Contractors,5042,Revenue,HUMAN RESOURCES.ACCOMMODATION
19-MAY-2021,7011483,57.14,ROOMZZZ LIMITED,399988,"Environment, Housing & Leisure",Adult Social Care,101,Third Party Payments,505,Private Contractors,5042,Revenue,HUMAN RESOURCES.ACCOMMODATION
19-MAY-2021,7011483,57.14,ROOMZZZ LIMITED,399988,"Environment, Housing & Leisure",Adult Social Care,101,Third Party Payments,505,Private Contractors,5042,Revenue,HUMAN RESOURCES.ACCOMMODATION
19-MAY-2021,7011483,57.14,ROOMZZZ LIMITED,399988,"Environment, Housing & Leisure",Adult Social Care,101,Third Party Payments,505,Private Contractors,5042,Revenue,HUMAN RESOURCES.ACCOMMODATION
19-MAY-2021,7011483,57.14,ROOMZZZ LIMITED,399988,"Environment, Housing & Leisure",Adult Social Care,101,Third Party Payments,505,Private Contractors,5042,Revenue,HUMAN RESOURCES.ACCOMMODATION
19-MAY-2021,7011483,57.14,ROOMZZZ LIMITED,399988,"Environment, Housing & Leisure",Adult Social Care,101,Third Party Payments,505,Private Contractors,5042,Revenue,HUMAN RESOURCES.ACCOMMODATION
19-MAY-2021,7011483,57.15,ROOMZZZ LIMITED,399988,"Environment, Housing & Leisure",Housing Services,108,Third Party Payments,505,Private Contractors,5042,Revenue,HUMAN RESOURCES.ACCOMMODATION
19-MAY-2021,7011483,57.15,ROOMZZZ LIMITED,399988,"Environment, Housing & Leisure",Housing Services,108,Third Party Payments,505,Private Contractors,5042,Revenue,HUMAN RESOURCES.ACCOMMODATION
19-MAY-2021,7011483,57.15,ROOMZZZ LIMITED,399988,"Environment, Housing & Leisure",Housing Services,108,Third Party Payments,505,Private Contractors,5042,Revenue,HUMAN RESOURCES.ACCOMMODATION
19-MAY-2021,7011483,57.15,ROOMZZZ LIMITED,399988,"Environment, Housing & Leisure",Housing Services,108,Third Party Payments,505,Private Contractors,5042,Revenue,HUMAN RESOURCES.ACCOMMODATION
19-MAY-2021,7011483,57.15,ROOMZZZ LIMITED,399988,"Environment, Housing & Leisure",Adult Social Care,101,Third Party Payments,505,Private Contractors,5042,Revenue,HUMAN RESOURCES.ACCOMMODATION
19-MAY-2021,7011483,57.15,ROOMZZZ LIMITED,399988,"Environment, Housing & Leisure",Adult Social Care,101,Third Party Payments,505,Private Contractors,5042,Revenue,HUMAN RESOURCES.ACCOMMODATION
19-MAY-2021,7011483,57.15,ROOMZZZ LIMITED,399988,"Environment, Housing & Leisure",Adult Social Care,101,Third Party Payments,505,Private Contractors,5042,Revenue,HUMAN RESOURCES.ACCOMMODATION
19-MAY-2021,7011483,57.15,ROOMZZZ LIMITED,399988,"Environment, Housing & Leisure",Adult Social Care,101,Third Party Payments,505,Private Contractors,5042,Revenue,HUMAN RESOURCES.ACCOMMODATION
19-MAY-2021,7011483,57.15,ROOMZZZ LIMITED,399988,"Environment, Housing & Leisure",Adult Social Care,101,Third Party Payments,505,Private Contractors,5042,Revenue,HUMAN RESOURCES.ACCOMMODATION
19-MAY-2021,7011483,57.15,ROOMZZZ LIMITED,399988,"Environment, Housing & Leisure",Adult Social Care,101,Third Party Payments,505,Private Contractors,5042,Revenue,HUMAN RESOURCES.ACCOMMODATION
19-MAY-2021,7011483,57.15,ROOMZZZ LIMITED,399988,"Environment, Housing & Leisure",Adult Social Care,101,Third Party Payments,505,Private Contractors,5042,Revenue,HUMAN RESOURCES.ACCOMMODATION
19-MAY-2021,7011483,57.15,ROOMZZZ LIMITED,399988,"Environment, Housing & Leisure",Adult Social Care,101,Third Party Payments,505,Private Contractors,5042,Revenue,HUMAN RESOURCES.ACCOMMODATION
19-MAY-2021,7011483,171.43,ROOMZZZ LIMITED,399988,"Environment, Housing & Leisure",Housing Services,108,Third Party Payments,505,Private Contractors,5042,Revenue,HUMAN RESOURCES.ACCOMMODATION
19-MAY-2021,7011483,171.43,ROOMZZZ LIMITED,399988,"Environment, Housing & Leisure",Housing Services,108,Third Party Payments,505,Private Contractors,5042,Revenue,HUMAN RESOURCES.ACCOMMODATION
19-MAY-2021,7011483,171.43,ROOMZZZ LIMITED,399988,"Environment, Housing & Leisure",Housing Services,108,Third Party Payments,505,Private Contractors,5042,Revenue,HUMAN RESOURCES.ACCOMMODATION
19-MAY-2021,7011483,171.43,ROOMZZZ LIMITED,399988,"Environment, Housing & Leisure",Adult Social Care,101,Third Party Payments,505,Private Contractors,5042,Revenue,HUMAN RESOURCES.ACCOMMODATION
19-MAY-2021,7011483,171.43,ROOMZZZ LIMITED,399988,"Environment, Housing & Leisure",Adult Social Care,101,Third Party Payments,505,Private Contractors,5042,Revenue,HUMAN RESOURCES.ACCOMMODATION
19-MAY-2021,7011483,228.57,ROOMZZZ LIMITED,399988,"Environment, Housing & Leisure",Housing Services,108,Third Party Payments,505,Private Contractors,5042,Revenue,HUMAN RESOURCES.ACCOMMODATION
19-MAY-2021,7011483,228.57,ROOMZZZ LIMITED,399988,"Environment, Housing & Leisure",Adult Social Care,101,Third Party Payments,505,Private Contractors,5042,Revenue,HUMAN RESOURCES.ACCOMMODATION
19-MAY-2021,7011484,75,UK BORDER AGENCY,380681,"Health, Education, Care and Safeguarding",Children's & Education Services,103,Third Party Payments,505,Other Establishments,5041,Revenue,NON INFLUENCIBLE.PUBLIC SECTOR
19-MAY-2021,7011485,30,CSCS,100500,"Health, Education, Care and Safeguarding",Children's & Education Services,103,Supplies and Services,504,Equipment,5023,Revenue,REPAIRS & MAINTENANCE.REPAIRS & MAINTENANCE
19-MAY-2021,7011485,30,CSCS,100500,"Health, Education, Care and Safeguarding",Children's & Education Services,103,Supplies and Services,504,Equipment,5023,Revenue,REPAIRS & MAINTENANCE.REPAIRS & MAINTENANCE
19-MAY-2021,7011486,25,SOUTHERN STRONGHOLD LTD,399354,"Health, Education, Care and Safeguarding",Children's & Education Services,103,Supplies and Services,504,"Clothing, Uniforms and Laundry",5025,Revenue,FIRE & SECURITY.EQUIPMENT
19-MAY-2021,7011486,48.75,SOUTHERN STRONGHOLD LTD,399354,"Health, Education, Care and Safeguarding",Children's & Education Services,103,Supplies and Services,504,"Clothing, Uniforms and Laundry",5025,Revenue,FIRE & SECURITY.EQUIPMENT
19-MAY-2021,7011487,123.19,POLL EVERYWHERE INC,399352,"Health, Education, Care and Safeguarding",Children's & Education Services,103,Supplies and Services,504,Equipment,5023,Revenue,CONSULTANCY.MARKET RESEARCH
19-MAY-2021,7011488,-28.7,TOTAL PRODUCE GATESHEAD,399244,Commissioning & Asset Management,Children's & Education Services,103,Supplies and Services,504,Equipment,5023,Revenue,CATERING.FOOD & BEVERAGES
19-MAY-2021,7011488,-22.8,TOTAL PRODUCE GATESHEAD,399244,Commissioning & Asset Management,Children's & Education Services,103,Supplies and Services,504,Equipment,5023,Revenue,CATERING.FOOD & BEVERAGES
19-MAY-2021,7011488,-18.41,TOTAL PRODUCE GATESHEAD,399244,Commissioning & Asset Management,Children's & Education Services,103,Supplies and Services,504,Equipment,5023,Revenue,CATERING.FOOD & BEVERAGES
19-MAY-2021,7011488,-18.4,TOTAL PRODUCE GATESHEAD,399244,Commissioning & Asset Management,Children's & Education Services,103,Supplies and Services,504,Equipment,5023,Revenue,CATERING.FOOD & BEVERAGES
19-MAY-2021,7011488,-17.49,TOTAL PRODUCE GATESHEAD,399244,Commissioning & Asset Management,Children's & Education Services,103,Supplies and Services,504,Equipment,5023,Revenue,CATERING.FOOD & BEVERAGES
19-MAY-2021,7011488,-17.49,TOTAL PRODUCE GATESHEAD,399244,Commissioning & Asset Management,Children's & Education Services,103,Supplies and Services,504,Equipment,5023,Revenue,CATERING.FOOD & BEVERAGES
19-MAY-2021,7011488,-17.49,TOTAL PRODUCE GATESHEAD,399244,Commissioning & Asset Management,Children's & Education Services,103,Supplies and Services,504,Equipment,5023,Revenue,CATERING.FOOD & BEVERAGES
19-MAY-2021,7011488,-17.49,TOTAL PRODUCE GATESHEAD,399244,Commissioning & Asset Management,Children's & Education Services,103,Supplies and Services,504,Equipment,5023,Revenue,CATERING.FOOD & BEVERAGES
19-MAY-2021,7011488,-17.49,TOTAL PRODUCE GATESHEAD,399244,Commissioning & Asset Management,Children's & Education Services,103,Supplies and Services,504,Equipment,5023,Revenue,CATERING.FOOD & BEVERAGES
19-MAY-2021,7011488,-17.49,TOTAL PRODUCE GATESHEAD,399244,Commissioning & Asset Management,Children's & Education Services,103,Supplies and Services,504,Equipment,5023,Revenue,CATERING.FOOD & BEVERAGES
19-MAY-2021,7011488,-16.5,TOTAL PRODUCE GATESHEAD,399244,Commissioning & Asset Management,Children's & Education Services,103,Supplies and Services,504,Equipment,5023,Revenue,CATERING.FOOD & BEVERAGES
19-MAY-2021,7011488,-15.45,TOTAL PRODUCE GATESHEAD,399244,Commissioning & Asset Management,Children's & Education Services,103,Supplies and Services,504,Equipment,5023,Revenue,CATERING.FOOD & BEVERAGES
19-MAY-2021,7011488,-12.6,TOTAL PRODUCE GATESHEAD,399244,Commissioning & Asset Management,Children's & Education Services,103,Supplies and Services,504,Equipment,5023,Revenue,CATERING.FOOD & BEVERAGES
19-MAY-2021,7011488,-9.99,TOTAL PRODUCE GATESHEAD,399244,Commissioning & Asset Management,Children's & Education Services,103,Supplies and Services,504,Equipment,5023,Revenue,CATERING.FOOD & BEVERAGES
19-MAY-2021,7011488,-9.99,TOTAL PRODUCE GATESHEAD,399244,Commissioning & Asset Management,Children's & Education Services,103,Supplies and Services,504,Equipment,5023,Revenue,CATERING.FOOD & BEVERAGES
19-MAY-2021,7011488,-7.99,TOTAL PRODUCE GATESHEAD,399244,Commissioning & Asset Management,Children's & Education Services,103,Supplies and Services,504,Equipment,5023,Revenue,CATERING.FOOD & BEVERAGES
19-MAY-2021,7011488,-6.31,TOTAL PRODUCE GATESHEAD,399244,Commissioning & Asset Management,Children's & Education Services,103,Supplies and Services,504,Equipment,5023,Revenue,CATERING.FOOD & BEVERAGES
19-MAY-2021,7011488,-6.15,TOTAL PRODUCE GATESHEAD,399244,Commissioning & Asset Management,Children's & Education Services,103,Supplies and Services,504,Equipment,5023,Revenue,CATERING.FOOD & BEVERAGES
19-MAY-2021,7011488,-4.9,TOTAL PRODUCE GATESHEAD,399244,Commissioning & Asset Management,Children's & Education Services,103,Supplies and Services,504,Equipment,5023,Revenue,CATERING.FOOD & BEVERAGES
19-MAY-2021,7011488,-4.71,TOTAL PRODUCE GATESHEAD,399244,Commissioning & Asset Management,Children's & Education Services,103,Supplies and Services,504,Equipment,5023,Revenue,CATERING.FOOD & BEVERAGES
19-MAY-2021,7011488,-3.66,TOTAL PRODUCE GATESHEAD,399244,Commissioning & Asset Management,Children's & Education Services,103,Supplies and Services,504,Equipment,5023,Revenue,CATERING.FOOD & BEVERAGES
19-MAY-2021,7011488,-3,TOTAL PRODUCE GATESHEAD,399244,Commissioning & Asset Management,Children's & Education Services,103,Supplies and Services,504,Equipment,5023,Revenue,CATERING.FOOD & BEVERAGES
19-MAY-2021,7011488,-2.98,TOTAL PRODUCE GATESHEAD,399244,Commissioning & Asset Management,Children's & Education Services,103,Supplies and Services,504,Equipment,5023,Revenue,CATERING.FOOD & BEVERAGES
19-MAY-2021,7011488,-2.72,TOTAL PRODUCE GATESHEAD,399244,Commissioning & Asset Management,Children's & Education Services,103,Supplies and Services,504,Equipment,5023,Revenue,CATERING.FOOD & BEVERAGES
19-MAY-2021,7011488,-2.72,TOTAL PRODUCE GATESHEAD,399244,Commissioning & Asset Management,Children's & Education Services,103,Supplies and Services,504,Equipment,5023,Revenue,CATERING.FOOD & BEVERAGES
19-MAY-2021,7011488,-2.56,TOTAL PRODUCE GATESHEAD,399244,Commissioning & Asset Management,Children's & Education Services,103,Supplies and Services,504,Equipment,5023,Revenue,CATERING.FOOD & BEVERAGES
19-MAY-2021,7011488,-2.44,TOTAL PRODUCE GATESHEAD,399244,Commissioning & Asset Management,Children's & Education Services,103,Supplies and Services,504,Equipment,5023,Revenue,CATERING.FOOD & BEVERAGES
19-MAY-2021,7011488,-1.8,TOTAL PRODUCE GATESHEAD,399244,Commissioning & Asset Management,Children's & Education Services,103,Supplies and Services,504,Equipment,5023,Revenue,CATERING.FOOD & BEVERAGES
19-MAY-2021,7011488,-0.01,TOTAL PRODUCE GATESHEAD,399244,"Environment, Housing & Leisure",Cultural & Related Services,104,Supplies and Services,504,Equipment,5023,Revenue,CATERING.FOOD & BEVERAGES
19-MAY-2021,7011488,-0.01,TOTAL PRODUCE GATESHEAD,399244,"Environment, Housing & Leisure",Cultural & Related Services,104,Supplies and Services,504,Equipment,5023,Revenue,CATERING.FOOD & BEVERAGES
19-MAY-2021,7011488,0.01,TOTAL PRODUCE GATESHEAD,399244,Commissioning & Asset Management,Children's & Education Services,103,Supplies and Services,504,Equipment,5023,Revenue,CATERING.FOOD & BEVERAGES
19-MAY-2021,7011488,0.01,TOTAL PRODUCE GATESHEAD,399244,Commissioning & Asset Management,Children's & Education Services,103,Supplies and Services,504,Equipment,5023,Revenue,CATERING.FOOD & BEVERAGES
19-MAY-2021,7011488,0.01,TOTAL PRODUCE GATESHEAD,399244,Commissioning & Asset Management,Children's & Education Services,103,Supplies and Services,504,Equipment,5023,Revenue,CATERING.FOOD & BEVERAGES
19-MAY-2021,7011488,0.03,TOTAL PRODUCE GATESHEAD,399244,Commissioning & Asset Management,Children's & Education Services,103,Supplies and Services,504,Equipment,5023,Revenue,CATERING.FOOD & BEVERAGES
19-MAY-2021,7011488,0.24,TOTAL PRODUCE GATESHEAD,399244,Commissioning & Asset Management,Children's & Education Services,103,Supplies and Services,504,Equipment,5023,Revenue,CATERING.FOOD & BEVERAGES
19-MAY-2021,7011488,0.24,TOTAL PRODUCE GATESHEAD,399244,Commissioning & Asset Management,Children's & Education Services,103,Supplies and Services,504,Equipment,5023,Revenue,CATERING.FOOD & BEVERAGES
19-MAY-2021,7011488,0.24,TOTAL PRODUCE GATESHEAD,399244,"Environment, Housing & Leisure",Cultural & Related Services,104,Supplies and Services,504,Equipment,5023,Revenue,CATERING.FOOD & BEVERAGES
19-MAY-2021,7011488,0.24,TOTAL PRODUCE GATESHEAD,399244,"Environment, Housing & Leisure",Cultural & Related Services,104,Supplies and Services,504,Equipment,5023,Revenue,CATERING.FOOD & BEVERAGES
19-MAY-2021,7011488,0.24,TOTAL PRODUCE GATESHEAD,399244,"Environment, Housing & Leisure",Cultural & Related Services,104,Supplies and Services,504,Equipment,5023,Revenue,CATERING.FOOD & BEVERAGES
19-MAY-2021,7011488,0.24,TOTAL PRODUCE GATESHEAD,399244,"Environment, Housing & Leisure",Cultural & Related Services,104,Supplies and Services,504,Equipment,5023,Revenue,CATERING.FOOD & BEVERAGES
19-MAY-2021,7011488,0.24,TOTAL PRODUCE GATESHEAD,399244,"Environment, Housing & Leisure",Cultural & Related Services,104,Supplies and Services,504,Equipment,5023,Revenue,CATERING.FOOD & BEVERAGES
19-MAY-2021,7011488,0.24,TOTAL PRODUCE GATESHEAD,399244,"Environment, Housing & Leisure",Cultural & Related Services,104,Supplies and Services,504,Equipment,5023,Revenue,CATERING.FOOD & BEVERAGES
19-MAY-2021,7011488,0.48,TOTAL PRODUCE GATESHEAD,399244,Commissioning & Asset Management,Children's & Education Services,103,Supplies and Services,504,Equipment,5023,Revenue,CATERING.FOOD & BEVERAGES
19-MAY-2021,7011488,0.48,TOTAL PRODUCE GATESHEAD,399244,Commissioning & Asset Management,Children's & Education Services,103,Supplies and Services,504,Equipment,5023,Revenue,CATERING.FOOD & BEVERAGES
19-MAY-2021,7011488,0.48,TOTAL PRODUCE GATESHEAD,399244,Commissioning & Asset Management,Children's & Education Services,103,Supplies and Services,504,Equipment,5023,Revenue,CATERING.FOOD & BEVERAGES
19-MAY-2021,7011488,0.48,TOTAL PRODUCE GATESHEAD,399244,Commissioning & Asset Management,Children's & Education Services,103,Supplies and Services,504,Equipment,5023,Revenue,CATERING.FOOD & BEVERAGES
19-MAY-2021,7011488,0.48,TOTAL PRODUCE GATESHEAD,399244,Commissioning & Asset Management,Children's & Education Services,103,Supplies and Services,504,Equipment,5023,Revenue,CATERING.FOOD & BEVERAGES
19-MAY-2021,7011488,0.48,TOTAL PRODUCE GATESHEAD,399244,"Environment, Housing & Leisure",Cultural & Related Services,104,Supplies and Services,504,Equipment,5023,Revenue,CATERING.FOOD & BEVERAGES
19-MAY-2021,7011488,0.49,TOTAL PRODUCE GATESHEAD,399244,Commissioning & Asset Management,Children's & Education Services,103,Supplies and Services,504,Equipment,5023,Revenue,CATERING.FOOD & BEVERAGES
19-MAY-2021,7011488,0.49,TOTAL PRODUCE GATESHEAD,399244,Commissioning & Asset Management,Children's & Education Services,103,Supplies and Services,504,Equipment,5023,Revenue,CATERING.FOOD & BEVERAGES
19-MAY-2021,7011488,0.49,TOTAL PRODUCE GATESHEAD,399244,Commissioning & Asset Management,Children's & Education Services,103,Supplies and Services,504,Equipment,5023,Revenue,CATERING.FOOD & BEVERAGES
19-MAY-2021,7011488,0.49,TOTAL PRODUCE GATESHEAD,399244,Commissioning & Asset Management,Children's & Education Services,103,Supplies and Services,504,Equipment,5023,Revenue,CATERING.FOOD & BEVERAGES
19-MAY-2021,7011488,0.49,TOTAL PRODUCE GATESHEAD,399244,Commissioning & Asset Management,Children's & Education Services,103,Supplies and Services,504,Equipment,5023,Revenue,CATERING.FOOD & BEVERAGES
19-MAY-2021,7011488,0.49,TOTAL PRODUCE GATESHEAD,399244,Commissioning & Asset Management,Children's & Education Services,103,Supplies and Services,504,Equipment,5023,Revenue,CATERING.FOOD & BEVERAGES
19-MAY-2021,7011488,0.49,TOTAL PRODUCE GATESHEAD,399244,Commissioning & Asset Management,Children's & Education Services,103,Supplies and Services,504,Equipment,5023,Revenue,CATERING.FOOD & BEVERAGES
19-MAY-2021,7011488,0.49,TOTAL PRODUCE GATESHEAD,399244,Commissioning & Asset Management,Children's & Education Services,103,Supplies and Services,504,Equipment,5023,Revenue,CATERING.FOOD & BEVERAGES
19-MAY-2021,7011488,0.49,TOTAL PRODUCE GATESHEAD,399244,Commissioning & Asset Management,Children's & Education Services,103,Supplies and Services,504,Equipment,5023,Revenue,CATERING.FOOD & BEVERAGES
19-MAY-2021,7011488,0.49,TOTAL PRODUCE GATESHEAD,399244,Commissioning & Asset Management,Children's & Education Services,103,Supplies and Services,504,Equipment,5023,Revenue,CATERING.FOOD & BEVERAGES
19-MAY-2021,7011488,0.49,TOTAL PRODUCE GATESHEAD,399244,Commissioning & Asset Management,Children's & Education Services,103,Supplies and Services,504,Equipment,5023,Revenue,CATERING.FOOD & BEVERAGES
19-MAY-2021,7011488,0.49,TOTAL PRODUCE GATESHEAD,399244,Commissioning & Asset Management,Children's & Education Services,103,Supplies and Services,504,Equipment,5023,Revenue,CATERING.FOOD & BEVERAGES
19-MAY-2021,7011488,0.49,TOTAL PRODUCE GATESHEAD,399244,Commissioning & Asset Management,Children's & Education Services,103,Supplies and Services,504,Equipment,5023,Revenue,CATERING.FOOD & BEVERAGES
19-MAY-2021,7011488,0.49,TOTAL PRODUCE GATESHEAD,399244,Commissioning & Asset Management,Children's & Education Services,103,Supplies and Services,504,Equipment,5023,Revenue,CATERING.FOOD & BEVERAGES
19-MAY-2021,7011488,0.49,TOTAL PRODUCE GATESHEAD,399244,Commissioning & Asset Management,Children's & Education Services,103,Supplies and Services,504,Equipment,5023,Revenue,CATERING.FOOD & BEVERAGES
19-MAY-2021,7011488,0.49,TOTAL PRODUCE GATESHEAD,399244,Commissioning & Asset Management,Children's & Education Services,103,Supplies and Services,504,Equipment,5023,Revenue,CATERING.FOOD & BEVERAGES
19-MAY-2021,7011488,0.49,TOTAL PRODUCE GATESHEAD,399244,Commissioning & Asset Management,Children's & Education Services,103,Supplies and Services,504,Equipment,5023,Revenue,CATERING.FOOD & BEVERAGES
19-MAY-2021,7011488,0.49,TOTAL PRODUCE GATESHEAD,399244,Commissioning & Asset Management,Children's & Education Services,103,Supplies and Services,504,Equipment,5023,Revenue,CATERING.FOOD & BEVERAGES
19-MAY-2021,7011488,0.5,TOTAL PRODUCE GATESHEAD,399244,Commissioning & Asset Management,Children's & Education Services,103,Supplies and Services,504,Equipment,5023,Revenue,CATERING.FOOD & BEVERAGES
19-MAY-2021,7011488,0.5,TOTAL PRODUCE GATESHEAD,399244,Commissioning & Asset Management,Children's & Education Services,103,Supplies and Services,504,Equipment,5023,Revenue,CATERING.FOOD & BEVERAGES
19-MAY-2021,7011488,0.5,TOTAL PRODUCE GATESHEAD,399244,Commissioning & Asset Management,Children's & Education Services,103,Supplies and Services,504,Equipment,5023,Revenue,CATERING.FOOD & BEVERAGES
19-MAY-2021,7011488,0.5,TOTAL PRODUCE GATESHEAD,399244,Commissioning & Asset Management,Children's & Education Services,103,Supplies and Services,504,Equipment,5023,Revenue,CATERING.FOOD & BEVERAGES
19-MAY-2021,7011488,0.5,TOTAL PRODUCE GATESHEAD,399244,Commissioning & Asset Management,Children's & Education Services,103,Supplies and Services,504,Equipment,5023,Revenue,CATERING.FOOD & BEVERAGES
19-MAY-2021,7011488,0.5,TOTAL PRODUCE GATESHEAD,399244,Commissioning & Asset Management,Children's & Education Services,103,Supplies and Services,504,Equipment,5023,Revenue,CATERING.FOOD & BEVERAGES
19-MAY-2021,7011488,0.5,TOTAL PRODUCE GATESHEAD,399244,Commissioning & Asset Management,Children's & Education Services,103,Supplies and Services,504,Equipment,5023,Revenue,CATERING.FOOD & BEVERAGES
19-MAY-2021,7011488,0.5,TOTAL PRODUCE GATESHEAD,399244,Commissioning & Asset Management,Children's & Education Services,103,Supplies and Services,504,Equipment,5023,Revenue,CATERING.FOOD & BEVERAGES
19-MAY-2021,7011488,0.5,TOTAL PRODUCE GATESHEAD,399244,Commissioning & Asset Management,Children's & Education Services,103,Supplies and Services,504,Equipment,5023,Revenue,CATERING.FOOD & BEVERAGES
19-MAY-2021,7011488,0.5,TOTAL PRODUCE GATESHEAD,399244,Commissioning & Asset Management,Children's & Education Services,103,Supplies and Services,504,Equipment,5023,Revenue,CATERING.FOOD & BEVERAGES
19-MAY-2021,7011488,0.5,TOTAL PRODUCE GATESHEAD,399244,Commissioning & Asset Management,Children's & Education Services,103,Supplies and Services,504,Equipment,5023,Revenue,CATERING.FOOD & BEVERAGES
19-MAY-2021,7011488,0.5,TOTAL PRODUCE GATESHEAD,399244,Commissioning & Asset Management,Children's & Education Services,103,Supplies and Services,504,Equipment,5023,Revenue,CATERING.FOOD & BEVERAGES
19-MAY-2021,7011488,0.5,TOTAL PRODUCE GATESHEAD,399244,Commissioning & Asset Management,Children's & Education Services,103,Supplies and Services,504,Equipment,5023,Revenue,CATERING.FOOD & BEVERAGES
19-MAY-2021,7011488,0.5,TOTAL PRODUCE GATESHEAD,399244,Commissioning & Asset Management,Children's & Education Services,103,Supplies and Services,504,Equipment,5023,Revenue,CATERING.FOOD & BEVERAGES
19-MAY-2021,7011488,0.5,TOTAL PRODUCE GATESHEAD,399244,Commissioning & Asset Management,Children's & Education Services,103,Supplies and Services,504,Equipment,5023,Revenue,CATERING.FOOD & BEVERAGES
19-MAY-2021,7011488,0.5,TOTAL PRODUCE GATESHEAD,399244,Commissioning & Asset Management,Children's & Education Services,103,Supplies and Services,504,Equipment,5023,Revenue,CATERING.FOOD & BEVERAGES
19-MAY-2021,7011488,0.5,TOTAL PRODUCE GATESHEAD,399244,Commissioning & Asset Management,Children's & Education Services,103,Supplies and Services,504,Equipment,5023,Revenue,CATERING.FOOD & BEVERAGES
19-MAY-2021,7011488,0.5,TOTAL PRODUCE GATESHEAD,399244,Commissioning & Asset Management,Children's & Education Services,103,Supplies and Services,504,Equipment,5023,Revenue,CATERING.FOOD & BEVERAGES
19-MAY-2021,7011488,0.5,TOTAL PRODUCE GATESHEAD,399244,Commissioning & Asset Management,Children's & Education Services,103,Supplies and Services,504,Equipment,5023,Revenue,CATERING.FOOD & BEVERAGES
19-MAY-2021,7011488,0.5,TOTAL PRODUCE GATESHEAD,399244,Commissioning & Asset Management,Children's & Education Services,103,Supplies and Services,504,Equipment,5023,Revenue,CATERING.FOOD & BEVERAGES
19-MAY-2021,7011488,0.5,TOTAL PRODUCE GATESHEAD,399244,Commissioning & Asset Management,Children's & Education Services,103,Supplies and Services,504,Equipment,5023,Revenue,CATERING.FOOD & BEVERAGES
19-MAY-2021,7011488,0.52,TOTAL PRODUCE GATESHEAD,399244,"Environment, Housing & Leisure",Adult Social Care,101,Supplies and Services,504,Equipment,5023,Revenue,CATERING.FOOD & BEVERAGES
19-MAY-2021,7011488,0.52,TOTAL PRODUCE GATESHEAD,399244,Commissioning & Asset Management,Children's & Education Services,103,Supplies and Services,504,Equipment,5023,Revenue,CATERING.FOOD & BEVERAGES
19-MAY-2021,7011488,0.52,TOTAL PRODUCE GATESHEAD,399244,Commissioning & Asset Management,Children's & Education Services,103,Supplies and Services,504,Equipment,5023,Revenue,CATERING.FOOD & BEVERAGES
19-MAY-2021,7011488,0.53,TOTAL PRODUCE GATESHEAD,399244,"Environment, Housing & Leisure",Cultural & Related Services,104,Supplies and Services,504,Equipment,5023,Revenue,CATERING.FOOD & BEVERAGES
19-MAY-2021,7011488,0.53,TOTAL PRODUCE GATESHEAD,399244,"Environment, Housing & Leisure",Cultural & Related Services,104,Supplies and Services,504,Equipment,5023,Revenue,CATERING.FOOD & BEVERAGES
19-MAY-2021,7011488,0.6,TOTAL PRODUCE GATESHEAD,399244,Commissioning & Asset Management,Children's & Education Services,103,Supplies and Services,504,Equipment,5023,Revenue,CATERING.FOOD & BEVERAGES
19-MAY-2021,7011488,0.6,TOTAL PRODUCE GATESHEAD,399244,Commissioning & Asset Management,Children's & Education Services,103,Supplies and Services,504,Equipment,5023,Revenue,CATERING.FOOD & BEVERAGES
19-MAY-2021,7011488,0.6,TOTAL PRODUCE GATESHEAD,399244,Commissioning & Asset Management,Children's & Education Services,103,Supplies and Services,504,Equipment,5023,Revenue,CATERING.FOOD & BEVERAGES
19-MAY-2021,7011488,0.6,TOTAL PRODUCE GATESHEAD,399244,Commissioning & Asset Management,Children's & Education Services,103,Supplies and Services,504,Equipment,5023,Revenue,CATERING.FOOD & BEVERAGES
19-MAY-2021,7011488,0.6,TOTAL PRODUCE GATESHEAD,399244,Commissioning & Asset Management,Children's & Education Services,103,Supplies and Services,504,Equipment,5023,Revenue,CATERING.FOOD & BEVERAGES
19-MAY-2021,7011488,0.6,TOTAL PRODUCE GATESHEAD,399244,Commissioning & Asset Management,Children's & Education Services,103,Supplies and Services,504,Equipment,5023,Revenue,CATERING.FOOD & BEVERAGES
19-MAY-2021,7011488,0.6,TOTAL PRODUCE GATESHEAD,399244,Commissioning & Asset Management,Children's & Education Services,103,Supplies and Services,504,Equipment,5023,Revenue,CATERING.FOOD & BEVERAGES
19-MAY-2021,7011488,0.62,TOTAL PRODUCE GATESHEAD,399244,Commissioning & Asset Management,Children's & Education Services,103,Supplies and Services,504,Equipment,5023,Revenue,CATERING.FOOD & BEVERAGES
19-MAY-2021,7011488,0.62,TOTAL PRODUCE GATESHEAD,399244,Commissioning & Asset Management,Children's & Education Services,103,Supplies and Services,504,Equipment,5023,Revenue,CATERING.FOOD & BEVERAGES
19-MAY-2021,7011488,0.62,TOTAL PRODUCE GATESHEAD,399244,Commissioning & Asset Management,Children's & Education Services,103,Supplies and Services,504,Equipment,5023,Revenue,CATERING.FOOD & BEVERAGES
19-MAY-2021,7011488,0.62,TOTAL PRODUCE GATESHEAD,399244,Commissioning & Asset Management,Children's & Education Services,103,Supplies and Services,504,Equipment,5023,Revenue,CATERING.FOOD & BEVERAGES
19-MAY-2021,7011488,0.62,TOTAL PRODUCE GATESHEAD,399244,Commissioning & Asset Management,Children's & Education Services,103,Supplies and Services,504,Equipment,5023,Revenue,CATERING.FOOD & BEVERAGES
19-MAY-2021,7011488,0.62,TOTAL PRODUCE GATESHEAD,399244,Commissioning & Asset Management,Children's & Education Services,103,Supplies and Services,504,Equipment,5023,Revenue,CATERING.FOOD & BEVERAGES
19-MAY-2021,7011488,0.62,TOTAL PRODUCE GATESHEAD,399244,Commissioning & Asset Management,Children's & Education Services,103,Supplies and Services,504,Equipment,5023,Revenue,CATERING.FOOD & BEVERAGES
19-MAY-2021,7011488,0.62,TOTAL PRODUCE GATESHEAD,399244,Commissioning & Asset Management,Children's & Education Services,103,Supplies and Services,504,Equipment,5023,Revenue,CATERING.FOOD & BEVERAGES
19-MAY-2021,7011488,0.62,TOTAL PRODUCE GATESHEAD,399244,Commissioning & Asset Management,Children's & Education Services,103,Supplies and Services,504,Equipment,5023,Revenue,CATERING.FOOD & BEVERAGES
19-MAY-2021,7011488,0.62,TOTAL PRODUCE GATESHEAD,399244,Commissioning & Asset Management,Children's & Education Services,103,Supplies and Services,504,Equipment,5023,Revenue,CATERING.FOOD & BEVERAGES
19-MAY-2021,7011488,0.62,TOTAL PRODUCE GATESHEAD,399244,Commissioning & Asset Management,Children's & Education Services,103,Supplies and Services,504,Equipment,5023,Revenue,CATERING.FOOD & BEVERAGES
19-MAY-2021,7011488,0.62,TOTAL PRODUCE GATESHEAD,399244,Commissioning & Asset Management,Children's & Education Services,103,Supplies and Services,504,Equipment,5023,Revenue,CATERING.FOOD & BEVERAGES
19-MAY-2021,7011488,0.62,TOTAL PRODUCE GATESHEAD,399244,Commissioning & Asset Management,Children's & Education Services,103,Supplies and Services,504,Equipment,5023,Revenue,CATERING.FOOD & BEVERAGES
19-MAY-2021,7011488,0.62,TOTAL PRODUCE GATESHEAD,399244,Commissioning & Asset Management,Children's & Education Services,103,Supplies and Services,504,Equipment,5023,Revenue,CATERING.FOOD & BEVERAGES
19-MAY-2021,7011488,0.62,TOTAL PRODUCE GATESHEAD,399244,Commissioning & Asset Management,Children's & Education Services,103,Supplies and Services,504,Equipment,5023,Revenue,CATERING.FOOD & BEVERAGES
19-MAY-2021,7011488,0.62,TOTAL PRODUCE GATESHEAD,399244,Commissioning & Asset Management,Children's & Education Services,103,Supplies and Services,504,Equipment,5023,Revenue,CATERING.FOOD & BEVERAGES
19-MAY-2021,7011488,0.62,TOTAL PRODUCE GATESHEAD,399244,Commissioning & Asset Management,Children's & Education Services,103,Supplies and Services,504,Equipment,5023,Revenue,CATERING.FOOD & BEVERAGES
19-MAY-2021,7011488,0.62,TOTAL PRODUCE GATESHEAD,399244,Commissioning & Asset Management,Children's & Education Services,103,Supplies and Services,504,Equipment,5023,Revenue,CATERING.FOOD & BEVERAGES
19-MAY-2021,7011488,0.62,TOTAL PRODUCE GATESHEAD,399244,Commissioning & Asset Management,Children's & Education Services,103,Supplies and Services,504,Equipment,5023,Revenue,CATERING.FOOD & BEVERAGES
19-MAY-2021,7011488,0.65,TOTAL PRODUCE GATESHEAD,399244,Commissioning & Asset Management,Children's & Education Services,103,Supplies and Services,504,Equipment,5023,Revenue,CATERING.FOOD & BEVERAGES
19-MAY-2021,7011488,0.65,TOTAL PRODUCE GATESHEAD,399244,Commissioning & Asset Management,Children's & Education Services,103,Supplies and Services,504,Equipment,5023,Revenue,CATERING.FOOD & BEVERAGES
19-MAY-2021,7011488,0.65,TOTAL PRODUCE GATESHEAD,399244,Commissioning & Asset Management,Children's & Education Services,103,Supplies and Services,504,Equipment,5023,Revenue,CATERING.FOOD & BEVERAGES
19-MAY-2021,7011488,0.65,TOTAL PRODUCE GATESHEAD,399244,Commissioning & Asset Management,Children's & Education Services,103,Supplies and Services,504,Equipment,5023,Revenue,CATERING.FOOD & BEVERAGES
19-MAY-2021,7011488,0.65,TOTAL PRODUCE GATESHEAD,399244,Commissioning & Asset Management,Children's & Education Services,103,Supplies and Services,504,Equipment,5023,Revenue,CATERING.FOOD & BEVERAGES
19-MAY-2021,7011488,0.65,TOTAL PRODUCE GATESHEAD,399244,Commissioning & Asset Management,Children's & Education Services,103,Supplies and Services,504,Equipment,5023,Revenue,CATERING.FOOD & BEVERAGES
19-MAY-2021,7011488,0.65,TOTAL PRODUCE GATESHEAD,399244,Commissioning & Asset Management,Children's & Education Services,103,Supplies and Services,504,Equipment,5023,Revenue,CATERING.FOOD & BEVERAGES
19-MAY-2021,7011488,0.65,TOTAL PRODUCE GATESHEAD,399244,Commissioning & Asset Management,Children's & Education Services,103,Supplies and Services,504,Equipment,5023,Revenue,CATERING.FOOD & BEVERAGES
19-MAY-2021,7011488,0.65,TOTAL PRODUCE GATESHEAD,399244,Commissioning & Asset Management,Children's & Education Services,103,Supplies and Services,504,Equipment,5023,Revenue,CATERING.FOOD & BEVERAGES
19-MAY-2021,7011488,0.65,TOTAL PRODUCE GATESHEAD,399244,Commissioning & Asset Management,Children's & Education Services,103,Supplies and Services,504,Equipment,5023,Revenue,CATERING.FOOD & BEVERAGES
19-MAY-2021,7011488,0.65,TOTAL PRODUCE GATESHEAD,399244,Commissioning & Asset Management,Children's & Education Services,103,Supplies and Services,504,Equipment,5023,Revenue,CATERING.FOOD & BEVERAGES
19-MAY-2021,7011488,0.65,TOTAL PRODUCE GATESHEAD,399244,Commissioning & Asset Management,Children's & Education Services,103,Supplies and Services,504,Equipment,5023,Revenue,CATERING.FOOD & BEVERAGES
19-MAY-2021,7011488,0.65,TOTAL PRODUCE GATESHEAD,399244,Commissioning & Asset Management,Children's & Education Services,103,Supplies and Services,504,Equipment,5023,Revenue,CATERING.FOOD & BEVERAGES
19-MAY-2021,7011488,0.65,TOTAL PRODUCE GATESHEAD,399244,Commissioning & Asset Management,Children's & Education Services,103,Supplies and Services,504,Equipment,5023,Revenue,CATERING.FOOD & BEVERAGES
19-MAY-2021,7011488,0.65,TOTAL PRODUCE GATESHEAD,399244,Commissioning & Asset Management,Children's & Education Services,103,Supplies and Services,504,Equipment,5023,Revenue,CATERING.FOOD & BEVERAGES
19-MAY-2021,7011488,0.65,TOTAL PRODUCE GATESHEAD,399244,Commissioning & Asset Management,Children's & Education Services,103,Supplies and Services,504,Equipment,5023,Revenue,CATERING.FOOD & BEVERAGES
19-MAY-2021,7011488,0.65,TOTAL PRODUCE GATESHEAD,399244,Commissioning & Asset Management,Children's & Education Services,103,Supplies and Services,504,Equipment,5023,Revenue,CATERING.FOOD & BEVERAGES
19-MAY-2021,7011488,0.65,TOTAL PRODUCE GATESHEAD,399244,Commissioning & Asset Management,Children's & Education Services,103,Supplies and Services,504,Equipment,5023,Revenue,CATERING.FOOD & BEVERAGES
19-MAY-2021,7011488,0.65,TOTAL PRODUCE GATESHEAD,399244,Commissioning & Asset Management,Children's & Education Services,103,Supplies and Services,504,Equipment,5023,Revenue,CATERING.FOOD & BEVERAGES
19-MAY-2021,7011488,0.65,TOTAL PRODUCE GATESHEAD,399244,Commissioning & Asset Management,Children's & Education Services,103,Supplies and Services,504,Equipment,5023,Revenue,CATERING.FOOD & BEVERAGES
19-MAY-2021,7011488,0.65,TOTAL PRODUCE GATESHEAD,399244,Commissioning & Asset Management,Children's & Education Services,103,Supplies and Services,504,Equipment,5023,Revenue,CATERING.FOOD & BEVERAGES
19-MAY-2021,7011488,0.65,TOTAL PRODUCE GATESHEAD,399244,Commissioning & Asset Management,Children's & Education Services,103,Supplies and Services,504,Equipment,5023,Revenue,CATERING.FOOD & BEVERAGES
19-MAY-2021,7011488,0.65,TOTAL PRODUCE GATESHEAD,399244,Commissioning & Asset Management,Children's & Education Services,103,Supplies and Services,504,Equipment,5023,Revenue,CATERING.FOOD & BEVERAGES
19-MAY-2021,7011488,0.65,TOTAL PRODUCE GATESHEAD,399244,Commissioning & Asset Management,Children's & Education Services,103,Supplies and Services,504,Equipment,5023,Revenue,CATERING.FOOD & BEVERAGES
19-MAY-2021,7011488,0.65,TOTAL PRODUCE GATESHEAD,399244,Commissioning & Asset Management,Children's & Education Services,103,Supplies and Services,504,Equipment,5023,Revenue,CATERING.FOOD & BEVERAGES
19-MAY-2021,7011488,0.65,TOTAL PRODUCE GATESHEAD,399244,Commissioning & Asset Management,Children's & Education Services,103,Supplies and Services,504,Equipment,5023,Revenue,CATERING.FOOD & BEVERAGES
19-MAY-2021,7011488,0.65,TOTAL PRODUCE GATESHEAD,399244,Commissioning & Asset Management,Children's & Education Services,103,Supplies and Services,504,Equipment,5023,Revenue,CATERING.FOOD & BEVERAGES
19-MAY-2021,7011488,0.65,TOTAL PRODUCE GATESHEAD,399244,Commissioning & Asset Management,Children's & Education Services,103,Supplies and Services,504,Equipment,5023,Revenue,CATERING.FOOD & BEVERAGES
19-MAY-2021,7011488,0.65,TOTAL PRODUCE GATESHEAD,399244,Commissioning & Asset Management,Children's & Education Services,103,Supplies and Services,504,Equipment,5023,Revenue,CATERING.FOOD & BEVERAGES
19-MAY-2021,7011488,0.65,TOTAL PRODUCE GATESHEAD,399244,Commissioning & Asset Management,Children's & Education Services,103,Supplies and Services,504,Equipment,5023,Revenue,CATERING.FOOD & BEVERAGES
19-MAY-2021,7011488,0.65,TOTAL PRODUCE GATESHEAD,399244,Commissioning & Asset Management,Children's & Education Services,103,Supplies and Services,504,Equipment,5023,Revenue,CATERING.FOOD & BEVERAGES
19-MAY-2021,7011488,0.65,TOTAL PRODUCE GATESHEAD,399244,Commissioning & Asset Management,Children's & Education Services,103,Supplies and Services,504,Equipment,5023,Revenue,CATERING.FOOD & BEVERAGES
19-MAY-2021,7011488,0.65,TOTAL PRODUCE GATESHEAD,399244,Commissioning & Asset Management,Children's & Education Services,103,Supplies and Services,504,Equipment,5023,Revenue,CATERING.FOOD & BEVERAGES
19-MAY-2021,7011488,0.65,TOTAL PRODUCE GATESHEAD,399244,Commissioning & Asset Management,Children's & Education Services,103,Supplies and Services,504,Equipment,5023,Revenue,CATERING.FOOD & BEVERAGES
19-MAY-2021,7011488,0.65,TOTAL PRODUCE GATESHEAD,399244,Commissioning & Asset Management,Children's & Education Services,103,Supplies and Services,504,Equipment,5023,Revenue,CATERING.FOOD & BEVERAGES
19-MAY-2021,7011488,0.65,TOTAL PRODUCE GATESHEAD,399244,Commissioning & Asset Management,Children's & Education Services,103,Supplies and Services,504,Equipment,5023,Revenue,CATERING.FOOD & BEVERAGES
19-MAY-2021,7011488,0.69,TOTAL PRODUCE GATESHEAD,399244,Commissioning & Asset Management,Children's & Education Services,103,Supplies and Services,504,Equipment,5023,Revenue,CATERING.FOOD & BEVERAGES
19-MAY-2021,7011488,0.69,TOTAL PRODUCE GATESHEAD,399244,Commissioning & Asset Management,Children's & Education Services,103,Supplies and Services,504,Equipment,5023,Revenue,CATERING.FOOD & BEVERAGES
19-MAY-2021,7011488,0.72,TOTAL PRODUCE GATESHEAD,399244,Commissioning & Asset Management,Children's & Education Services,103,Supplies and Services,504,Equipment,5023,Revenue,CATERING.FOOD & BEVERAGES
19-MAY-2021,7011488,0.72,TOTAL PRODUCE GATESHEAD,399244,Commissioning & Asset Management,Children's & Education Services,103,Supplies and Services,504,Equipment,5023,Revenue,CATERING.FOOD & BEVERAGES
19-MAY-2021,7011488,0.73,TOTAL PRODUCE GATESHEAD,399244,"Environment, Housing & Leisure",Cultural & Related Services,104,Supplies and Services,504,Equipment,5023,Revenue,CATERING.FOOD & BEVERAGES
19-MAY-2021,7011488,0.74,TOTAL PRODUCE GATESHEAD,399244,Commissioning & Asset Management,Children's & Education Services,103,Supplies and Services,504,Equipment,5023,Revenue,CATERING.FOOD & BEVERAGES
19-MAY-2021,7011488,0.74,TOTAL PRODUCE GATESHEAD,399244,Commissioning & Asset Management,Children's & Education Services,103,Supplies and Services,504,Equipment,5023,Revenue,CATERING.FOOD & BEVERAGES
19-MAY-2021,7011488,0.74,TOTAL PRODUCE GATESHEAD,399244,Commissioning & Asset Management,Children's & Education Services,103,Supplies and Services,504,Equipment,5023,Revenue,CATERING.FOOD & BEVERAGES
19-MAY-2021,7011488,0.74,TOTAL PRODUCE GATESHEAD,399244,Commissioning & Asset Management,Children's & Education Services,103,Supplies and Services,504,Equipment,5023,Revenue,CATERING.FOOD & BEVERAGES
19-MAY-2021,7011488,0.74,TOTAL PRODUCE GATESHEAD,399244,Commissioning & Asset Management,Children's & Education Services,103,Supplies and Services,504,Equipment,5023,Revenue,CATERING.FOOD & BEVERAGES
19-MAY-2021,7011488,0.74,TOTAL PRODUCE GATESHEAD,399244,Commissioning & Asset Management,Children's & Education Services,103,Supplies and Services,504,Equipment,5023,Revenue,CATERING.FOOD & BEVERAGES
19-MAY-2021,7011488,0.74,TOTAL PRODUCE GATESHEAD,399244,Commissioning & Asset Management,Children's & Education Services,103,Supplies and Services,504,Equipment,5023,Revenue,CATERING.FOOD & BEVERAGES
19-MAY-2021,7011488,0.74,TOTAL PRODUCE GATESHEAD,399244,Commissioning & Asset Management,Children's & Education Services,103,Supplies and Services,504,Equipment,5023,Revenue,CATERING.FOOD & BEVERAGES
19-MAY-2021,7011488,0.74,TOTAL PRODUCE GATESHEAD,399244,Commissioning & Asset Management,Children's & Education Services,103,Supplies and Services,504,Equipment,5023,Revenue,CATERING.FOOD & BEVERAGES
19-MAY-2021,7011488,0.74,TOTAL PRODUCE GATESHEAD,399244,Commissioning & Asset Management,Children's & Education Services,103,Supplies and Services,504,Equipment,5023,Revenue,CATERING.FOOD & BEVERAGES
19-MAY-2021,7011488,0.74,TOTAL PRODUCE GATESHEAD,399244,Commissioning & Asset Management,Children's & Education Services,103,Supplies and Services,504,Equipment,5023,Revenue,CATERING.FOOD & BEVERAGES
19-MAY-2021,7011488,0.75,TOTAL PRODUCE GATESHEAD,399244,Commissioning & Asset Management,Children's & Education Services,103,Supplies and Services,504,Equipment,5023,Revenue,CATERING.FOOD & BEVERAGES
19-MAY-2021,7011488,0.75,TOTAL PRODUCE GATESHEAD,399244,Commissioning & Asset Management,Children's & Education Services,103,Supplies and Services,504,Equipment,5023,Revenue,CATERING.FOOD & BEVERAGES
19-MAY-2021,7011488,0.75,TOTAL PRODUCE GATESHEAD,399244,Commissioning & Asset Management,Children's & Education Services,103,Supplies and Services,504,Equipment,5023,Revenue,CATERING.FOOD & BEVERAGES
19-MAY-2021,7011488,0.75,TOTAL PRODUCE GATESHEAD,399244,Commissioning & Asset Management,Children's & Education Services,103,Supplies and Services,504,Equipment,5023,Revenue,CATERING.FOOD & BEVERAGES
19-MAY-2021,7011488,0.75,TOTAL PRODUCE GATESHEAD,399244,Commissioning & Asset Management,Children's & Education Services,103,Supplies and Services,504,Equipment,5023,Revenue,CATERING.FOOD & BEVERAGES
19-MAY-2021,7011488,0.75,TOTAL PRODUCE GATESHEAD,399244,Commissioning & Asset Management,Children's & Education Services,103,Supplies and Services,504,Equipment,5023,Revenue,CATERING.FOOD & BEVERAGES
19-MAY-2021,7011488,0.75,TOTAL PRODUCE GATESHEAD,399244,Commissioning & Asset Management,Children's & Education Services,103,Supplies and Services,504,Equipment,5023,Revenue,CATERING.FOOD & BEVERAGES
19-MAY-2021,7011488,0.75,TOTAL PRODUCE GATESHEAD,399244,Commissioning & Asset Management,Children's & Education Services,103,Supplies and Services,504,Equipment,5023,Revenue,CATERING.FOOD & BEVERAGES
19-MAY-2021,7011488,0.75,TOTAL PRODUCE GATESHEAD,399244,Commissioning & Asset Management,Children's & Education Services,103,Supplies and Services,504,Equipment,5023,Revenue,CATERING.FOOD & BEVERAGES
19-MAY-2021,7011488,0.75,TOTAL PRODUCE GATESHEAD,399244,Commissioning & Asset Management,Children's & Education Services,103,Supplies and Services,504,Equipment,5023,Revenue,CATERING.FOOD & BEVERAGES
19-MAY-2021,7011488,0.75,TOTAL PRODUCE GATESHEAD,399244,Commissioning & Asset Management,Children's & Education Services,103,Supplies and Services,504,Equipment,5023,Revenue,CATERING.FOOD & BEVERAGES
19-MAY-2021,7011488,0.75,TOTAL PRODUCE GATESHEAD,399244,Commissioning & Asset Management,Children's & Education Services,103,Supplies and Services,504,Equipment,5023,Revenue,CATERING.FOOD & BEVERAGES
19-MAY-2021,7011488,0.75,TOTAL PRODUCE GATESHEAD,399244,Commissioning & Asset Management,Children's & Education Services,103,Supplies and Services,504,Equipment,5023,Revenue,CATERING.FOOD & BEVERAGES
19-MAY-2021,7011488,0.75,TOTAL PRODUCE GATESHEAD,399244,Commissioning & Asset Management,Children's & Education Services,103,Supplies and Services,504,Equipment,5023,Revenue,CATERING.FOOD & BEVERAGES
19-MAY-2021,7011488,0.75,TOTAL PRODUCE GATESHEAD,399244,Commissioning & Asset Management,Children's & Education Services,103,Supplies and Services,504,Equipment,5023,Revenue,CATERING.FOOD & BEVERAGES
19-MAY-2021,7011488,0.75,TOTAL PRODUCE GATESHEAD,399244,Commissioning & Asset Management,Children's & Education Services,103,Supplies and Services,504,Equipment,5023,Revenue,CATERING.FOOD & BEVERAGES
19-MAY-2021,7011488,0.75,TOTAL PRODUCE GATESHEAD,399244,Commissioning & Asset Management,Children's & Education Services,103,Supplies and Services,504,Equipment,5023,Revenue,CATERING.FOOD & BEVERAGES
19-MAY-2021,7011488,0.75,TOTAL PRODUCE GATESHEAD,399244,Commissioning & Asset Management,Children's & Education Services,103,Supplies and Services,504,Equipment,5023,Revenue,CATERING.FOOD & BEVERAGES
19-MAY-2021,7011488,0.75,TOTAL PRODUCE GATESHEAD,399244,Commissioning & Asset Management,Children's & Education Services,103,Supplies and Services,504,Equipment,5023,Revenue,CATERING.FOOD & BEVERAGES
19-MAY-2021,7011488,0.75,TOTAL PRODUCE GATESHEAD,399244,Commissioning & Asset Management,Children's & Education Services,103,Supplies and Services,504,Equipment,5023,Revenue,CATERING.FOOD & BEVERAGES
19-MAY-2021,7011488,0.75,TOTAL PRODUCE GATESHEAD,399244,Commissioning & Asset Management,Children's & Education Services,103,Supplies and Services,504,Equipment,5023,Revenue,CATERING.FOOD & BEVERAGES
19-MAY-2021,7011488,0.75,TOTAL PRODUCE GATESHEAD,399244,Commissioning & Asset Management,Children's & Education Services,103,Supplies and Services,504,Equipment,5023,Revenue,CATERING.FOOD & BEVERAGES
19-MAY-2021,7011488,0.75,TOTAL PRODUCE GATESHEAD,399244,Commissioning & Asset Management,Children's & Education Services,103,Supplies and Services,504,Equipment,5023,Revenue,CATERING.FOOD & BEVERAGES
19-MAY-2021,7011488,0.78,TOTAL PRODUCE GATESHEAD,399244,"Environment, Housing & Leisure",Adult Social Care,101,Supplies and Services,504,Equipment,5023,Revenue,CATERING.FOOD & BEVERAGES
19-MAY-2021,7011488,0.78,TOTAL PRODUCE GATESHEAD,399244,"Environment, Housing & Leisure",Cultural & Related Services,104,Premises-Related Expenditure,502,Cleaning and Domestic Supplies,5012,Revenue,CATERING.FOOD & BEVERAGES
19-MAY-2021,7011488,0.78,TOTAL PRODUCE GATESHEAD,399244,"Environment, Housing & Leisure",Cultural & Related Services,104,Supplies and Services,504,Equipment,5023,Revenue,CATERING.FOOD & BEVERAGES
19-MAY-2021,7011488,0.78,TOTAL PRODUCE GATESHEAD,399244,"Environment, Housing & Leisure",Cultural & Related Services,104,Supplies and Services,504,Equipment,5023,Revenue,CATERING.FOOD & BEVERAGES
19-MAY-2021,7011488,0.79,TOTAL PRODUCE GATESHEAD,399244,"Environment, Housing & Leisure",Adult Social Care,101,Supplies and Services,504,Equipment,5023,Revenue,CATERING.FOOD & BEVERAGES
19-MAY-2021,7011488,0.79,TOTAL PRODUCE GATESHEAD,399244,Commissioning & Asset Management,Children's & Education Services,103,Supplies and Services,504,Equipment,5023,Revenue,CATERING.FOOD & BEVERAGES
19-MAY-2021,7011488,0.79,TOTAL PRODUCE GATESHEAD,399244,Commissioning & Asset Management,Children's & Education Services,103,Supplies and Services,504,Equipment,5023,Revenue,CATERING.FOOD & BEVERAGES
19-MAY-2021,7011488,0.79,TOTAL PRODUCE GATESHEAD,399244,"Environment, Housing & Leisure",Cultural & Related Services,104,Premises-Related Expenditure,502,Cleaning and Domestic Supplies,5012,Revenue,CATERING.FOOD & BEVERAGES
19-MAY-2021,7011488,0.79,TOTAL PRODUCE GATESHEAD,399244,"Environment, Housing & Leisure",Cultural & Related Services,104,Supplies and Services,504,Equipment,5023,Revenue,CATERING.FOOD & BEVERAGES
19-MAY-2021,7011488,0.79,TOTAL PRODUCE GATESHEAD,399244,"Environment, Housing & Leisure",Cultural & Related Services,104,Supplies and Services,504,Equipment,5023,Revenue,CATERING.FOOD & BEVERAGES
19-MAY-2021,7011488,0.79,TOTAL PRODUCE GATESHEAD,399244,"Environment, Housing & Leisure",Cultural & Related Services,104,Supplies and Services,504,Equipment,5023,Revenue,CATERING.FOOD & BEVERAGES
19-MAY-2021,7011488,0.79,TOTAL PRODUCE GATESHEAD,399244,"Environment, Housing & Leisure",Cultural & Related Services,104,Supplies and Services,504,Equipment,5023,Revenue,CATERING.FOOD & BEVERAGES
19-MAY-2021,7011488,0.79,TOTAL PRODUCE GATESHEAD,399244,"Environment, Housing & Leisure",Cultural & Related Services,104,Supplies and Services,504,Equipment,5023,Revenue,CATERING.FOOD & BEVERAGES
19-MAY-2021,7011488,0.83,TOTAL PRODUCE GATESHEAD,399244,"Environment, Housing & Leisure",Cultural & Related Services,104,Supplies and Services,504,Equipment,5023,Revenue,CATERING.FOOD & BEVERAGES
19-MAY-2021,7011488,0.85,TOTAL PRODUCE GATESHEAD,399244,Commissioning & Asset Management,Children's & Education Services,103,Supplies and Services,504,Equipment,5023,Revenue,CATERING.FOOD & BEVERAGES
19-MAY-2021,7011488,0.85,TOTAL PRODUCE GATESHEAD,399244,Commissioning & Asset Management,Children's & Education Services,103,Supplies and Services,504,Equipment,5023,Revenue,CATERING.FOOD & BEVERAGES
19-MAY-2021,7011488,0.85,TOTAL PRODUCE GATESHEAD,399244,Commissioning & Asset Management,Children's & Education Services,103,Supplies and Services,504,Equipment,5023,Revenue,CATERING.FOOD & BEVERAGES
19-MAY-2021,7011488,0.85,TOTAL PRODUCE GATESHEAD,399244,Commissioning & Asset Management,Children's & Education Services,103,Supplies and Services,504,Equipment,5023,Revenue,CATERING.FOOD & BEVERAGES
19-MAY-2021,7011488,0.85,TOTAL PRODUCE GATESHEAD,399244,Commissioning & Asset Management,Children's & Education Services,103,Supplies and Services,504,Equipment,5023,Revenue,CATERING.FOOD & BEVERAGES
19-MAY-2021,7011488,0.85,TOTAL PRODUCE GATESHEAD,399244,Commissioning & Asset Management,Children's & Education Services,103,Supplies and Services,504,Equipment,5023,Revenue,CATERING.FOOD & BEVERAGES
19-MAY-2021,7011488,0.85,TOTAL PRODUCE GATESHEAD,399244,Commissioning & Asset Management,Children's & Education Services,103,Supplies and Services,504,Equipment,5023,Revenue,CATERING.FOOD & BEVERAGES
19-MAY-2021,7011488,0.85,TOTAL PRODUCE GATESHEAD,399244,Commissioning & Asset Management,Children's & Education Services,103,Supplies and Services,504,Equipment,5023,Revenue,CATERING.FOOD & BEVERAGES
19-MAY-2021,7011488,0.85,TOTAL PRODUCE GATESHEAD,399244,Commissioning & Asset Management,Children's & Education Services,103,Supplies and Services,504,Equipment,5023,Revenue,CATERING.FOOD & BEVERAGES
19-MAY-2021,7011488,0.85,TOTAL PRODUCE GATESHEAD,399244,Commissioning & Asset Management,Children's & Education Services,103,Supplies and Services,504,Equipment,5023,Revenue,CATERING.FOOD & BEVERAGES
19-MAY-2021,7011488,0.85,TOTAL PRODUCE GATESHEAD,399244,Commissioning & Asset Management,Children's & Education Services,103,Supplies and Services,504,Equipment,5023,Revenue,CATERING.FOOD & BEVERAGES
19-MAY-2021,7011488,0.85,TOTAL PRODUCE GATESHEAD,399244,Commissioning & Asset Management,Children's & Education Services,103,Supplies and Services,504,Equipment,5023,Revenue,CATERING.FOOD & BEVERAGES
19-MAY-2021,7011488,0.85,TOTAL PRODUCE GATESHEAD,399244,Commissioning & Asset Management,Children's & Education Services,103,Supplies and Services,504,Equipment,5023,Revenue,CATERING.FOOD & BEVERAGES
19-MAY-2021,7011488,0.85,TOTAL PRODUCE GATESHEAD,399244,Commissioning & Asset Management,Children's & Education Services,103,Supplies and Services,504,Equipment,5023,Revenue,CATERING.FOOD & BEVERAGES
19-MAY-2021,7011488,0.85,TOTAL PRODUCE GATESHEAD,399244,Commissioning & Asset Management,Children's & Education Services,103,Supplies and Services,504,Equipment,5023,Revenue,CATERING.FOOD & BEVERAGES
19-MAY-2021,7011488,0.85,TOTAL PRODUCE GATESHEAD,399244,Commissioning & Asset Management,Children's & Education Services,103,Supplies and Services,504,Equipment,5023,Revenue,CATERING.FOOD & BEVERAGES
19-MAY-2021,7011488,0.85,TOTAL PRODUCE GATESHEAD,399244,Commissioning & Asset Management,Children's & Education Services,103,Supplies and Services,504,Equipment,5023,Revenue,CATERING.FOOD & BEVERAGES
19-MAY-2021,7011488,0.85,TOTAL PRODUCE GATESHEAD,399244,Commissioning & Asset Management,Children's & Education Services,103,Supplies and Services,504,Equipment,5023,Revenue,CATERING.FOOD & BEVERAGES
19-MAY-2021,7011488,0.87,TOTAL PRODUCE GATESHEAD,399244,"Environment, Housing & Leisure",Adult Social Care,101,Supplies and Services,504,Equipment,5023,Revenue,CATERING.FOOD & BEVERAGES
19-MAY-2021,7011488,0.92,TOTAL PRODUCE GATESHEAD,399244,Commissioning & Asset Management,Children's & Education Services,103,Supplies and Services,504,Equipment,5023,Revenue,CATERING.FOOD & BEVERAGES
19-MAY-2021,7011488,0.92,TOTAL PRODUCE GATESHEAD,399244,Commissioning & Asset Management,Children's & Education Services,103,Supplies and Services,504,Equipment,5023,Revenue,CATERING.FOOD & BEVERAGES
19-MAY-2021,7011488,0.92,TOTAL PRODUCE GATESHEAD,399244,Commissioning & Asset Management,Children's & Education Services,103,Supplies and Services,504,Equipment,5023,Revenue,CATERING.FOOD & BEVERAGES
19-MAY-2021,7011488,0.92,TOTAL PRODUCE GATESHEAD,399244,Commissioning & Asset Management,Children's & Education Services,103,Supplies and Services,504,Equipment,5023,Revenue,CATERING.FOOD & BEVERAGES
19-MAY-2021,7011488,0.92,TOTAL PRODUCE GATESHEAD,399244,Commissioning & Asset Management,Children's & Education Services,103,Supplies and Services,504,Equipment,5023,Revenue,CATERING.FOOD & BEVERAGES
19-MAY-2021,7011488,0.92,TOTAL PRODUCE GATESHEAD,399244,Commissioning & Asset Management,Children's & Education Services,103,Supplies and Services,504,Equipment,5023,Revenue,CATERING.FOOD & BEVERAGES
19-MAY-2021,7011488,0.95,TOTAL PRODUCE GATESHEAD,399244,Commissioning & Asset Management,Children's & Education Services,103,Supplies and Services,504,Equipment,5023,Revenue,CATERING.FOOD & BEVERAGES
19-MAY-2021,7011488,0.96,TOTAL PRODUCE GATESHEAD,399244,Commissioning & Asset Management,Children's & Education Services,103,Supplies and Services,504,Equipment,5023,Revenue,CATERING.FOOD & BEVERAGES
19-MAY-2021,7011488,0.96,TOTAL PRODUCE GATESHEAD,399244,Commissioning & Asset Management,Children's & Education Services,103,Supplies and Services,504,Equipment,5023,Revenue,CATERING.FOOD & BEVERAGES
19-MAY-2021,7011488,0.96,TOTAL PRODUCE GATESHEAD,399244,Commissioning & Asset Management,Children's & Education Services,103,Supplies and Services,504,Equipment,5023,Revenue,CATERING.FOOD & BEVERAGES
19-MAY-2021,7011488,0.96,TOTAL PRODUCE GATESHEAD,399244,Commissioning & Asset Management,Children's & Education Services,103,Supplies and Services,504,Equipment,5023,Revenue,CATERING.FOOD & BEVERAGES
19-MAY-2021,7011488,0.96,TOTAL PRODUCE GATESHEAD,399244,Commissioning & Asset Management,Children's & Education Services,103,Supplies and Services,504,Equipment,5023,Revenue,CATERING.FOOD & BEVERAGES
19-MAY-2021,7011488,0.96,TOTAL PRODUCE GATESHEAD,399244,Commissioning & Asset Management,Children's & Education Services,103,Supplies and Services,504,Equipment,5023,Revenue,CATERING.FOOD & BEVERAGES
19-MAY-2021,7011488,0.98,TOTAL PRODUCE GATESHEAD,399244,Commissioning & Asset Management,Children's & Education Services,103,Supplies and Services,504,Equipment,5023,Revenue,CATERING.FOOD & BEVERAGES
19-MAY-2021,7011488,0.98,TOTAL PRODUCE GATESHEAD,399244,Commissioning & Asset Management,Children's & Education Services,103,Supplies and Services,504,Equipment,5023,Revenue,CATERING.FOOD & BEVERAGES
19-MAY-2021,7011488,0.98,TOTAL PRODUCE GATESHEAD,399244,Commissioning & Asset Management,Children's & Education Services,103,Supplies and Services,504,Equipment,5023,Revenue,CATERING.FOOD & BEVERAGES
19-MAY-2021,7011488,0.98,TOTAL PRODUCE GATESHEAD,399244,Commissioning & Asset Management,Children's & Education Services,103,Supplies and Services,504,Equipment,5023,Revenue,CATERING.FOOD & BEVERAGES
19-MAY-2021,7011488,0.98,TOTAL PRODUCE GATESHEAD,399244,Commissioning & Asset Management,Children's & Education Services,103,Supplies and Services,504,Equipment,5023,Revenue,CATERING.FOOD & BEVERAGES
19-MAY-2021,7011488,0.98,TOTAL PRODUCE GATESHEAD,399244,Commissioning & Asset Management,Children's & Education Services,103,Supplies and Services,504,Equipment,5023,Revenue,CATERING.FOOD & BEVERAGES
19-MAY-2021,7011488,1,TOTAL PRODUCE GATESHEAD,399244,Commissioning & Asset Management,Children's & Education Services,103,Supplies and Services,504,Equipment,5023,Revenue,CATERING.FOOD & BEVERAGES
19-MAY-2021,7011488,1,TOTAL PRODUCE GATESHEAD,399244,Commissioning & Asset Management,Children's & Education Services,103,Supplies and Services,504,Equipment,5023,Revenue,CATERING.FOOD & BEVERAGES
19-MAY-2021,7011488,1,TOTAL PRODUCE GATESHEAD,399244,Commissioning & Asset Management,Children's & Education Services,103,Supplies and Services,504,Equipment,5023,Revenue,CATERING.FOOD & BEVERAGES
19-MAY-2021,7011488,1,TOTAL PRODUCE GATESHEAD,399244,Commissioning & Asset Management,Children's & Education Services,103,Supplies and Services,504,Equipment,5023,Revenue,CATERING.FOOD & BEVERAGES
19-MAY-2021,7011488,1,TOTAL PRODUCE GATESHEAD,399244,Commissioning & Asset Management,Children's & Education Services,103,Supplies and Services,504,Equipment,5023,Revenue,CATERING.FOOD & BEVERAGES
19-MAY-2021,7011488,1,TOTAL PRODUCE GATESHEAD,399244,Commissioning & Asset Management,Children's & Education Services,103,Supplies and Services,504,Equipment,5023,Revenue,CATERING.FOOD & BEVERAGES
19-MAY-2021,7011488,1,TOTAL PRODUCE GATESHEAD,399244,Commissioning & Asset Management,Children's & Education Services,103,Supplies and Services,504,Equipment,5023,Revenue,CATERING.FOOD & BEVERAGES
19-MAY-2021,7011488,1,TOTAL PRODUCE GATESHEAD,399244,Commissioning & Asset Management,Children's & Education Services,103,Supplies and Services,504,Equipment,5023,Revenue,CATERING.FOOD & BEVERAGES
19-MAY-2021,7011488,1,TOTAL PRODUCE GATESHEAD,399244,Commissioning & Asset Management,Children's & Education Services,103,Supplies and Services,504,Equipment,5023,Revenue,CATERING.FOOD & BEVERAGES
19-MAY-2021,7011488,1,TOTAL PRODUCE GATESHEAD,399244,Commissioning & Asset Management,Children's & Education Services,103,Supplies and Services,504,Equipment,5023,Revenue,CATERING.FOOD & BEVERAGES
19-MAY-2021,7011488,1,TOTAL PRODUCE GATESHEAD,399244,Commissioning & Asset Management,Children's & Education Services,103,Supplies and Services,504,Equipment,5023,Revenue,CATERING.FOOD & BEVERAGES
19-MAY-2021,7011488,1,TOTAL PRODUCE GATESHEAD,399244,Commissioning & Asset Management,Children's & Education Services,103,Supplies and Services,504,Equipment,5023,Revenue,CATERING.FOOD & BEVERAGES
19-MAY-2021,7011488,1,TOTAL PRODUCE GATESHEAD,399244,Commissioning & Asset Management,Children's & Education Services,103,Supplies and Services,504,Equipment,5023,Revenue,CATERING.FOOD & BEVERAGES
19-MAY-2021,7011488,1,TOTAL PRODUCE GATESHEAD,399244,Commissioning & Asset Management,Children's & Education Services,103,Supplies and Services,504,Equipment,5023,Revenue,CATERING.FOOD & BEVERAGES
19-MAY-2021,7011488,1,TOTAL PRODUCE GATESHEAD,399244,Commissioning & Asset Management,Children's & Education Services,103,Supplies and Services,504,Equipment,5023,Revenue,CATERING.FOOD & BEVERAGES
19-MAY-2021,7011488,1,TOTAL PRODUCE GATESHEAD,399244,Commissioning & Asset Management,Children's & Education Services,103,Supplies and Services,504,Equipment,5023,Revenue,CATERING.FOOD & BEVERAGES
19-MAY-2021,7011488,1,TOTAL PRODUCE GATESHEAD,399244,Commissioning & Asset Management,Children's & Education Services,103,Supplies and Services,504,Equipment,5023,Revenue,CATERING.FOOD & BEVERAGES
19-MAY-2021,7011488,1,TOTAL PRODUCE GATESHEAD,399244,Commissioning & Asset Management,Children's & Education Services,103,Supplies and Services,504,Equipment,5023,Revenue,CATERING.FOOD & BEVERAGES
19-MAY-2021,7011488,1,TOTAL PRODUCE GATESHEAD,399244,Commissioning & Asset Management,Children's & Education Services,103,Supplies and Services,504,Equipment,5023,Revenue,CATERING.FOOD & BEVERAGES
19-MAY-2021,7011488,1,TOTAL PRODUCE GATESHEAD,399244,Commissioning & Asset Management,Children's & Education Services,103,Supplies and Services,504,Equipment,5023,Revenue,CATERING.FOOD & BEVERAGES
19-MAY-2021,7011488,1,TOTAL PRODUCE GATESHEAD,399244,Commissioning & Asset Management,Children's & Education Services,103,Supplies and Services,504,Equipment,5023,Revenue,CATERING.FOOD & BEVERAGES
19-MAY-2021,7011488,1,TOTAL PRODUCE GATESHEAD,399244,Commissioning & Asset Management,Children's & Education Services,103,Supplies and Services,504,Equipment,5023,Revenue,CATERING.FOOD & BEVERAGES
19-MAY-2021,7011488,1,TOTAL PRODUCE GATESHEAD,399244,Commissioning & Asset Management,Children's & Education Services,103,Supplies and Services,504,Equipment,5023,Revenue,CATERING.FOOD & BEVERAGES
19-MAY-2021,7011488,1,TOTAL PRODUCE GATESHEAD,399244,Commissioning & Asset Management,Children's & Education Services,103,Supplies and Services,504,Equipment,5023,Revenue,CATERING.FOOD & BEVERAGES
19-MAY-2021,7011488,1,TOTAL PRODUCE GATESHEAD,399244,Commissioning & Asset Management,Children's & Education Services,103,Supplies and Services,504,Equipment,5023,Revenue,CATERING.FOOD & BEVERAGES
19-MAY-2021,7011488,1,TOTAL PRODUCE GATESHEAD,399244,Commissioning & Asset Management,Children's & Education Services,103,Supplies and Services,504,Equipment,5023,Revenue,CATERING.FOOD & BEVERAGES
19-MAY-2021,7011488,1,TOTAL PRODUCE GATESHEAD,399244,Commissioning & Asset Management,Children's & Education Services,103,Supplies and Services,504,Equipment,5023,Revenue,CATERING.FOOD & BEVERAGES
19-MAY-2021,7011488,1,TOTAL PRODUCE GATESHEAD,399244,Commissioning & Asset Management,Children's & Education Services,103,Supplies and Services,504,Equipment,5023,Revenue,CATERING.FOOD & BEVERAGES
19-MAY-2021,7011488,1,TOTAL PRODUCE GATESHEAD,399244,Commissioning & Asset Management,Children's & Education Services,103,Supplies and Services,504,Equipment,5023,Revenue,CATERING.FOOD & BEVERAGES
19-MAY-2021,7011488,1,TOTAL PRODUCE GATESHEAD,399244,Commissioning & Asset Management,Children's & Education Services,103,Supplies and Services,504,Equipment,5023,Revenue,CATERING.FOOD & BEVERAGES
19-MAY-2021,7011488,1,TOTAL PRODUCE GATESHEAD,399244,Commissioning & Asset Management,Children's & Education Services,103,Supplies and Services,504,Equipment,5023,Revenue,CATERING.FOOD & BEVERAGES
19-MAY-2021,7011488,1,TOTAL PRODUCE GATESHEAD,399244,Commissioning & Asset Management,Children's & Education Services,103,Supplies and Services,504,Equipment,5023,Revenue,CATERING.FOOD & BEVERAGES
19-MAY-2021,7011488,1,TOTAL PRODUCE GATESHEAD,399244,Commissioning & Asset Management,Children's & Education Services,103,Supplies and Services,504,Equipment,5023,Revenue,CATERING.FOOD & BEVERAGES
19-MAY-2021,7011488,1,TOTAL PRODUCE GATESHEAD,399244,Commissioning & Asset Management,Children's & Education Services,103,Supplies and Services,504,Equipment,5023,Revenue,CATERING.FOOD & BEVERAGES
19-MAY-2021,7011488,1,TOTAL PRODUCE GATESHEAD,399244,Commissioning & Asset Management,Children's & Education Services,103,Supplies and Services,504,Equipment,5023,Revenue,CATERING.FOOD & BEVERAGES
19-MAY-2021,7011488,1,TOTAL PRODUCE GATESHEAD,399244,Commissioning & Asset Management,Children's & Education Services,103,Supplies and Services,504,Equipment,5023,Revenue,CATERING.FOOD & BEVERAGES
19-MAY-2021,7011488,1,TOTAL PRODUCE GATESHEAD,399244,Commissioning & Asset Management,Children's & Education Services,103,Supplies and Services,504,Equipment,5023,Revenue,CATERING.FOOD & BEVERAGES
19-MAY-2021,7011488,1,TOTAL PRODUCE GATESHEAD,399244,Commissioning & Asset Management,Children's & Education Services,103,Supplies and Services,504,Equipment,5023,Revenue,CATERING.FOOD & BEVERAGES
19-MAY-2021,7011488,1,TOTAL PRODUCE GATESHEAD,399244,Commissioning & Asset Management,Children's & Education Services,103,Supplies and Services,504,Equipment,5023,Revenue,CATERING.FOOD & BEVERAGES
19-MAY-2021,7011488,1,TOTAL PRODUCE GATESHEAD,399244,Commissioning & Asset Management,Children's & Education Services,103,Supplies and Services,504,Equipment,5023,Revenue,CATERING.FOOD & BEVERAGES
19-MAY-2021,7011488,1,TOTAL PRODUCE GATESHEAD,399244,Commissioning & Asset Management,Children's & Education Services,103,Supplies and Services,504,Equipment,5023,Revenue,CATERING.FOOD & BEVERAGES
19-MAY-2021,7011488,1,TOTAL PRODUCE GATESHEAD,399244,Commissioning & Asset Management,Children's & Education Services,103,Supplies and Services,504,Equipment,5023,Revenue,CATERING.FOOD & BEVERAGES
19-MAY-2021,7011488,1,TOTAL PRODUCE GATESHEAD,399244,Commissioning & Asset Management,Children's & Education Services,103,Supplies and Services,504,Equipment,5023,Revenue,CATERING.FOOD & BEVERAGES
19-MAY-2021,7011488,1,TOTAL PRODUCE GATESHEAD,399244,Commissioning & Asset Management,Children's & Education Services,103,Supplies and Services,504,Equipment,5023,Revenue,CATERING.FOOD & BEVERAGES
19-MAY-2021,7011488,1,TOTAL PRODUCE GATESHEAD,399244,Commissioning & Asset Management,Children's & Education Services,103,Supplies and Services,504,Equipment,5023,Revenue,CATERING.FOOD & BEVERAGES
19-MAY-2021,7011488,1,TOTAL PRODUCE GATESHEAD,399244,Commissioning & Asset Management,Children's & Education Services,103,Supplies and Services,504,Equipment,5023,Revenue,CATERING.FOOD & BEVERAGES
19-MAY-2021,7011488,1,TOTAL PRODUCE GATESHEAD,399244,Commissioning & Asset Management,Children's & Education Services,103,Supplies and Services,504,Equipment,5023,Revenue,CATERING.FOOD & BEVERAGES
19-MAY-2021,7011488,1,TOTAL PRODUCE GATESHEAD,399244,Commissioning & Asset Management,Children's & Education Services,103,Supplies and Services,504,Equipment,5023,Revenue,CATERING.FOOD & BEVERAGES
19-MAY-2021,7011488,1,TOTAL PRODUCE GATESHEAD,399244,Commissioning & Asset Management,Children's & Education Services,103,Supplies and Services,504,Equipment,5023,Revenue,CATERING.FOOD & BEVERAGES
19-MAY-2021,7011488,1,TOTAL PRODUCE GATESHEAD,399244,Commissioning & Asset Management,Children's & Education Services,103,Supplies and Services,504,Equipment,5023,Revenue,CATERING.FOOD & BEVERAGES
19-MAY-2021,7011488,1,TOTAL PRODUCE GATESHEAD,399244,Commissioning & Asset Management,Children's & Education Services,103,Supplies and Services,504,Equipment,5023,Revenue,CATERING.FOOD & BEVERAGES
19-MAY-2021,7011488,1,TOTAL PRODUCE GATESHEAD,399244,Commissioning & Asset Management,Children's & Education Services,103,Supplies and Services,504,Equipment,5023,Revenue,CATERING.FOOD & BEVERAGES
19-MAY-2021,7011488,1,TOTAL PRODUCE GATESHEAD,399244,Commissioning & Asset Management,Children's & Education Services,103,Supplies and Services,504,Equipment,5023,Revenue,CATERING.FOOD & BEVERAGES
19-MAY-2021,7011488,1,TOTAL PRODUCE GATESHEAD,399244,Commissioning & Asset Management,Children's & Education Services,103,Supplies and Services,504,Equipment,5023,Revenue,CATERING.FOOD & BEVERAGES
19-MAY-2021,7011488,1,TOTAL PRODUCE GATESHEAD,399244,Commissioning & Asset Management,Children's & Education Services,103,Supplies and Services,504,Equipment,5023,Revenue,CATERING.FOOD & BEVERAGES
19-MAY-2021,7011488,1,TOTAL PRODUCE GATESHEAD,399244,Commissioning & Asset Management,Children's & Education Services,103,Supplies and Services,504,Equipment,5023,Revenue,CATERING.FOOD & BEVERAGES
19-MAY-2021,7011488,1,TOTAL PRODUCE GATESHEAD,399244,Commissioning & Asset Management,Children's & Education Services,103,Supplies and Services,504,Equipment,5023,Revenue,CATERING.FOOD & BEVERAGES
19-MAY-2021,7011488,1,TOTAL PRODUCE GATESHEAD,399244,Commissioning & Asset Management,Children's & Education Services,103,Supplies and Services,504,Equipment,5023,Revenue,CATERING.FOOD & BEVERAGES
19-MAY-2021,7011488,1,TOTAL PRODUCE GATESHEAD,399244,Commissioning & Asset Management,Children's & Education Services,103,Supplies and Services,504,Equipment,5023,Revenue,CATERING.FOOD & BEVERAGES
19-MAY-2021,7011488,1,TOTAL PRODUCE GATESHEAD,399244,Commissioning & Asset Management,Children's & Education Services,103,Supplies and Services,504,Equipment,5023,Revenue,CATERING.FOOD & BEVERAGES
19-MAY-2021,7011488,1,TOTAL PRODUCE GATESHEAD,399244,Commissioning & Asset Management,Children's & Education Services,103,Supplies and Services,504,Equipment,5023,Revenue,CATERING.FOOD & BEVERAGES
19-MAY-2021,7011488,1,TOTAL PRODUCE GATESHEAD,399244,Commissioning & Asset Management,Children's & Education Services,103,Supplies and Services,504,Equipment,5023,Revenue,CATERING.FOOD & BEVERAGES
19-MAY-2021,7011488,1,TOTAL PRODUCE GATESHEAD,399244,Commissioning & Asset Management,Children's & Education Services,103,Supplies and Services,504,Equipment,5023,Revenue,CATERING.FOOD & BEVERAGES
19-MAY-2021,7011488,1,TOTAL PRODUCE GATESHEAD,399244,Commissioning & Asset Management,Children's & Education Services,103,Supplies and Services,504,Equipment,5023,Revenue,CATERING.FOOD & BEVERAGES
19-MAY-2021,7011488,1,TOTAL PRODUCE GATESHEAD,399244,Commissioning & Asset Management,Children's & Education Services,103,Supplies and Services,504,Equipment,5023,Revenue,CATERING.FOOD & BEVERAGES
19-MAY-2021,7011488,1,TOTAL PRODUCE GATESHEAD,399244,Commissioning & Asset Management,Children's & Education Services,103,Supplies and Services,504,Equipment,5023,Revenue,CATERING.FOOD & BEVERAGES
19-MAY-2021,7011488,1,TOTAL PRODUCE GATESHEAD,399244,Commissioning & Asset Management,Children's & Education Services,103,Supplies and Services,504,Equipment,5023,Revenue,CATERING.FOOD & BEVERAGES
19-MAY-2021,7011488,1,TOTAL PRODUCE GATESHEAD,399244,Commissioning & Asset Management,Children's & Education Services,103,Supplies and Services,504,Equipment,5023,Revenue,CATERING.FOOD & BEVERAGES
19-MAY-2021,7011488,1,TOTAL PRODUCE GATESHEAD,399244,Commissioning & Asset Management,Children's & Education Services,103,Supplies and Services,504,Equipment,5023,Revenue,CATERING.FOOD & BEVERAGES
19-MAY-2021,7011488,1,TOTAL PRODUCE GATESHEAD,399244,Commissioning & Asset Management,Children's & Education Services,103,Supplies and Services,504,Equipment,5023,Revenue,CATERING.FOOD & BEVERAGES
19-MAY-2021,7011488,1,TOTAL PRODUCE GATESHEAD,399244,Commissioning & Asset Management,Children's & Education Services,103,Supplies and Services,504,Equipment,5023,Revenue,CATERING.FOOD & BEVERAGES
19-MAY-2021,7011488,1,TOTAL PRODUCE GATESHEAD,399244,Commissioning & Asset Management,Children's & Education Services,103,Supplies and Services,504,Equipment,5023,Revenue,CATERING.FOOD & BEVERAGES
19-MAY-2021,7011488,1,TOTAL PRODUCE GATESHEAD,399244,Commissioning & Asset Management,Children's & Education Services,103,Supplies and Services,504,Equipment,5023,Revenue,CATERING.FOOD & BEVERAGES
19-MAY-2021,7011488,1.04,TOTAL PRODUCE GATESHEAD,399244,"Environment, Housing & Leisure",Adult Social Care,101,Supplies and Services,504,Equipment,5023,Revenue,CATERING.FOOD & BEVERAGES
19-MAY-2021,7011488,1.05,TOTAL PRODUCE GATESHEAD,399244,"Environment, Housing & Leisure",Adult Social Care,101,Supplies and Services,504,Equipment,5023,Revenue,CATERING.FOOD & BEVERAGES
19-MAY-2021,7011488,1.05,TOTAL PRODUCE GATESHEAD,399244,Commissioning & Asset Management,Children's & Education Services,103,Supplies and Services,504,Equipment,5023,Revenue,CATERING.FOOD & BEVERAGES
19-MAY-2021,7011488,1.05,TOTAL PRODUCE GATESHEAD,399244,Commissioning & Asset Management,Children's & Education Services,103,Supplies and Services,504,Equipment,5023,Revenue,CATERING.FOOD & BEVERAGES
19-MAY-2021,7011488,1.05,TOTAL PRODUCE GATESHEAD,399244,Commissioning & Asset Management,Children's & Education Services,103,Supplies and Services,504,Equipment,5023,Revenue,CATERING.FOOD & BEVERAGES
19-MAY-2021,7011488,1.05,TOTAL PRODUCE GATESHEAD,399244,Commissioning & Asset Management,Children's & Education Services,103,Supplies and Services,504,Equipment,5023,Revenue,CATERING.FOOD & BEVERAGES
19-MAY-2021,7011488,1.05,TOTAL PRODUCE GATESHEAD,399244,Commissioning & Asset Management,Children's & Education Services,103,Supplies and Services,504,Equipment,5023,Revenue,CATERING.FOOD & BEVERAGES
19-MAY-2021,7011488,1.05,TOTAL PRODUCE GATESHEAD,399244,Commissioning & Asset Management,Children's & Education Services,103,Supplies and Services,504,Equipment,5023,Revenue,CATERING.FOOD & BEVERAGES
19-MAY-2021,7011488,1.05,TOTAL PRODUCE GATESHEAD,399244,Commissioning & Asset Management,Children's & Education Services,103,Supplies and Services,504,Equipment,5023,Revenue,CATERING.FOOD & BEVERAGES
19-MAY-2021,7011488,1.05,TOTAL PRODUCE GATESHEAD,399244,Commissioning & Asset Management,Children's & Education Services,103,Supplies and Services,504,Equipment,5023,Revenue,CATERING.FOOD & BEVERAGES
19-MAY-2021,7011488,1.05,TOTAL PRODUCE GATESHEAD,399244,Commissioning & Asset Management,Children's & Education Services,103,Supplies and Services,504,Equipment,5023,Revenue,CATERING.FOOD & BEVERAGES
19-MAY-2021,7011488,1.06,TOTAL PRODUCE GATESHEAD,399244,Commissioning & Asset Management,Children's & Education Services,103,Supplies and Services,504,Equipment,5023,Revenue,CATERING.FOOD & BEVERAGES
19-MAY-2021,7011488,1.06,TOTAL PRODUCE GATESHEAD,399244,Commissioning & Asset Management,Children's & Education Services,103,Supplies and Services,504,Equipment,5023,Revenue,CATERING.FOOD & BEVERAGES
19-MAY-2021,7011488,1.06,TOTAL PRODUCE GATESHEAD,399244,"Environment, Housing & Leisure",Cultural & Related Services,104,Premises-Related Expenditure,502,Cleaning and Domestic Supplies,5012,Revenue,CATERING.FOOD & BEVERAGES
19-MAY-2021,7011488,1.06,TOTAL PRODUCE GATESHEAD,399244,"Environment, Housing & Leisure",Cultural & Related Services,104,Supplies and Services,504,Equipment,5023,Revenue,CATERING.FOOD & BEVERAGES
19-MAY-2021,7011488,1.06,TOTAL PRODUCE GATESHEAD,399244,"Environment, Housing & Leisure",Cultural & Related Services,104,Supplies and Services,504,Equipment,5023,Revenue,CATERING.FOOD & BEVERAGES
19-MAY-2021,7011488,1.1,TOTAL PRODUCE GATESHEAD,399244,Commissioning & Asset Management,Children's & Education Services,103,Supplies and Services,504,Equipment,5023,Revenue,CATERING.FOOD & BEVERAGES
19-MAY-2021,7011488,1.1,TOTAL PRODUCE GATESHEAD,399244,Commissioning & Asset Management,Children's & Education Services,103,Supplies and Services,504,Equipment,5023,Revenue,CATERING.FOOD & BEVERAGES
19-MAY-2021,7011488,1.1,TOTAL PRODUCE GATESHEAD,399244,Commissioning & Asset Management,Children's & Education Services,103,Supplies and Services,504,Equipment,5023,Revenue,CATERING.FOOD & BEVERAGES
19-MAY-2021,7011488,1.1,TOTAL PRODUCE GATESHEAD,399244,Commissioning & Asset Management,Children's & Education Services,103,Supplies and Services,504,Equipment,5023,Revenue,CATERING.FOOD & BEVERAGES
19-MAY-2021,7011488,1.1,TOTAL PRODUCE GATESHEAD,399244,Commissioning & Asset Management,Children's & Education Services,103,Supplies and Services,504,Equipment,5023,Revenue,CATERING.FOOD & BEVERAGES
19-MAY-2021,7011488,1.1,TOTAL PRODUCE GATESHEAD,399244,Commissioning & Asset Management,Children's & Education Services,103,Supplies and Services,504,Equipment,5023,Revenue,CATERING.FOOD & BEVERAGES
19-MAY-2021,7011488,1.1,TOTAL PRODUCE GATESHEAD,399244,Commissioning & Asset Management,Children's & Education Services,103,Supplies and Services,504,Equipment,5023,Revenue,CATERING.FOOD & BEVERAGES
19-MAY-2021,7011488,1.1,TOTAL PRODUCE GATESHEAD,399244,Commissioning & Asset Management,Children's & Education Services,103,Supplies and Services,504,Equipment,5023,Revenue,CATERING.FOOD & BEVERAGES
19-MAY-2021,7011488,1.1,TOTAL PRODUCE GATESHEAD,399244,Commissioning & Asset Management,Children's & Education Services,103,Supplies and Services,504,Equipment,5023,Revenue,CATERING.FOOD & BEVERAGES
19-MAY-2021,7011488,1.1,TOTAL PRODUCE GATESHEAD,399244,Commissioning & Asset Management,Children's & Education Services,103,Supplies and Services,504,Equipment,5023,Revenue,CATERING.FOOD & BEVERAGES
19-MAY-2021,7011488,1.1,TOTAL PRODUCE GATESHEAD,399244,Commissioning & Asset Management,Children's & Education Services,103,Supplies and Services,504,Equipment,5023,Revenue,CATERING.FOOD & BEVERAGES
19-MAY-2021,7011488,1.1,TOTAL PRODUCE GATESHEAD,399244,Commissioning & Asset Management,Children's & Education Services,103,Supplies and Services,504,Equipment,5023,Revenue,CATERING.FOOD & BEVERAGES
19-MAY-2021,7011488,1.1,TOTAL PRODUCE GATESHEAD,399244,Commissioning & Asset Management,Children's & Education Services,103,Supplies and Services,504,Equipment,5023,Revenue,CATERING.FOOD & BEVERAGES
19-MAY-2021,7011488,1.1,TOTAL PRODUCE GATESHEAD,399244,Commissioning & Asset Management,Children's & Education Services,103,Supplies and Services,504,Equipment,5023,Revenue,CATERING.FOOD & BEVERAGES
19-MAY-2021,7011488,1.1,TOTAL PRODUCE GATESHEAD,399244,Commissioning & Asset Management,Children's & Education Services,103,Supplies and Services,504,Equipment,5023,Revenue,CATERING.FOOD & BEVERAGES
19-MAY-2021,7011488,1.1,TOTAL PRODUCE GATESHEAD,399244,Commissioning & Asset Management,Children's & Education Services,103,Supplies and Services,504,Equipment,5023,Revenue,CATERING.FOOD & BEVERAGES
19-MAY-2021,7011488,1.1,TOTAL PRODUCE GATESHEAD,399244,Commissioning & Asset Management,Children's & Education Services,103,Supplies and Services,504,Equipment,5023,Revenue,CATERING.FOOD & BEVERAGES
19-MAY-2021,7011488,1.1,TOTAL PRODUCE GATESHEAD,399244,Commissioning & Asset Management,Children's & Education Services,103,Supplies and Services,504,Equipment,5023,Revenue,CATERING.FOOD & BEVERAGES
19-MAY-2021,7011488,1.1,TOTAL PRODUCE GATESHEAD,399244,Commissioning & Asset Management,Children's & Education Services,103,Supplies and Services,504,Equipment,5023,Revenue,CATERING.FOOD & BEVERAGES
19-MAY-2021,7011488,1.1,TOTAL PRODUCE GATESHEAD,399244,Commissioning & Asset Management,Children's & Education Services,103,Supplies and Services,504,Equipment,5023,Revenue,CATERING.FOOD & BEVERAGES
19-MAY-2021,7011488,1.1,TOTAL PRODUCE GATESHEAD,399244,Commissioning & Asset Management,Children's & Education Services,103,Supplies and Services,504,Equipment,5023,Revenue,CATERING.FOOD & BEVERAGES
19-MAY-2021,7011488,1.1,TOTAL PRODUCE GATESHEAD,399244,Commissioning & Asset Management,Children's & Education Services,103,Supplies and Services,504,Equipment,5023,Revenue,CATERING.FOOD & BEVERAGES
19-MAY-2021,7011488,1.1,TOTAL PRODUCE GATESHEAD,399244,Commissioning & Asset Management,Children's & Education Services,103,Supplies and Services,504,Equipment,5023,Revenue,CATERING.FOOD & BEVERAGES
19-MAY-2021,7011488,1.1,TOTAL PRODUCE GATESHEAD,399244,Commissioning & Asset Management,Children's & Education Services,103,Supplies and Services,504,Equipment,5023,Revenue,CATERING.FOOD & BEVERAGES
19-MAY-2021,7011488,1.1,TOTAL PRODUCE GATESHEAD,399244,Commissioning & Asset Management,Children's & Education Services,103,Supplies and Services,504,Equipment,5023,Revenue,CATERING.FOOD & BEVERAGES
19-MAY-2021,7011488,1.1,TOTAL PRODUCE GATESHEAD,399244,Commissioning & Asset Management,Children's & Education Services,103,Supplies and Services,504,Equipment,5023,Revenue,CATERING.FOOD & BEVERAGES
19-MAY-2021,7011488,1.1,TOTAL PRODUCE GATESHEAD,399244,Commissioning & Asset Management,Children's & Education Services,103,Supplies and Services,504,Equipment,5023,Revenue,CATERING.FOOD & BEVERAGES
19-MAY-2021,7011488,1.1,TOTAL PRODUCE GATESHEAD,399244,Commissioning & Asset Management,Children's & Education Services,103,Supplies and Services,504,Equipment,5023,Revenue,CATERING.FOOD & BEVERAGES
19-MAY-2021,7011488,1.1,TOTAL PRODUCE GATESHEAD,399244,Commissioning & Asset Management,Children's & Education Services,103,Supplies and Services,504,Equipment,5023,Revenue,CATERING.FOOD & BEVERAGES
19-MAY-2021,7011488,1.1,TOTAL PRODUCE GATESHEAD,399244,Commissioning & Asset Management,Children's & Education Services,103,Supplies and Services,504,Equipment,5023,Revenue,CATERING.FOOD & BEVERAGES
19-MAY-2021,7011488,1.1,TOTAL PRODUCE GATESHEAD,399244,Commissioning & Asset Management,Children's & Education Services,103,Supplies and Services,504,Equipment,5023,Revenue,CATERING.FOOD & BEVERAGES
19-MAY-2021,7011488,1.1,TOTAL PRODUCE GATESHEAD,399244,Commissioning & Asset Management,Children's & Education Services,103,Supplies and Services,504,Equipment,5023,Revenue,CATERING.FOOD & BEVERAGES
19-MAY-2021,7011488,1.1,TOTAL PRODUCE GATESHEAD,399244,Commissioning & Asset Management,Children's & Education Services,103,Supplies and Services,504,Equipment,5023,Revenue,CATERING.FOOD & BEVERAGES
19-MAY-2021,7011488,1.1,TOTAL PRODUCE GATESHEAD,399244,Commissioning & Asset Management,Children's & Education Services,103,Supplies and Services,504,Equipment,5023,Revenue,CATERING.FOOD & BEVERAGES
19-MAY-2021,7011488,1.1,TOTAL PRODUCE GATESHEAD,399244,Commissioning & Asset Management,Children's & Education Services,103,Supplies and Services,504,Equipment,5023,Revenue,CATERING.FOOD & BEVERAGES
19-MAY-2021,7011488,1.1,TOTAL PRODUCE GATESHEAD,399244,Commissioning & Asset Management,Children's & Education Services,103,Supplies and Services,504,Equipment,5023,Revenue,CATERING.FOOD & BEVERAGES
19-MAY-2021,7011488,1.1,TOTAL PRODUCE GATESHEAD,399244,Commissioning & Asset Management,Children's & Education Services,103,Supplies and Services,504,Equipment,5023,Revenue,CATERING.FOOD & BEVERAGES
19-MAY-2021,7011488,1.1,TOTAL PRODUCE GATESHEAD,399244,Commissioning & Asset Management,Children's & Education Services,103,Supplies and Services,504,Equipment,5023,Revenue,CATERING.FOOD & BEVERAGES
19-MAY-2021,7011488,1.1,TOTAL PRODUCE GATESHEAD,399244,Commissioning & Asset Management,Children's & Education Services,103,Supplies and Services,504,Equipment,5023,Revenue,CATERING.FOOD & BEVERAGES
19-MAY-2021,7011488,1.1,TOTAL PRODUCE GATESHEAD,399244,Commissioning & Asset Management,Children's & Education Services,103,Supplies and Services,504,Equipment,5023,Revenue,CATERING.FOOD & BEVERAGES
19-MAY-2021,7011488,1.1,TOTAL PRODUCE GATESHEAD,399244,Commissioning & Asset Management,Children's & Education Services,103,Supplies and Services,504,Equipment,5023,Revenue,CATERING.FOOD & BEVERAGES
19-MAY-2021,7011488,1.1,TOTAL PRODUCE GATESHEAD,399244,Commissioning & Asset Management,Children's & Education Services,103,Supplies and Services,504,Equipment,5023,Revenue,CATERING.FOOD & BEVERAGES
19-MAY-2021,7011488,1.1,TOTAL PRODUCE GATESHEAD,399244,Commissioning & Asset Management,Children's & Education Services,103,Supplies and Services,504,Equipment,5023,Revenue,CATERING.FOOD & BEVERAGES
19-MAY-2021,7011488,1.1,TOTAL PRODUCE GATESHEAD,399244,Commissioning & Asset Management,Children's & Education Services,103,Supplies and Services,504,Equipment,5023,Revenue,CATERING.FOOD & BEVERAGES
19-MAY-2021,7011488,1.1,TOTAL PRODUCE GATESHEAD,399244,Commissioning & Asset Management,Children's & Education Services,103,Supplies and Services,504,Equipment,5023,Revenue,CATERING.FOOD & BEVERAGES
19-MAY-2021,7011488,1.1,TOTAL PRODUCE GATESHEAD,399244,Commissioning & Asset Management,Children's & Education Services,103,Supplies and Services,504,Equipment,5023,Revenue,CATERING.FOOD & BEVERAGES
19-MAY-2021,7011488,1.1,TOTAL PRODUCE GATESHEAD,399244,Commissioning & Asset Management,Children's & Education Services,103,Supplies and Services,504,Equipment,5023,Revenue,CATERING.FOOD & BEVERAGES
19-MAY-2021,7011488,1.1,TOTAL PRODUCE GATESHEAD,399244,Commissioning & Asset Management,Children's & Education Services,103,Supplies and Services,504,Equipment,5023,Revenue,CATERING.FOOD & BEVERAGES
19-MAY-2021,7011488,1.1,TOTAL PRODUCE GATESHEAD,399244,Commissioning & Asset Management,Children's & Education Services,103,Supplies and Services,504,Equipment,5023,Revenue,CATERING.FOOD & BEVERAGES
19-MAY-2021,7011488,1.1,TOTAL PRODUCE GATESHEAD,399244,Commissioning & Asset Management,Children's & Education Services,103,Supplies and Services,504,Equipment,5023,Revenue,CATERING.FOOD & BEVERAGES
19-MAY-2021,7011488,1.1,TOTAL PRODUCE GATESHEAD,399244,Commissioning & Asset Management,Children's & Education Services,103,Supplies and Services,504,Equipment,5023,Revenue,CATERING.FOOD & BEVERAGES
19-MAY-2021,7011488,1.1,TOTAL PRODUCE GATESHEAD,399244,Commissioning & Asset Management,Children's & Education Services,103,Supplies and Services,504,Equipment,5023,Revenue,CATERING.FOOD & BEVERAGES
19-MAY-2021,7011488,1.1,TOTAL PRODUCE GATESHEAD,399244,Commissioning & Asset Management,Children's & Education Services,103,Supplies and Services,504,Equipment,5023,Revenue,CATERING.FOOD & BEVERAGES
19-MAY-2021,7011488,1.1,TOTAL PRODUCE GATESHEAD,399244,Commissioning & Asset Management,Children's & Education Services,103,Supplies and Services,504,Equipment,5023,Revenue,CATERING.FOOD & BEVERAGES
19-MAY-2021,7011488,1.1,TOTAL PRODUCE GATESHEAD,399244,Commissioning & Asset Management,Children's & Education Services,103,Supplies and Services,504,Equipment,5023,Revenue,CATERING.FOOD & BEVERAGES
19-MAY-2021,7011488,1.1,TOTAL PRODUCE GATESHEAD,399244,Commissioning & Asset Management,Children's & Education Services,103,Supplies and Services,504,Equipment,5023,Revenue,CATERING.FOOD & BEVERAGES
19-MAY-2021,7011488,1.1,TOTAL PRODUCE GATESHEAD,399244,Commissioning & Asset Management,Children's & Education Services,103,Supplies and Services,504,Equipment,5023,Revenue,CATERING.FOOD & BEVERAGES
19-MAY-2021,7011488,1.1,TOTAL PRODUCE GATESHEAD,399244,Commissioning & Asset Management,Children's & Education Services,103,Supplies and Services,504,Equipment,5023,Revenue,CATERING.FOOD & BEVERAGES
19-MAY-2021,7011488,1.1,TOTAL PRODUCE GATESHEAD,399244,Commissioning & Asset Management,Children's & Education Services,103,Supplies and Services,504,Equipment,5023,Revenue,CATERING.FOOD & BEVERAGES
19-MAY-2021,7011488,1.1,TOTAL PRODUCE GATESHEAD,399244,Commissioning & Asset Management,Children's & Education Services,103,Supplies and Services,504,Equipment,5023,Revenue,CATERING.FOOD & BEVERAGES
19-MAY-2021,7011488,1.1,TOTAL PRODUCE GATESHEAD,399244,Commissioning & Asset Management,Children's & Education Services,103,Supplies and Services,504,Equipment,5023,Revenue,CATERING.FOOD & BEVERAGES
19-MAY-2021,7011488,1.1,TOTAL PRODUCE GATESHEAD,399244,Commissioning & Asset Management,Children's & Education Services,103,Supplies and Services,504,Equipment,5023,Revenue,CATERING.FOOD & BEVERAGES
19-MAY-2021,7011488,1.1,TOTAL PRODUCE GATESHEAD,399244,Commissioning & Asset Management,Children's & Education Services,103,Supplies and Services,504,Equipment,5023,Revenue,CATERING.FOOD & BEVERAGES
19-MAY-2021,7011488,1.16,TOTAL PRODUCE GATESHEAD,399244,Commissioning & Asset Management,Children's & Education Services,103,Supplies and Services,504,Equipment,5023,Revenue,CATERING.FOOD & BEVERAGES
19-MAY-2021,7011488,1.16,TOTAL PRODUCE GATESHEAD,399244,Commissioning & Asset Management,Children's & Education Services,103,Supplies and Services,504,Equipment,5023,Revenue,CATERING.FOOD & BEVERAGES
19-MAY-2021,7011488,1.16,TOTAL PRODUCE GATESHEAD,399244,Commissioning & Asset Management,Children's & Education Services,103,Supplies and Services,504,Equipment,5023,Revenue,CATERING.FOOD & BEVERAGES
19-MAY-2021,7011488,1.16,TOTAL PRODUCE GATESHEAD,399244,Commissioning & Asset Management,Children's & Education Services,103,Supplies and Services,504,Equipment,5023,Revenue,CATERING.FOOD & BEVERAGES
19-MAY-2021,7011488,1.16,TOTAL PRODUCE GATESHEAD,399244,Commissioning & Asset Management,Children's & Education Services,103,Supplies and Services,504,Equipment,5023,Revenue,CATERING.FOOD & BEVERAGES
19-MAY-2021,7011488,1.16,TOTAL PRODUCE GATESHEAD,399244,Commissioning & Asset Management,Children's & Education Services,103,Supplies and Services,504,Equipment,5023,Revenue,CATERING.FOOD & BEVERAGES
19-MAY-2021,7011488,1.16,TOTAL PRODUCE GATESHEAD,399244,"Environment, Housing & Leisure",Cultural & Related Services,104,Supplies and Services,504,Equipment,5023,Revenue,CATERING.FOOD & BEVERAGES
19-MAY-2021,7011488,1.16,TOTAL PRODUCE GATESHEAD,399244,"Environment, Housing & Leisure",Cultural & Related Services,104,Supplies and Services,504,Equipment,5023,Revenue,CATERING.FOOD & BEVERAGES
19-MAY-2021,7011488,1.18,TOTAL PRODUCE GATESHEAD,399244,Commissioning & Asset Management,Children's & Education Services,103,Supplies and Services,504,Equipment,5023,Revenue,CATERING.FOOD & BEVERAGES
19-MAY-2021,7011488,1.2,TOTAL PRODUCE GATESHEAD,399244,Commissioning & Asset Management,Children's & Education Services,103,Supplies and Services,504,Equipment,5023,Revenue,CATERING.FOOD & BEVERAGES
19-MAY-2021,7011488,1.2,TOTAL PRODUCE GATESHEAD,399244,Commissioning & Asset Management,Children's & Education Services,103,Supplies and Services,504,Equipment,5023,Revenue,CATERING.FOOD & BEVERAGES
19-MAY-2021,7011488,1.2,TOTAL PRODUCE GATESHEAD,399244,Commissioning & Asset Management,Children's & Education Services,103,Supplies and Services,504,Equipment,5023,Revenue,CATERING.FOOD & BEVERAGES
19-MAY-2021,7011488,1.2,TOTAL PRODUCE GATESHEAD,399244,Commissioning & Asset Management,Children's & Education Services,103,Supplies and Services,504,Equipment,5023,Revenue,CATERING.FOOD & BEVERAGES
19-MAY-2021,7011488,1.2,TOTAL PRODUCE GATESHEAD,399244,Commissioning & Asset Management,Children's & Education Services,103,Supplies and Services,504,Equipment,5023,Revenue,CATERING.FOOD & BEVERAGES
19-MAY-2021,7011488,1.2,TOTAL PRODUCE GATESHEAD,399244,Commissioning & Asset Management,Children's & Education Services,103,Supplies and Services,504,Equipment,5023,Revenue,CATERING.FOOD & BEVERAGES
19-MAY-2021,7011488,1.2,TOTAL PRODUCE GATESHEAD,399244,Commissioning & Asset Management,Children's & Education Services,103,Supplies and Services,504,Equipment,5023,Revenue,CATERING.FOOD & BEVERAGES
19-MAY-2021,7011488,1.2,TOTAL PRODUCE GATESHEAD,399244,Commissioning & Asset Management,Children's & Education Services,103,Supplies and Services,504,Equipment,5023,Revenue,CATERING.FOOD & BEVERAGES
19-MAY-2021,7011488,1.2,TOTAL PRODUCE GATESHEAD,399244,Commissioning & Asset Management,Children's & Education Services,103,Supplies and Services,504,Equipment,5023,Revenue,CATERING.FOOD & BEVERAGES
19-MAY-2021,7011488,1.2,TOTAL PRODUCE GATESHEAD,399244,Commissioning & Asset Management,Children's & Education Services,103,Supplies and Services,504,Equipment,5023,Revenue,CATERING.FOOD & BEVERAGES
19-MAY-2021,7011488,1.2,TOTAL PRODUCE GATESHEAD,399244,Commissioning & Asset Management,Children's & Education Services,103,Supplies and Services,504,Equipment,5023,Revenue,CATERING.FOOD & BEVERAGES
19-MAY-2021,7011488,1.2,TOTAL PRODUCE GATESHEAD,399244,Commissioning & Asset Management,Children's & Education Services,103,Supplies and Services,504,Equipment,5023,Revenue,CATERING.FOOD & BEVERAGES
19-MAY-2021,7011488,1.22,TOTAL PRODUCE GATESHEAD,399244,Commissioning & Asset Management,Children's & Education Services,103,Supplies and Services,504,Equipment,5023,Revenue,CATERING.FOOD & BEVERAGES
19-MAY-2021,7011488,1.22,TOTAL PRODUCE GATESHEAD,399244,Commissioning & Asset Management,Children's & Education Services,103,Supplies and Services,504,Equipment,5023,Revenue,CATERING.FOOD & BEVERAGES
19-MAY-2021,7011488,1.22,TOTAL PRODUCE GATESHEAD,399244,Commissioning & Asset Management,Children's & Education Services,103,Supplies and Services,504,Equipment,5023,Revenue,CATERING.FOOD & BEVERAGES
19-MAY-2021,7011488,1.22,TOTAL PRODUCE GATESHEAD,399244,Commissioning & Asset Management,Children's & Education Services,103,Supplies and Services,504,Equipment,5023,Revenue,CATERING.FOOD & BEVERAGES
19-MAY-2021,7011488,1.22,TOTAL PRODUCE GATESHEAD,399244,Commissioning & Asset Management,Children's & Education Services,103,Supplies and Services,504,Equipment,5023,Revenue,CATERING.FOOD & BEVERAGES
19-MAY-2021,7011488,1.22,TOTAL PRODUCE GATESHEAD,399244,Commissioning & Asset Management,Children's & Education Services,103,Supplies and Services,504,Equipment,5023,Revenue,CATERING.FOOD & BEVERAGES
19-MAY-2021,7011488,1.22,TOTAL PRODUCE GATESHEAD,399244,Commissioning & Asset Management,Children's & Education Services,103,Supplies and Services,504,Equipment,5023,Revenue,CATERING.FOOD & BEVERAGES
19-MAY-2021,7011488,1.22,TOTAL PRODUCE GATESHEAD,399244,Commissioning & Asset Management,Children's & Education Services,103,Supplies and Services,504,Equipment,5023,Revenue,CATERING.FOOD & BEVERAGES
19-MAY-2021,7011488,1.22,TOTAL PRODUCE GATESHEAD,399244,Commissioning & Asset Management,Children's & Education Services,103,Supplies and Services,504,Equipment,5023,Revenue,CATERING.FOOD & BEVERAGES
19-MAY-2021,7011488,1.22,TOTAL PRODUCE GATESHEAD,399244,Commissioning & Asset Management,Children's & Education Services,103,Supplies and Services,504,Equipment,5023,Revenue,CATERING.FOOD & BEVERAGES
19-MAY-2021,7011488,1.22,TOTAL PRODUCE GATESHEAD,399244,Commissioning & Asset Management,Children's & Education Services,103,Supplies and Services,504,Equipment,5023,Revenue,CATERING.FOOD & BEVERAGES
19-MAY-2021,7011488,1.22,TOTAL PRODUCE GATESHEAD,399244,Commissioning & Asset Management,Children's & Education Services,103,Supplies and Services,504,Equipment,5023,Revenue,CATERING.FOOD & BEVERAGES
19-MAY-2021,7011488,1.22,TOTAL PRODUCE GATESHEAD,399244,Commissioning & Asset Management,Children's & Education Services,103,Supplies and Services,504,Equipment,5023,Revenue,CATERING.FOOD & BEVERAGES
19-MAY-2021,7011488,1.22,TOTAL PRODUCE GATESHEAD,399244,Commissioning & Asset Management,Children's & Education Services,103,Supplies and Services,504,Equipment,5023,Revenue,CATERING.FOOD & BEVERAGES
19-MAY-2021,7011488,1.22,TOTAL PRODUCE GATESHEAD,399244,Commissioning & Asset Management,Children's & Education Services,103,Supplies and Services,504,Equipment,5023,Revenue,CATERING.FOOD & BEVERAGES
19-MAY-2021,7011488,1.22,TOTAL PRODUCE GATESHEAD,399244,Commissioning & Asset Management,Children's & Education Services,103,Supplies and Services,504,Equipment,5023,Revenue,CATERING.FOOD & BEVERAGES
19-MAY-2021,7011488,1.22,TOTAL PRODUCE GATESHEAD,399244,Commissioning & Asset Management,Children's & Education Services,103,Supplies and Services,504,Equipment,5023,Revenue,CATERING.FOOD & BEVERAGES
19-MAY-2021,7011488,1.22,TOTAL PRODUCE GATESHEAD,399244,Commissioning & Asset Management,Children's & Education Services,103,Supplies and Services,504,Equipment,5023,Revenue,CATERING.FOOD & BEVERAGES
19-MAY-2021,7011488,1.22,TOTAL PRODUCE GATESHEAD,399244,Commissioning & Asset Management,Children's & Education Services,103,Supplies and Services,504,Equipment,5023,Revenue,CATERING.FOOD & BEVERAGES
19-MAY-2021,7011488,1.22,TOTAL PRODUCE GATESHEAD,399244,Commissioning & Asset Management,Children's & Education Services,103,Supplies and Services,504,Equipment,5023,Revenue,CATERING.FOOD & BEVERAGES
19-MAY-2021,7011488,1.22,TOTAL PRODUCE GATESHEAD,399244,Commissioning & Asset Management,Children's & Education Services,103,Supplies and Services,504,Equipment,5023,Revenue,CATERING.FOOD & BEVERAGES
19-MAY-2021,7011488,1.22,TOTAL PRODUCE GATESHEAD,399244,Commissioning & Asset Management,Children's & Education Services,103,Supplies and Services,504,Equipment,5023,Revenue,CATERING.FOOD & BEVERAGES
19-MAY-2021,7011488,1.22,TOTAL PRODUCE GATESHEAD,399244,Commissioning & Asset Management,Children's & Education Services,103,Supplies and Services,504,Equipment,5023,Revenue,CATERING.FOOD & BEVERAGES
19-MAY-2021,7011488,1.22,TOTAL PRODUCE GATESHEAD,399244,Commissioning & Asset Management,Children's & Education Services,103,Supplies and Services,504,Equipment,5023,Revenue,CATERING.FOOD & BEVERAGES
19-MAY-2021,7011488,1.22,TOTAL PRODUCE GATESHEAD,399244,Commissioning & Asset Management,Children's & Education Services,103,Supplies and Services,504,Equipment,5023,Revenue,CATERING.FOOD & BEVERAGES
19-MAY-2021,7011488,1.22,TOTAL PRODUCE GATESHEAD,399244,Commissioning & Asset Management,Children's & Education Services,103,Supplies and Services,504,Equipment,5023,Revenue,CATERING.FOOD & BEVERAGES
19-MAY-2021,7011488,1.22,TOTAL PRODUCE GATESHEAD,399244,Commissioning & Asset Management,Children's & Education Services,103,Supplies and Services,504,Equipment,5023,Revenue,CATERING.FOOD & BEVERAGES
19-MAY-2021,7011488,1.22,TOTAL PRODUCE GATESHEAD,399244,Commissioning & Asset Management,Children's & Education Services,103,Supplies and Services,504,Equipment,5023,Revenue,CATERING.FOOD & BEVERAGES
19-MAY-2021,7011488,1.22,TOTAL PRODUCE GATESHEAD,399244,Commissioning & Asset Management,Children's & Education Services,103,Supplies and Services,504,Equipment,5023,Revenue,CATERING.FOOD & BEVERAGES
19-MAY-2021,7011488,1.22,TOTAL PRODUCE GATESHEAD,399244,Commissioning & Asset Management,Children's & Education Services,103,Supplies and Services,504,Equipment,5023,Revenue,CATERING.FOOD & BEVERAGES
19-MAY-2021,7011488,1.22,TOTAL PRODUCE GATESHEAD,399244,Commissioning & Asset Management,Children's & Education Services,103,Supplies and Services,504,Equipment,5023,Revenue,CATERING.FOOD & BEVERAGES
19-MAY-2021,7011488,1.22,TOTAL PRODUCE GATESHEAD,399244,Commissioning & Asset Management,Children's & Education Services,103,Supplies and Services,504,Equipment,5023,Revenue,CATERING.FOOD & BEVERAGES
19-MAY-2021,7011488,1.22,TOTAL PRODUCE GATESHEAD,399244,Commissioning & Asset Management,Children's & Education Services,103,Supplies and Services,504,Equipment,5023,Revenue,CATERING.FOOD & BEVERAGES
19-MAY-2021,7011488,1.22,TOTAL PRODUCE GATESHEAD,399244,Commissioning & Asset Management,Children's & Education Services,103,Supplies and Services,504,Equipment,5023,Revenue,CATERING.FOOD & BEVERAGES
19-MAY-2021,7011488,1.22,TOTAL PRODUCE GATESHEAD,399244,Commissioning & Asset Management,Children's & Education Services,103,Supplies and Services,504,Equipment,5023,Revenue,CATERING.FOOD & BEVERAGES
19-MAY-2021,7011488,1.22,TOTAL PRODUCE GATESHEAD,399244,Commissioning & Asset Management,Children's & Education Services,103,Supplies and Services,504,Equipment,5023,Revenue,CATERING.FOOD & BEVERAGES
19-MAY-2021,7011488,1.22,TOTAL PRODUCE GATESHEAD,399244,Commissioning & Asset Management,Children's & Education Services,103,Supplies and Services,504,Equipment,5023,Revenue,CATERING.FOOD & BEVERAGES
19-MAY-2021,7011488,1.22,TOTAL PRODUCE GATESHEAD,399244,Commissioning & Asset Management,Children's & Education Services,103,Supplies and Services,504,Equipment,5023,Revenue,CATERING.FOOD & BEVERAGES
19-MAY-2021,7011488,1.22,TOTAL PRODUCE GATESHEAD,399244,Commissioning & Asset Management,Children's & Education Services,103,Supplies and Services,504,Equipment,5023,Revenue,CATERING.FOOD & BEVERAGES
19-MAY-2021,7011488,1.22,TOTAL PRODUCE GATESHEAD,399244,Commissioning & Asset Management,Children's & Education Services,103,Supplies and Services,504,Equipment,5023,Revenue,CATERING.FOOD & BEVERAGES
19-MAY-2021,7011488,1.22,TOTAL PRODUCE GATESHEAD,399244,Commissioning & Asset Management,Children's & Education Services,103,Supplies and Services,504,Equipment,5023,Revenue,CATERING.FOOD & BEVERAGES
19-MAY-2021,7011488,1.22,TOTAL PRODUCE GATESHEAD,399244,Commissioning & Asset Management,Children's & Education Services,103,Supplies and Services,504,Equipment,5023,Revenue,CATERING.FOOD & BEVERAGES
19-MAY-2021,7011488,1.22,TOTAL PRODUCE GATESHEAD,399244,Commissioning & Asset Management,Children's & Education Services,103,Supplies and Services,504,Equipment,5023,Revenue,CATERING.FOOD & BEVERAGES
19-MAY-2021,7011488,1.22,TOTAL PRODUCE GATESHEAD,399244,Commissioning & Asset Management,Children's & Education Services,103,Supplies and Services,504,Equipment,5023,Revenue,CATERING.FOOD & BEVERAGES
19-MAY-2021,7011488,1.22,TOTAL PRODUCE GATESHEAD,399244,Commissioning & Asset Management,Children's & Education Services,103,Supplies and Services,504,Equipment,5023,Revenue,CATERING.FOOD & BEVERAGES
19-MAY-2021,7011488,1.22,TOTAL PRODUCE GATESHEAD,399244,Commissioning & Asset Management,Children's & Education Services,103,Supplies and Services,504,Equipment,5023,Revenue,CATERING.FOOD & BEVERAGES
19-MAY-2021,7011488,1.22,TOTAL PRODUCE GATESHEAD,399244,Commissioning & Asset Management,Children's & Education Services,103,Supplies and Services,504,Equipment,5023,Revenue,CATERING.FOOD & BEVERAGES
19-MAY-2021,7011488,1.22,TOTAL PRODUCE GATESHEAD,399244,Commissioning & Asset Management,Children's & Education Services,103,Supplies and Services,504,Equipment,5023,Revenue,CATERING.FOOD & BEVERAGES
19-MAY-2021,7011488,1.22,TOTAL PRODUCE GATESHEAD,399244,Commissioning & Asset Management,Children's & Education Services,103,Supplies and Services,504,Equipment,5023,Revenue,CATERING.FOOD & BEVERAGES
19-MAY-2021,7011488,1.22,TOTAL PRODUCE GATESHEAD,399244,Commissioning & Asset Management,Children's & Education Services,103,Supplies and Services,504,Equipment,5023,Revenue,CATERING.FOOD & BEVERAGES
19-MAY-2021,7011488,1.22,TOTAL PRODUCE GATESHEAD,399244,Commissioning & Asset Management,Children's & Education Services,103,Supplies and Services,504,Equipment,5023,Revenue,CATERING.FOOD & BEVERAGES
19-MAY-2021,7011488,1.22,TOTAL PRODUCE GATESHEAD,399244,Commissioning & Asset Management,Children's & Education Services,103,Supplies and Services,504,Equipment,5023,Revenue,CATERING.FOOD & BEVERAGES
19-MAY-2021,7011488,1.22,TOTAL PRODUCE GATESHEAD,399244,Commissioning & Asset Management,Children's & Education Services,103,Supplies and Services,504,Equipment,5023,Revenue,CATERING.FOOD & BEVERAGES
19-MAY-2021,7011488,1.22,TOTAL PRODUCE GATESHEAD,399244,Commissioning & Asset Management,Children's & Education Services,103,Supplies and Services,504,Equipment,5023,Revenue,CATERING.FOOD & BEVERAGES
19-MAY-2021,7011488,1.22,TOTAL PRODUCE GATESHEAD,399244,Commissioning & Asset Management,Children's & Education Services,103,Supplies and Services,504,Equipment,5023,Revenue,CATERING.FOOD & BEVERAGES
19-MAY-2021,7011488,1.22,TOTAL PRODUCE GATESHEAD,399244,Commissioning & Asset Management,Children's & Education Services,103,Supplies and Services,504,Equipment,5023,Revenue,CATERING.FOOD & BEVERAGES
19-MAY-2021,7011488,1.22,TOTAL PRODUCE GATESHEAD,399244,Commissioning & Asset Management,Children's & Education Services,103,Supplies and Services,504,Equipment,5023,Revenue,CATERING.FOOD & BEVERAGES
19-MAY-2021,7011488,1.22,TOTAL PRODUCE GATESHEAD,399244,Commissioning & Asset Management,Children's & Education Services,103,Supplies and Services,504,Equipment,5023,Revenue,CATERING.FOOD & BEVERAGES
19-MAY-2021,7011488,1.22,TOTAL PRODUCE GATESHEAD,399244,Commissioning & Asset Management,Children's & Education Services,103,Supplies and Services,504,Equipment,5023,Revenue,CATERING.FOOD & BEVERAGES
19-MAY-2021,7011488,1.22,TOTAL PRODUCE GATESHEAD,399244,Commissioning & Asset Management,Children's & Education Services,103,Supplies and Services,504,Equipment,5023,Revenue,CATERING.FOOD & BEVERAGES
19-MAY-2021,7011488,1.22,TOTAL PRODUCE GATESHEAD,399244,Commissioning & Asset Management,Children's & Education Services,103,Supplies and Services,504,Equipment,5023,Revenue,CATERING.FOOD & BEVERAGES
19-MAY-2021,7011488,1.22,TOTAL PRODUCE GATESHEAD,399244,Commissioning & Asset Management,Children's & Education Services,103,Supplies and Services,504,Equipment,5023,Revenue,CATERING.FOOD & BEVERAGES
19-MAY-2021,7011488,1.22,TOTAL PRODUCE GATESHEAD,399244,Commissioning & Asset Management,Children's & Education Services,103,Supplies and Services,504,Equipment,5023,Revenue,CATERING.FOOD & BEVERAGES
19-MAY-2021,7011488,1.22,TOTAL PRODUCE GATESHEAD,399244,Commissioning & Asset Management,Children's & Education Services,103,Supplies and Services,504,Equipment,5023,Revenue,CATERING.FOOD & BEVERAGES
19-MAY-2021,7011488,1.22,TOTAL PRODUCE GATESHEAD,399244,Commissioning & Asset Management,Children's & Education Services,103,Supplies and Services,504,Equipment,5023,Revenue,CATERING.FOOD & BEVERAGES
19-MAY-2021,7011488,1.23,TOTAL PRODUCE GATESHEAD,399244,Commissioning & Asset Management,Children's & Education Services,103,Supplies and Services,504,Equipment,5023,Revenue,CATERING.FOOD & BEVERAGES
19-MAY-2021,7011488,1.23,TOTAL PRODUCE GATESHEAD,399244,Commissioning & Asset Management,Children's & Education Services,103,Supplies and Services,504,Equipment,5023,Revenue,CATERING.FOOD & BEVERAGES
19-MAY-2021,7011488,1.23,TOTAL PRODUCE GATESHEAD,399244,Commissioning & Asset Management,Children's & Education Services,103,Supplies and Services,504,Equipment,5023,Revenue,CATERING.FOOD & BEVERAGES
19-MAY-2021,7011488,1.23,TOTAL PRODUCE GATESHEAD,399244,Commissioning & Asset Management,Children's & Education Services,103,Supplies and Services,504,Equipment,5023,Revenue,CATERING.FOOD & BEVERAGES
19-MAY-2021,7011488,1.23,TOTAL PRODUCE GATESHEAD,399244,Commissioning & Asset Management,Children's & Education Services,103,Supplies and Services,504,Equipment,5023,Revenue,CATERING.FOOD & BEVERAGES
19-MAY-2021,7011488,1.23,TOTAL PRODUCE GATESHEAD,399244,Commissioning & Asset Management,Children's & Education Services,103,Supplies and Services,504,Equipment,5023,Revenue,CATERING.FOOD & BEVERAGES
19-MAY-2021,7011488,1.23,TOTAL PRODUCE GATESHEAD,399244,Commissioning & Asset Management,Children's & Education Services,103,Supplies and Services,504,Equipment,5023,Revenue,CATERING.FOOD & BEVERAGES
19-MAY-2021,7011488,1.23,TOTAL PRODUCE GATESHEAD,399244,Commissioning & Asset Management,Children's & Education Services,103,Supplies and Services,504,Equipment,5023,Revenue,CATERING.FOOD & BEVERAGES
19-MAY-2021,7011488,1.23,TOTAL PRODUCE GATESHEAD,399244,Commissioning & Asset Management,Children's & Education Services,103,Supplies and Services,504,Equipment,5023,Revenue,CATERING.FOOD & BEVERAGES
19-MAY-2021,7011488,1.23,TOTAL PRODUCE GATESHEAD,399244,Commissioning & Asset Management,Children's & Education Services,103,Supplies and Services,504,Equipment,5023,Revenue,CATERING.FOOD & BEVERAGES
19-MAY-2021,7011488,1.23,TOTAL PRODUCE GATESHEAD,399244,Commissioning & Asset Management,Children's & Education Services,103,Supplies and Services,504,Equipment,5023,Revenue,CATERING.FOOD & BEVERAGES
19-MAY-2021,7011488,1.23,TOTAL PRODUCE GATESHEAD,399244,Commissioning & Asset Management,Children's & Education Services,103,Supplies and Services,504,Equipment,5023,Revenue,CATERING.FOOD & BEVERAGES
19-MAY-2021,7011488,1.23,TOTAL PRODUCE GATESHEAD,399244,Commissioning & Asset Management,Children's & Education Services,103,Supplies and Services,504,Equipment,5023,Revenue,CATERING.FOOD & BEVERAGES
19-MAY-2021,7011488,1.23,TOTAL PRODUCE GATESHEAD,399244,Commissioning & Asset Management,Children's & Education Services,103,Supplies and Services,504,Equipment,5023,Revenue,CATERING.FOOD & BEVERAGES
19-MAY-2021,7011488,1.23,TOTAL PRODUCE GATESHEAD,399244,Commissioning & Asset Management,Children's & Education Services,103,Supplies and Services,504,Equipment,5023,Revenue,CATERING.FOOD & BEVERAGES
19-MAY-2021,7011488,1.23,TOTAL PRODUCE GATESHEAD,399244,Commissioning & Asset Management,Children's & Education Services,103,Supplies and Services,504,Equipment,5023,Revenue,CATERING.FOOD & BEVERAGES
19-MAY-2021,7011488,1.23,TOTAL PRODUCE GATESHEAD,399244,Commissioning & Asset Management,Children's & Education Services,103,Supplies and Services,504,Equipment,5023,Revenue,CATERING.FOOD & BEVERAGES
19-MAY-2021,7011488,1.23,TOTAL PRODUCE GATESHEAD,399244,Commissioning & Asset Management,Children's & Education Services,103,Supplies and Services,504,Equipment,5023,Revenue,CATERING.FOOD & BEVERAGES
19-MAY-2021,7011488,1.23,TOTAL PRODUCE GATESHEAD,399244,Commissioning & Asset Management,Children's & Education Services,103,Supplies and Services,504,Equipment,5023,Revenue,CATERING.FOOD & BEVERAGES
19-MAY-2021,7011488,1.23,TOTAL PRODUCE GATESHEAD,399244,Commissioning & Asset Management,Children's & Education Services,103,Supplies and Services,504,Equipment,5023,Revenue,CATERING.FOOD & BEVERAGES
19-MAY-2021,7011488,1.23,TOTAL PRODUCE GATESHEAD,399244,Commissioning & Asset Management,Children's & Education Services,103,Supplies and Services,504,Equipment,5023,Revenue,CATERING.FOOD & BEVERAGES
19-MAY-2021,7011488,1.23,TOTAL PRODUCE GATESHEAD,399244,Commissioning & Asset Management,Children's & Education Services,103,Supplies and Services,504,Equipment,5023,Revenue,CATERING.FOOD & BEVERAGES
19-MAY-2021,7011488,1.23,TOTAL PRODUCE GATESHEAD,399244,Commissioning & Asset Management,Children's & Education Services,103,Supplies and Services,504,Equipment,5023,Revenue,CATERING.FOOD & BEVERAGES
19-MAY-2021,7011488,1.23,TOTAL PRODUCE GATESHEAD,399244,Commissioning & Asset Management,Children's & Education Services,103,Supplies and Services,504,Equipment,5023,Revenue,CATERING.FOOD & BEVERAGES
19-MAY-2021,7011488,1.23,TOTAL PRODUCE GATESHEAD,399244,Commissioning & Asset Management,Children's & Education Services,103,Supplies and Services,504,Equipment,5023,Revenue,CATERING.FOOD & BEVERAGES
19-MAY-2021,7011488,1.23,TOTAL PRODUCE GATESHEAD,399244,Commissioning & Asset Management,Children's & Education Services,103,Supplies and Services,504,Equipment,5023,Revenue,CATERING.FOOD & BEVERAGES
19-MAY-2021,7011488,1.23,TOTAL PRODUCE GATESHEAD,399244,Commissioning & Asset Management,Children's & Education Services,103,Supplies and Services,504,Equipment,5023,Revenue,CATERING.FOOD & BEVERAGES
19-MAY-2021,7011488,1.23,TOTAL PRODUCE GATESHEAD,399244,Commissioning & Asset Management,Children's & Education Services,103,Supplies and Services,504,Equipment,5023,Revenue,CATERING.FOOD & BEVERAGES
19-MAY-2021,7011488,1.23,TOTAL PRODUCE GATESHEAD,399244,Commissioning & Asset Management,Children's & Education Services,103,Supplies and Services,504,Equipment,5023,Revenue,CATERING.FOOD & BEVERAGES
19-MAY-2021,7011488,1.23,TOTAL PRODUCE GATESHEAD,399244,Commissioning & Asset Management,Children's & Education Services,103,Supplies and Services,504,Equipment,5023,Revenue,CATERING.FOOD & BEVERAGES
19-MAY-2021,7011488,1.23,TOTAL PRODUCE GATESHEAD,399244,Commissioning & Asset Management,Children's & Education Services,103,Supplies and Services,504,Equipment,5023,Revenue,CATERING.FOOD & BEVERAGES
19-MAY-2021,7011488,1.23,TOTAL PRODUCE GATESHEAD,399244,Commissioning & Asset Management,Children's & Education Services,103,Supplies and Services,504,Equipment,5023,Revenue,CATERING.FOOD & BEVERAGES
19-MAY-2021,7011488,1.23,TOTAL PRODUCE GATESHEAD,399244,Commissioning & Asset Management,Children's & Education Services,103,Supplies and Services,504,Equipment,5023,Revenue,CATERING.FOOD & BEVERAGES
19-MAY-2021,7011488,1.23,TOTAL PRODUCE GATESHEAD,399244,Commissioning & Asset Management,Children's & Education Services,103,Supplies and Services,504,Equipment,5023,Revenue,CATERING.FOOD & BEVERAGES
19-MAY-2021,7011488,1.24,TOTAL PRODUCE GATESHEAD,399244,Commissioning & Asset Management,Children's & Education Services,103,Supplies and Services,504,Equipment,5023,Revenue,CATERING.FOOD & BEVERAGES
19-MAY-2021,7011488,1.24,TOTAL PRODUCE GATESHEAD,399244,Commissioning & Asset Management,Children's & Education Services,103,Supplies and Services,504,Equipment,5023,Revenue,CATERING.FOOD & BEVERAGES
19-MAY-2021,7011488,1.24,TOTAL PRODUCE GATESHEAD,399244,Commissioning & Asset Management,Children's & Education Services,103,Supplies and Services,504,Equipment,5023,Revenue,CATERING.FOOD & BEVERAGES
19-MAY-2021,7011488,1.24,TOTAL PRODUCE GATESHEAD,399244,Commissioning & Asset Management,Children's & Education Services,103,Supplies and Services,504,Equipment,5023,Revenue,CATERING.FOOD & BEVERAGES
19-MAY-2021,7011488,1.24,TOTAL PRODUCE GATESHEAD,399244,Commissioning & Asset Management,Children's & Education Services,103,Supplies and Services,504,Equipment,5023,Revenue,CATERING.FOOD & BEVERAGES
19-MAY-2021,7011488,1.25,TOTAL PRODUCE GATESHEAD,399244,"Environment, Housing & Leisure",Adult Social Care,101,Supplies and Services,504,Equipment,5023,Revenue,CATERING.FOOD & BEVERAGES
19-MAY-2021,7011488,1.25,TOTAL PRODUCE GATESHEAD,399244,"Environment, Housing & Leisure",Adult Social Care,101,Supplies and Services,504,Equipment,5023,Revenue,CATERING.FOOD & BEVERAGES
19-MAY-2021,7011488,1.25,TOTAL PRODUCE GATESHEAD,399244,"Environment, Housing & Leisure",Adult Social Care,101,Supplies and Services,504,Equipment,5023,Revenue,CATERING.FOOD & BEVERAGES
19-MAY-2021,7011488,1.25,TOTAL PRODUCE GATESHEAD,399244,Commissioning & Asset Management,Children's & Education Services,103,Supplies and Services,504,Equipment,5023,Revenue,CATERING.FOOD & BEVERAGES
19-MAY-2021,7011488,1.25,TOTAL PRODUCE GATESHEAD,399244,Commissioning & Asset Management,Children's & Education Services,103,Supplies and Services,504,Equipment,5023,Revenue,CATERING.FOOD & BEVERAGES
19-MAY-2021,7011488,1.25,TOTAL PRODUCE GATESHEAD,399244,Commissioning & Asset Management,Children's & Education Services,103,Supplies and Services,504,Equipment,5023,Revenue,CATERING.FOOD & BEVERAGES
19-MAY-2021,7011488,1.25,TOTAL PRODUCE GATESHEAD,399244,Commissioning & Asset Management,Children's & Education Services,103,Supplies and Services,504,Equipment,5023,Revenue,CATERING.FOOD & BEVERAGES
19-MAY-2021,7011488,1.25,TOTAL PRODUCE GATESHEAD,399244,Commissioning & Asset Management,Children's & Education Services,103,Supplies and Services,504,Equipment,5023,Revenue,CATERING.FOOD & BEVERAGES
19-MAY-2021,7011488,1.25,TOTAL PRODUCE GATESHEAD,399244,Commissioning & Asset Management,Children's & Education Services,103,Supplies and Services,504,Equipment,5023,Revenue,CATERING.FOOD & BEVERAGES
19-MAY-2021,7011488,1.25,TOTAL PRODUCE GATESHEAD,399244,Commissioning & Asset Management,Children's & Education Services,103,Supplies and Services,504,Equipment,5023,Revenue,CATERING.FOOD & BEVERAGES
19-MAY-2021,7011488,1.25,TOTAL PRODUCE GATESHEAD,399244,Commissioning & Asset Management,Children's & Education Services,103,Supplies and Services,504,Equipment,5023,Revenue,CATERING.FOOD & BEVERAGES
19-MAY-2021,7011488,1.25,TOTAL PRODUCE GATESHEAD,399244,Commissioning & Asset Management,Children's & Education Services,103,Supplies and Services,504,Equipment,5023,Revenue,CATERING.FOOD & BEVERAGES
19-MAY-2021,7011488,1.25,TOTAL PRODUCE GATESHEAD,399244,Commissioning & Asset Management,Children's & Education Services,103,Supplies and Services,504,Equipment,5023,Revenue,CATERING.FOOD & BEVERAGES
19-MAY-2021,7011488,1.26,TOTAL PRODUCE GATESHEAD,399244,Commissioning & Asset Management,Children's & Education Services,103,Supplies and Services,504,Equipment,5023,Revenue,CATERING.FOOD & BEVERAGES
19-MAY-2021,7011488,1.26,TOTAL PRODUCE GATESHEAD,399244,Commissioning & Asset Management,Children's & Education Services,103,Supplies and Services,504,Equipment,5023,Revenue,CATERING.FOOD & BEVERAGES
19-MAY-2021,7011488,1.26,TOTAL PRODUCE GATESHEAD,399244,Commissioning & Asset Management,Children's & Education Services,103,Supplies and Services,504,Equipment,5023,Revenue,CATERING.FOOD & BEVERAGES
19-MAY-2021,7011488,1.26,TOTAL PRODUCE GATESHEAD,399244,Commissioning & Asset Management,Children's & Education Services,103,Supplies and Services,504,Equipment,5023,Revenue,CATERING.FOOD & BEVERAGES
19-MAY-2021,7011488,1.26,TOTAL PRODUCE GATESHEAD,399244,Commissioning & Asset Management,Children's & Education Services,103,Supplies and Services,504,Equipment,5023,Revenue,CATERING.FOOD & BEVERAGES
19-MAY-2021,7011488,1.26,TOTAL PRODUCE GATESHEAD,399244,Commissioning & Asset Management,Children's & Education Services,103,Supplies and Services,504,Equipment,5023,Revenue,CATERING.FOOD & BEVERAGES
19-MAY-2021,7011488,1.26,TOTAL PRODUCE GATESHEAD,399244,Commissioning & Asset Management,Children's & Education Services,103,Supplies and Services,504,Equipment,5023,Revenue,CATERING.FOOD & BEVERAGES
19-MAY-2021,7011488,1.26,TOTAL PRODUCE GATESHEAD,399244,Commissioning & Asset Management,Children's & Education Services,103,Supplies and Services,504,Equipment,5023,Revenue,CATERING.FOOD & BEVERAGES
19-MAY-2021,7011488,1.26,TOTAL PRODUCE GATESHEAD,399244,Commissioning & Asset Management,Children's & Education Services,103,Supplies and Services,504,Equipment,5023,Revenue,CATERING.FOOD & BEVERAGES
19-MAY-2021,7011488,1.26,TOTAL PRODUCE GATESHEAD,399244,Commissioning & Asset Management,Children's & Education Services,103,Supplies and Services,504,Equipment,5023,Revenue,CATERING.FOOD & BEVERAGES
19-MAY-2021,7011488,1.26,TOTAL PRODUCE GATESHEAD,399244,Commissioning & Asset Management,Children's & Education Services,103,Supplies and Services,504,Equipment,5023,Revenue,CATERING.FOOD & BEVERAGES
19-MAY-2021,7011488,1.28,TOTAL PRODUCE GATESHEAD,399244,"Environment, Housing & Leisure",Adult Social Care,101,Supplies and Services,504,Equipment,5023,Revenue,CATERING.FOOD & BEVERAGES
19-MAY-2021,7011488,1.28,TOTAL PRODUCE GATESHEAD,399244,"Environment, Housing & Leisure",Cultural & Related Services,104,Supplies and Services,504,Equipment,5023,Revenue,CATERING.FOOD & BEVERAGES
19-MAY-2021,7011488,1.28,TOTAL PRODUCE GATESHEAD,399244,"Environment, Housing & Leisure",Cultural & Related Services,104,Supplies and Services,504,Equipment,5023,Revenue,CATERING.FOOD & BEVERAGES
19-MAY-2021,7011488,1.28,TOTAL PRODUCE GATESHEAD,399244,"Environment, Housing & Leisure",Cultural & Related Services,104,Supplies and Services,504,Equipment,5023,Revenue,CATERING.FOOD & BEVERAGES
19-MAY-2021,7011488,1.28,TOTAL PRODUCE GATESHEAD,399244,"Environment, Housing & Leisure",Cultural & Related Services,104,Supplies and Services,504,Equipment,5023,Revenue,CATERING.FOOD & BEVERAGES
19-MAY-2021,7011488,1.3,TOTAL PRODUCE GATESHEAD,399244,Commissioning & Asset Management,Children's & Education Services,103,Supplies and Services,504,Equipment,5023,Revenue,CATERING.FOOD & BEVERAGES
19-MAY-2021,7011488,1.3,TOTAL PRODUCE GATESHEAD,399244,Commissioning & Asset Management,Children's & Education Services,103,Supplies and Services,504,Equipment,5023,Revenue,CATERING.FOOD & BEVERAGES
19-MAY-2021,7011488,1.3,TOTAL PRODUCE GATESHEAD,399244,Commissioning & Asset Management,Children's & Education Services,103,Supplies and Services,504,Equipment,5023,Revenue,CATERING.FOOD & BEVERAGES
19-MAY-2021,7011488,1.3,TOTAL PRODUCE GATESHEAD,399244,Commissioning & Asset Management,Children's & Education Services,103,Supplies and Services,504,Equipment,5023,Revenue,CATERING.FOOD & BEVERAGES
19-MAY-2021,7011488,1.3,TOTAL PRODUCE GATESHEAD,399244,Commissioning & Asset Management,Children's & Education Services,103,Supplies and Services,504,Equipment,5023,Revenue,CATERING.FOOD & BEVERAGES
19-MAY-2021,7011488,1.3,TOTAL PRODUCE GATESHEAD,399244,Commissioning & Asset Management,Children's & Education Services,103,Supplies and Services,504,Equipment,5023,Revenue,CATERING.FOOD & BEVERAGES
19-MAY-2021,7011488,1.32,TOTAL PRODUCE GATESHEAD,399244,"Environment, Housing & Leisure",Cultural & Related Services,104,Supplies and Services,504,Equipment,5023,Revenue,CATERING.FOOD & BEVERAGES
19-MAY-2021,7011488,1.33,TOTAL PRODUCE GATESHEAD,399244,"Environment, Housing & Leisure",Cultural & Related Services,104,Supplies and Services,504,Equipment,5023,Revenue,CATERING.FOOD & BEVERAGES
19-MAY-2021,7011488,1.35,TOTAL PRODUCE GATESHEAD,399244,Commissioning & Asset Management,Children's & Education Services,103,Supplies and Services,504,Equipment,5023,Revenue,CATERING.FOOD & BEVERAGES
19-MAY-2021,7011488,1.35,TOTAL PRODUCE GATESHEAD,399244,Commissioning & Asset Management,Children's & Education Services,103,Supplies and Services,504,Equipment,5023,Revenue,CATERING.FOOD & BEVERAGES
19-MAY-2021,7011488,1.35,TOTAL PRODUCE GATESHEAD,399244,Commissioning & Asset Management,Children's & Education Services,103,Supplies and Services,504,Equipment,5023,Revenue,CATERING.FOOD & BEVERAGES
19-MAY-2021,7011488,1.35,TOTAL PRODUCE GATESHEAD,399244,Commissioning & Asset Management,Children's & Education Services,103,Supplies and Services,504,Equipment,5023,Revenue,CATERING.FOOD & BEVERAGES
19-MAY-2021,7011488,1.35,TOTAL PRODUCE GATESHEAD,399244,Commissioning & Asset Management,Children's & Education Services,103,Supplies and Services,504,Equipment,5023,Revenue,CATERING.FOOD & BEVERAGES
19-MAY-2021,7011488,1.35,TOTAL PRODUCE GATESHEAD,399244,Commissioning & Asset Management,Children's & Education Services,103,Supplies and Services,504,Equipment,5023,Revenue,CATERING.FOOD & BEVERAGES
19-MAY-2021,7011488,1.36,TOTAL PRODUCE GATESHEAD,399244,Commissioning & Asset Management,Children's & Education Services,103,Supplies and Services,504,Equipment,5023,Revenue,CATERING.FOOD & BEVERAGES
19-MAY-2021,7011488,1.36,TOTAL PRODUCE GATESHEAD,399244,Commissioning & Asset Management,Children's & Education Services,103,Supplies and Services,504,Equipment,5023,Revenue,CATERING.FOOD & BEVERAGES
19-MAY-2021,7011488,1.36,TOTAL PRODUCE GATESHEAD,399244,Commissioning & Asset Management,Children's & Education Services,103,Supplies and Services,504,Equipment,5023,Revenue,CATERING.FOOD & BEVERAGES
19-MAY-2021,7011488,1.36,TOTAL PRODUCE GATESHEAD,399244,Commissioning & Asset Management,Children's & Education Services,103,Supplies and Services,504,Equipment,5023,Revenue,CATERING.FOOD & BEVERAGES
19-MAY-2021,7011488,1.36,TOTAL PRODUCE GATESHEAD,399244,Commissioning & Asset Management,Children's & Education Services,103,Supplies and Services,504,Equipment,5023,Revenue,CATERING.FOOD & BEVERAGES
19-MAY-2021,7011488,1.36,TOTAL PRODUCE GATESHEAD,399244,Commissioning & Asset Management,Children's & Education Services,103,Supplies and Services,504,Equipment,5023,Revenue,CATERING.FOOD & BEVERAGES
19-MAY-2021,7011488,1.36,TOTAL PRODUCE GATESHEAD,399244,Commissioning & Asset Management,Children's & Education Services,103,Supplies and Services,504,Equipment,5023,Revenue,CATERING.FOOD & BEVERAGES
19-MAY-2021,7011488,1.36,TOTAL PRODUCE GATESHEAD,399244,Commissioning & Asset Management,Children's & Education Services,103,Supplies and Services,504,Equipment,5023,Revenue,CATERING.FOOD & BEVERAGES
19-MAY-2021,7011488,1.36,TOTAL PRODUCE GATESHEAD,399244,Commissioning & Asset Management,Children's & Education Services,103,Supplies and Services,504,Equipment,5023,Revenue,CATERING.FOOD & BEVERAGES
19-MAY-2021,7011488,1.36,TOTAL PRODUCE GATESHEAD,399244,Commissioning & Asset Management,Children's & Education Services,103,Supplies and Services,504,Equipment,5023,Revenue,CATERING.FOOD & BEVERAGES
19-MAY-2021,7011488,1.36,TOTAL PRODUCE GATESHEAD,399244,Commissioning & Asset Management,Children's & Education Services,103,Supplies and Services,504,Equipment,5023,Revenue,CATERING.FOOD & BEVERAGES
19-MAY-2021,7011488,1.36,TOTAL PRODUCE GATESHEAD,399244,Commissioning & Asset Management,Children's & Education Services,103,Supplies and Services,504,Equipment,5023,Revenue,CATERING.FOOD & BEVERAGES
19-MAY-2021,7011488,1.36,TOTAL PRODUCE GATESHEAD,399244,Commissioning & Asset Management,Children's & Education Services,103,Supplies and Services,504,Equipment,5023,Revenue,CATERING.FOOD & BEVERAGES
19-MAY-2021,7011488,1.36,TOTAL PRODUCE GATESHEAD,399244,Commissioning & Asset Management,Children's & Education Services,103,Supplies and Services,504,Equipment,5023,Revenue,CATERING.FOOD & BEVERAGES
19-MAY-2021,7011488,1.36,TOTAL PRODUCE GATESHEAD,399244,Commissioning & Asset Management,Children's & Education Services,103,Supplies and Services,504,Equipment,5023,Revenue,CATERING.FOOD & BEVERAGES
19-MAY-2021,7011488,1.36,TOTAL PRODUCE GATESHEAD,399244,Commissioning & Asset Management,Children's & Education Services,103,Supplies and Services,504,Equipment,5023,Revenue,CATERING.FOOD & BEVERAGES
19-MAY-2021,7011488,1.36,TOTAL PRODUCE GATESHEAD,399244,Commissioning & Asset Management,Children's & Education Services,103,Supplies and Services,504,Equipment,5023,Revenue,CATERING.FOOD & BEVERAGES
19-MAY-2021,7011488,1.36,TOTAL PRODUCE GATESHEAD,399244,Commissioning & Asset Management,Children's & Education Services,103,Supplies and Services,504,Equipment,5023,Revenue,CATERING.FOOD & BEVERAGES
19-MAY-2021,7011488,1.36,TOTAL PRODUCE GATESHEAD,399244,Commissioning & Asset Management,Children's & Education Services,103,Supplies and Services,504,Equipment,5023,Revenue,CATERING.FOOD & BEVERAGES
19-MAY-2021,7011488,1.36,TOTAL PRODUCE GATESHEAD,399244,Commissioning & Asset Management,Children's & Education Services,103,Supplies and Services,504,Equipment,5023,Revenue,CATERING.FOOD & BEVERAGES
19-MAY-2021,7011488,1.36,TOTAL PRODUCE GATESHEAD,399244,Commissioning & Asset Management,Children's & Education Services,103,Supplies and Services,504,Equipment,5023,Revenue,CATERING.FOOD & BEVERAGES
19-MAY-2021,7011488,1.36,TOTAL PRODUCE GATESHEAD,399244,Commissioning & Asset Management,Children's & Education Services,103,Supplies and Services,504,Equipment,5023,Revenue,CATERING.FOOD & BEVERAGES
19-MAY-2021,7011488,1.36,TOTAL PRODUCE GATESHEAD,399244,Commissioning & Asset Management,Children's & Education Services,103,Supplies and Services,504,Equipment,5023,Revenue,CATERING.FOOD & BEVERAGES
19-MAY-2021,7011488,1.36,TOTAL PRODUCE GATESHEAD,399244,Commissioning & Asset Management,Children's & Education Services,103,Supplies and Services,504,Equipment,5023,Revenue,CATERING.FOOD & BEVERAGES
19-MAY-2021,7011488,1.36,TOTAL PRODUCE GATESHEAD,399244,Commissioning & Asset Management,Children's & Education Services,103,Supplies and Services,504,Equipment,5023,Revenue,CATERING.FOOD & BEVERAGES
19-MAY-2021,7011488,1.36,TOTAL PRODUCE GATESHEAD,399244,Commissioning & Asset Management,Children's & Education Services,103,Supplies and Services,504,Equipment,5023,Revenue,CATERING.FOOD & BEVERAGES
19-MAY-2021,7011488,1.36,TOTAL PRODUCE GATESHEAD,399244,Commissioning & Asset Management,Children's & Education Services,103,Supplies and Services,504,Equipment,5023,Revenue,CATERING.FOOD & BEVERAGES
19-MAY-2021,7011488,1.36,TOTAL PRODUCE GATESHEAD,399244,Commissioning & Asset Management,Children's & Education Services,103,Supplies and Services,504,Equipment,5023,Revenue,CATERING.FOOD & BEVERAGES
19-MAY-2021,7011488,1.36,TOTAL PRODUCE GATESHEAD,399244,Commissioning & Asset Management,Children's & Education Services,103,Supplies and Services,504,Equipment,5023,Revenue,CATERING.FOOD & BEVERAGES
19-MAY-2021,7011488,1.36,TOTAL PRODUCE GATESHEAD,399244,Commissioning & Asset Management,Children's & Education Services,103,Supplies and Services,504,Equipment,5023,Revenue,CATERING.FOOD & BEVERAGES
19-MAY-2021,7011488,1.36,TOTAL PRODUCE GATESHEAD,399244,Commissioning & Asset Management,Children's & Education Services,103,Supplies and Services,504,Equipment,5023,Revenue,CATERING.FOOD & BEVERAGES
19-MAY-2021,7011488,1.36,TOTAL PRODUCE GATESHEAD,399244,Commissioning & Asset Management,Children's & Education Services,103,Supplies and Services,504,Equipment,5023,Revenue,CATERING.FOOD & BEVERAGES
19-MAY-2021,7011488,1.36,TOTAL PRODUCE GATESHEAD,399244,Commissioning & Asset Management,Children's & Education Services,103,Supplies and Services,504,Equipment,5023,Revenue,CATERING.FOOD & BEVERAGES
19-MAY-2021,7011488,1.36,TOTAL PRODUCE GATESHEAD,399244,Commissioning & Asset Management,Children's & Education Services,103,Supplies and Services,504,Equipment,5023,Revenue,CATERING.FOOD & BEVERAGES
19-MAY-2021,7011488,1.36,TOTAL PRODUCE GATESHEAD,399244,Commissioning & Asset Management,Children's & Education Services,103,Supplies and Services,504,Equipment,5023,Revenue,CATERING.FOOD & BEVERAGES
19-MAY-2021,7011488,1.36,TOTAL PRODUCE GATESHEAD,399244,Commissioning & Asset Management,Children's & Education Services,103,Supplies and Services,504,Equipment,5023,Revenue,CATERING.FOOD & BEVERAGES
19-MAY-2021,7011488,1.36,TOTAL PRODUCE GATESHEAD,399244,Commissioning & Asset Management,Children's & Education Services,103,Supplies and Services,504,Equipment,5023,Revenue,CATERING.FOOD & BEVERAGES
19-MAY-2021,7011488,1.36,TOTAL PRODUCE GATESHEAD,399244,Commissioning & Asset Management,Children's & Education Services,103,Supplies and Services,504,Equipment,5023,Revenue,CATERING.FOOD & BEVERAGES
19-MAY-2021,7011488,1.36,TOTAL PRODUCE GATESHEAD,399244,Commissioning & Asset Management,Children's & Education Services,103,Supplies and Services,504,Equipment,5023,Revenue,CATERING.FOOD & BEVERAGES
19-MAY-2021,7011488,1.36,TOTAL PRODUCE GATESHEAD,399244,Commissioning & Asset Management,Children's & Education Services,103,Supplies and Services,504,Equipment,5023,Revenue,CATERING.FOOD & BEVERAGES
19-MAY-2021,7011488,1.36,TOTAL PRODUCE GATESHEAD,399244,Commissioning & Asset Management,Children's & Education Services,103,Supplies and Services,504,Equipment,5023,Revenue,CATERING.FOOD & BEVERAGES
19-MAY-2021,7011488,1.36,TOTAL PRODUCE GATESHEAD,399244,Commissioning & Asset Management,Children's & Education Services,103,Supplies and Services,504,Equipment,5023,Revenue,CATERING.FOOD & BEVERAGES
19-MAY-2021,7011488,1.36,TOTAL PRODUCE GATESHEAD,399244,Commissioning & Asset Management,Children's & Education Services,103,Supplies and Services,504,Equipment,5023,Revenue,CATERING.FOOD & BEVERAGES
19-MAY-2021,7011488,1.36,TOTAL PRODUCE GATESHEAD,399244,Commissioning & Asset Management,Children's & Education Services,103,Supplies and Services,504,Equipment,5023,Revenue,CATERING.FOOD & BEVERAGES
19-MAY-2021,7011488,1.36,TOTAL PRODUCE GATESHEAD,399244,Commissioning & Asset Management,Children's & Education Services,103,Supplies and Services,504,Equipment,5023,Revenue,CATERING.FOOD & BEVERAGES
19-MAY-2021,7011488,1.36,TOTAL PRODUCE GATESHEAD,399244,Commissioning & Asset Management,Children's & Education Services,103,Supplies and Services,504,Equipment,5023,Revenue,CATERING.FOOD & BEVERAGES
19-MAY-2021,7011488,1.36,TOTAL PRODUCE GATESHEAD,399244,Commissioning & Asset Management,Children's & Education Services,103,Supplies and Services,504,Equipment,5023,Revenue,CATERING.FOOD & BEVERAGES
19-MAY-2021,7011488,1.36,TOTAL PRODUCE GATESHEAD,399244,Commissioning & Asset Management,Children's & Education Services,103,Supplies and Services,504,Equipment,5023,Revenue,CATERING.FOOD & BEVERAGES
19-MAY-2021,7011488,1.36,TOTAL PRODUCE GATESHEAD,399244,Commissioning & Asset Management,Children's & Education Services,103,Supplies and Services,504,Equipment,5023,Revenue,CATERING.FOOD & BEVERAGES
19-MAY-2021,7011488,1.36,TOTAL PRODUCE GATESHEAD,399244,Commissioning & Asset Management,Children's & Education Services,103,Supplies and Services,504,Equipment,5023,Revenue,CATERING.FOOD & BEVERAGES
19-MAY-2021,7011488,1.36,TOTAL PRODUCE GATESHEAD,399244,Commissioning & Asset Management,Children's & Education Services,103,Supplies and Services,504,Equipment,5023,Revenue,CATERING.FOOD & BEVERAGES
19-MAY-2021,7011488,1.36,TOTAL PRODUCE GATESHEAD,399244,Commissioning & Asset Management,Children's & Education Services,103,Supplies and Services,504,Equipment,5023,Revenue,CATERING.FOOD & BEVERAGES
19-MAY-2021,7011488,1.36,TOTAL PRODUCE GATESHEAD,399244,Commissioning & Asset Management,Children's & Education Services,103,Supplies and Services,504,Equipment,5023,Revenue,CATERING.FOOD & BEVERAGES
19-MAY-2021,7011488,1.36,TOTAL PRODUCE GATESHEAD,399244,Commissioning & Asset Management,Children's & Education Services,103,Supplies and Services,504,Equipment,5023,Revenue,CATERING.FOOD & BEVERAGES
19-MAY-2021,7011488,1.36,TOTAL PRODUCE GATESHEAD,399244,Commissioning & Asset Management,Children's & Education Services,103,Supplies and Services,504,Equipment,5023,Revenue,CATERING.FOOD & BEVERAGES
19-MAY-2021,7011488,1.36,TOTAL PRODUCE GATESHEAD,399244,Commissioning & Asset Management,Children's & Education Services,103,Supplies and Services,504,Equipment,5023,Revenue,CATERING.FOOD & BEVERAGES
19-MAY-2021,7011488,1.36,TOTAL PRODUCE GATESHEAD,399244,Commissioning & Asset Management,Children's & Education Services,103,Supplies and Services,504,Equipment,5023,Revenue,CATERING.FOOD & BEVERAGES
19-MAY-2021,7011488,1.36,TOTAL PRODUCE GATESHEAD,399244,Commissioning & Asset Management,Children's & Education Services,103,Supplies and Services,504,Equipment,5023,Revenue,CATERING.FOOD & BEVERAGES
19-MAY-2021,7011488,1.36,TOTAL PRODUCE GATESHEAD,399244,Commissioning & Asset Management,Children's & Education Services,103,Supplies and Services,504,Equipment,5023,Revenue,CATERING.FOOD & BEVERAGES
19-MAY-2021,7011488,1.36,TOTAL PRODUCE GATESHEAD,399244,Commissioning & Asset Management,Children's & Education Services,103,Supplies and Services,504,Equipment,5023,Revenue,CATERING.FOOD & BEVERAGES
19-MAY-2021,7011488,1.36,TOTAL PRODUCE GATESHEAD,399244,Commissioning & Asset Management,Children's & Education Services,103,Supplies and Services,504,Equipment,5023,Revenue,CATERING.FOOD & BEVERAGES
19-MAY-2021,7011488,1.36,TOTAL PRODUCE GATESHEAD,399244,Commissioning & Asset Management,Children's & Education Services,103,Supplies and Services,504,Equipment,5023,Revenue,CATERING.FOOD & BEVERAGES
19-MAY-2021,7011488,1.36,TOTAL PRODUCE GATESHEAD,399244,Commissioning & Asset Management,Children's & Education Services,103,Supplies and Services,504,Equipment,5023,Revenue,CATERING.FOOD & BEVERAGES
19-MAY-2021,7011488,1.36,TOTAL PRODUCE GATESHEAD,399244,Commissioning & Asset Management,Children's & Education Services,103,Supplies and Services,504,Equipment,5023,Revenue,CATERING.FOOD & BEVERAGES
19-MAY-2021,7011488,1.36,TOTAL PRODUCE GATESHEAD,399244,Commissioning & Asset Management,Children's & Education Services,103,Supplies and Services,504,Equipment,5023,Revenue,CATERING.FOOD & BEVERAGES
19-MAY-2021,7011488,1.36,TOTAL PRODUCE GATESHEAD,399244,Commissioning & Asset Management,Children's & Education Services,103,Supplies and Services,504,Equipment,5023,Revenue,CATERING.FOOD & BEVERAGES
19-MAY-2021,7011488,1.36,TOTAL PRODUCE GATESHEAD,399244,Commissioning & Asset Management,Children's & Education Services,103,Supplies and Services,504,Equipment,5023,Revenue,CATERING.FOOD & BEVERAGES
19-MAY-2021,7011488,1.36,TOTAL PRODUCE GATESHEAD,399244,Commissioning & Asset Management,Children's & Education Services,103,Supplies and Services,504,Equipment,5023,Revenue,CATERING.FOOD & BEVERAGES
19-MAY-2021,7011488,1.36,TOTAL PRODUCE GATESHEAD,399244,Commissioning & Asset Management,Children's & Education Services,103,Supplies and Services,504,Equipment,5023,Revenue,CATERING.FOOD & BEVERAGES
19-MAY-2021,7011488,1.36,TOTAL PRODUCE GATESHEAD,399244,Commissioning & Asset Management,Children's & Education Services,103,Supplies and Services,504,Equipment,5023,Revenue,CATERING.FOOD & BEVERAGES
19-MAY-2021,7011488,1.36,TOTAL PRODUCE GATESHEAD,399244,Commissioning & Asset Management,Children's & Education Services,103,Supplies and Services,504,Equipment,5023,Revenue,CATERING.FOOD & BEVERAGES
19-MAY-2021,7011488,1.36,TOTAL PRODUCE GATESHEAD,399244,Commissioning & Asset Management,Children's & Education Services,103,Supplies and Services,504,Equipment,5023,Revenue,CATERING.FOOD & BEVERAGES
19-MAY-2021,7011488,1.36,TOTAL PRODUCE GATESHEAD,399244,Commissioning & Asset Management,Children's & Education Services,103,Supplies and Services,504,Equipment,5023,Revenue,CATERING.FOOD & BEVERAGES
19-MAY-2021,7011488,1.36,TOTAL PRODUCE GATESHEAD,399244,Commissioning & Asset Management,Children's & Education Services,103,Supplies and Services,504,Equipment,5023,Revenue,CATERING.FOOD & BEVERAGES
19-MAY-2021,7011488,1.36,TOTAL PRODUCE GATESHEAD,399244,Commissioning & Asset Management,Children's & Education Services,103,Supplies and Services,504,Equipment,5023,Revenue,CATERING.FOOD & BEVERAGES
19-MAY-2021,7011488,1.36,TOTAL PRODUCE GATESHEAD,399244,Commissioning & Asset Management,Children's & Education Services,103,Supplies and Services,504,Equipment,5023,Revenue,CATERING.FOOD & BEVERAGES
19-MAY-2021,7011488,1.36,TOTAL PRODUCE GATESHEAD,399244,Commissioning & Asset Management,Children's & Education Services,103,Supplies and Services,504,Equipment,5023,Revenue,CATERING.FOOD & BEVERAGES
19-MAY-2021,7011488,1.36,TOTAL PRODUCE GATESHEAD,399244,Commissioning & Asset Management,Children's & Education Services,103,Supplies and Services,504,Equipment,5023,Revenue,CATERING.FOOD & BEVERAGES
19-MAY-2021,7011488,1.36,TOTAL PRODUCE GATESHEAD,399244,Commissioning & Asset Management,Children's & Education Services,103,Supplies and Services,504,Equipment,5023,Revenue,CATERING.FOOD & BEVERAGES
19-MAY-2021,7011488,1.36,TOTAL PRODUCE GATESHEAD,399244,Commissioning & Asset Management,Children's & Education Services,103,Supplies and Services,504,Equipment,5023,Revenue,CATERING.FOOD & BEVERAGES
19-MAY-2021,7011488,1.36,TOTAL PRODUCE GATESHEAD,399244,Commissioning & Asset Management,Children's & Education Services,103,Supplies and Services,504,Equipment,5023,Revenue,CATERING.FOOD & BEVERAGES
19-MAY-2021,7011488,1.36,TOTAL PRODUCE GATESHEAD,399244,Commissioning & Asset Management,Children's & Education Services,103,Supplies and Services,504,Equipment,5023,Revenue,CATERING.FOOD & BEVERAGES
19-MAY-2021,7011488,1.36,TOTAL PRODUCE GATESHEAD,399244,Commissioning & Asset Management,Children's & Education Services,103,Supplies and Services,504,Equipment,5023,Revenue,CATERING.FOOD & BEVERAGES
19-MAY-2021,7011488,1.36,TOTAL PRODUCE GATESHEAD,399244,Commissioning & Asset Management,Children's & Education Services,103,Supplies and Services,504,Equipment,5023,Revenue,CATERING.FOOD & BEVERAGES
19-MAY-2021,7011488,1.36,TOTAL PRODUCE GATESHEAD,399244,Commissioning & Asset Management,Children's & Education Services,103,Supplies and Services,504,Equipment,5023,Revenue,CATERING.FOOD & BEVERAGES
19-MAY-2021,7011488,1.36,TOTAL PRODUCE GATESHEAD,399244,Commissioning & Asset Management,Children's & Education Services,103,Supplies and Services,504,Equipment,5023,Revenue,CATERING.FOOD & BEVERAGES
19-MAY-2021,7011488,1.36,TOTAL PRODUCE GATESHEAD,399244,Commissioning & Asset Management,Children's & Education Services,103,Supplies and Services,504,Equipment,5023,Revenue,CATERING.FOOD & BEVERAGES
19-MAY-2021,7011488,1.36,TOTAL PRODUCE GATESHEAD,399244,Commissioning & Asset Management,Children's & Education Services,103,Supplies and Services,504,Equipment,5023,Revenue,CATERING.FOOD & BEVERAGES
19-MAY-2021,7011488,1.36,TOTAL PRODUCE GATESHEAD,399244,Commissioning & Asset Management,Children's & Education Services,103,Supplies and Services,504,Equipment,5023,Revenue,CATERING.FOOD & BEVERAGES
19-MAY-2021,7011488,1.36,TOTAL PRODUCE GATESHEAD,399244,Commissioning & Asset Management,Children's & Education Services,103,Supplies and Services,504,Equipment,5023,Revenue,CATERING.FOOD & BEVERAGES
19-MAY-2021,7011488,1.36,TOTAL PRODUCE GATESHEAD,399244,Commissioning & Asset Management,Children's & Education Services,103,Supplies and Services,504,Equipment,5023,Revenue,CATERING.FOOD & BEVERAGES
19-MAY-2021,7011488,1.36,TOTAL PRODUCE GATESHEAD,399244,Commissioning & Asset Management,Children's & Education Services,103,Supplies and Services,504,Equipment,5023,Revenue,CATERING.FOOD & BEVERAGES
19-MAY-2021,7011488,1.36,TOTAL PRODUCE GATESHEAD,399244,Commissioning & Asset Management,Children's & Education Services,103,Supplies and Services,504,Equipment,5023,Revenue,CATERING.FOOD & BEVERAGES
19-MAY-2021,7011488,1.36,TOTAL PRODUCE GATESHEAD,399244,Commissioning & Asset Management,Children's & Education Services,103,Supplies and Services,504,Equipment,5023,Revenue,CATERING.FOOD & BEVERAGES
19-MAY-2021,7011488,1.36,TOTAL PRODUCE GATESHEAD,399244,Commissioning & Asset Management,Children's & Education Services,103,Supplies and Services,504,Equipment,5023,Revenue,CATERING.FOOD & BEVERAGES
19-MAY-2021,7011488,1.36,TOTAL PRODUCE GATESHEAD,399244,Commissioning & Asset Management,Children's & Education Services,103,Supplies and Services,504,Equipment,5023,Revenue,CATERING.FOOD & BEVERAGES
19-MAY-2021,7011488,1.37,TOTAL PRODUCE GATESHEAD,399244,"Environment, Housing & Leisure",Cultural & Related Services,104,Supplies and Services,504,Equipment,5023,Revenue,CATERING.FOOD & BEVERAGES
19-MAY-2021,7011488,1.38,TOTAL PRODUCE GATESHEAD,399244,Commissioning & Asset Management,Children's & Education Services,103,Supplies and Services,504,Equipment,5023,Revenue,CATERING.FOOD & BEVERAGES
19-MAY-2021,7011488,1.42,TOTAL PRODUCE GATESHEAD,399244,Commissioning & Asset Management,Children's & Education Services,103,Supplies and Services,504,Equipment,5023,Revenue,CATERING.FOOD & BEVERAGES
19-MAY-2021,7011488,1.43,TOTAL PRODUCE GATESHEAD,399244,"Environment, Housing & Leisure",Adult Social Care,101,Supplies and Services,504,Equipment,5023,Revenue,CATERING.FOOD & BEVERAGES
19-MAY-2021,7011488,1.43,TOTAL PRODUCE GATESHEAD,399244,"Environment, Housing & Leisure",Adult Social Care,101,Supplies and Services,504,Equipment,5023,Revenue,CATERING.FOOD & BEVERAGES
19-MAY-2021,7011488,1.43,TOTAL PRODUCE GATESHEAD,399244,Commissioning & Asset Management,Children's & Education Services,103,Supplies and Services,504,Equipment,5023,Revenue,CATERING.FOOD & BEVERAGES
19-MAY-2021,7011488,1.43,TOTAL PRODUCE GATESHEAD,399244,Commissioning & Asset Management,Children's & Education Services,103,Supplies and Services,504,Equipment,5023,Revenue,CATERING.FOOD & BEVERAGES
19-MAY-2021,7011488,1.43,TOTAL PRODUCE GATESHEAD,399244,Commissioning & Asset Management,Children's & Education Services,103,Supplies and Services,504,Equipment,5023,Revenue,CATERING.FOOD & BEVERAGES
19-MAY-2021,7011488,1.43,TOTAL PRODUCE GATESHEAD,399244,Commissioning & Asset Management,Children's & Education Services,103,Supplies and Services,504,Equipment,5023,Revenue,CATERING.FOOD & BEVERAGES
19-MAY-2021,7011488,1.43,TOTAL PRODUCE GATESHEAD,399244,Commissioning & Asset Management,Children's & Education Services,103,Supplies and Services,504,Equipment,5023,Revenue,CATERING.FOOD & BEVERAGES
19-MAY-2021,7011488,1.43,TOTAL PRODUCE GATESHEAD,399244,Commissioning & Asset Management,Children's & Education Services,103,Supplies and Services,504,Equipment,5023,Revenue,CATERING.FOOD & BEVERAGES
19-MAY-2021,7011488,1.43,TOTAL PRODUCE GATESHEAD,399244,"Environment, Housing & Leisure",Cultural & Related Services,104,Supplies and Services,504,Equipment,5023,Revenue,CATERING.FOOD & BEVERAGES
19-MAY-2021,7011488,1.43,TOTAL PRODUCE GATESHEAD,399244,"Environment, Housing & Leisure",Cultural & Related Services,104,Supplies and Services,504,Equipment,5023,Revenue,CATERING.FOOD & BEVERAGES
19-MAY-2021,7011488,1.43,TOTAL PRODUCE GATESHEAD,399244,"Environment, Housing & Leisure",Cultural & Related Services,104,Supplies and Services,504,Equipment,5023,Revenue,CATERING.FOOD & BEVERAGES
19-MAY-2021,7011488,1.43,TOTAL PRODUCE GATESHEAD,399244,"Environment, Housing & Leisure",Cultural & Related Services,104,Supplies and Services,504,Equipment,5023,Revenue,CATERING.FOOD & BEVERAGES
19-MAY-2021,7011488,1.43,TOTAL PRODUCE GATESHEAD,399244,"Environment, Housing & Leisure",Cultural & Related Services,104,Supplies and Services,504,Equipment,5023,Revenue,CATERING.FOOD & BEVERAGES
19-MAY-2021,7011488,1.43,TOTAL PRODUCE GATESHEAD,399244,"Environment, Housing & Leisure",Cultural & Related Services,104,Supplies and Services,504,Equipment,5023,Revenue,CATERING.FOOD & BEVERAGES
19-MAY-2021,7011488,1.44,TOTAL PRODUCE GATESHEAD,399244,Commissioning & Asset Management,Children's & Education Services,103,Supplies and Services,504,Equipment,5023,Revenue,CATERING.FOOD & BEVERAGES
19-MAY-2021,7011488,1.44,TOTAL PRODUCE GATESHEAD,399244,Commissioning & Asset Management,Children's & Education Services,103,Supplies and Services,504,Equipment,5023,Revenue,CATERING.FOOD & BEVERAGES
19-MAY-2021,7011488,1.44,TOTAL PRODUCE GATESHEAD,399244,Commissioning & Asset Management,Children's & Education Services,103,Supplies and Services,504,Equipment,5023,Revenue,CATERING.FOOD & BEVERAGES
19-MAY-2021,7011488,1.44,TOTAL PRODUCE GATESHEAD,399244,Commissioning & Asset Management,Children's & Education Services,103,Supplies and Services,504,Equipment,5023,Revenue,CATERING.FOOD & BEVERAGES
19-MAY-2021,7011488,1.44,TOTAL PRODUCE GATESHEAD,399244,Commissioning & Asset Management,Children's & Education Services,103,Supplies and Services,504,Equipment,5023,Revenue,CATERING.FOOD & BEVERAGES
19-MAY-2021,7011488,1.45,TOTAL PRODUCE GATESHEAD,399244,Commissioning & Asset Management,Children's & Education Services,103,Supplies and Services,504,Equipment,5023,Revenue,CATERING.FOOD & BEVERAGES
19-MAY-2021,7011488,1.47,TOTAL PRODUCE GATESHEAD,399244,Commissioning & Asset Management,Children's & Education Services,103,Supplies and Services,504,Equipment,5023,Revenue,CATERING.FOOD & BEVERAGES
19-MAY-2021,7011488,1.47,TOTAL PRODUCE GATESHEAD,399244,Commissioning & Asset Management,Children's & Education Services,103,Supplies and Services,504,Equipment,5023,Revenue,CATERING.FOOD & BEVERAGES
19-MAY-2021,7011488,1.47,TOTAL PRODUCE GATESHEAD,399244,Commissioning & Asset Management,Children's & Education Services,103,Supplies and Services,504,Equipment,5023,Revenue,CATERING.FOOD & BEVERAGES
19-MAY-2021,7011488,1.47,TOTAL PRODUCE GATESHEAD,399244,Commissioning & Asset Management,Children's & Education Services,103,Supplies and Services,504,Equipment,5023,Revenue,CATERING.FOOD & BEVERAGES
19-MAY-2021,7011488,1.47,TOTAL PRODUCE GATESHEAD,399244,Commissioning & Asset Management,Children's & Education Services,103,Supplies and Services,504,Equipment,5023,Revenue,CATERING.FOOD & BEVERAGES
19-MAY-2021,7011488,1.47,TOTAL PRODUCE GATESHEAD,399244,Commissioning & Asset Management,Children's & Education Services,103,Supplies and Services,504,Equipment,5023,Revenue,CATERING.FOOD & BEVERAGES
19-MAY-2021,7011488,1.47,TOTAL PRODUCE GATESHEAD,399244,Commissioning & Asset Management,Children's & Education Services,103,Supplies and Services,504,Equipment,5023,Revenue,CATERING.FOOD & BEVERAGES
19-MAY-2021,7011488,1.47,TOTAL PRODUCE GATESHEAD,399244,Commissioning & Asset Management,Children's & Education Services,103,Supplies and Services,504,Equipment,5023,Revenue,CATERING.FOOD & BEVERAGES
19-MAY-2021,7011488,1.47,TOTAL PRODUCE GATESHEAD,399244,Commissioning & Asset Management,Children's & Education Services,103,Supplies and Services,504,Equipment,5023,Revenue,CATERING.FOOD & BEVERAGES
19-MAY-2021,7011488,1.47,TOTAL PRODUCE GATESHEAD,399244,Commissioning & Asset Management,Children's & Education Services,103,Supplies and Services,504,Equipment,5023,Revenue,CATERING.FOOD & BEVERAGES
19-MAY-2021,7011488,1.47,TOTAL PRODUCE GATESHEAD,399244,Commissioning & Asset Management,Children's & Education Services,103,Supplies and Services,504,Equipment,5023,Revenue,CATERING.FOOD & BEVERAGES
19-MAY-2021,7011488,1.47,TOTAL PRODUCE GATESHEAD,399244,Commissioning & Asset Management,Children's & Education Services,103,Supplies and Services,504,Equipment,5023,Revenue,CATERING.FOOD & BEVERAGES
19-MAY-2021,7011488,1.47,TOTAL PRODUCE GATESHEAD,399244,Commissioning & Asset Management,Children's & Education Services,103,Supplies and Services,504,Equipment,5023,Revenue,CATERING.FOOD & BEVERAGES
19-MAY-2021,7011488,1.47,TOTAL PRODUCE GATESHEAD,399244,Commissioning & Asset Management,Children's & Education Services,103,Supplies and Services,504,Equipment,5023,Revenue,CATERING.FOOD & BEVERAGES
19-MAY-2021,7011488,1.47,TOTAL PRODUCE GATESHEAD,399244,Commissioning & Asset Management,Children's & Education Services,103,Supplies and Services,504,Equipment,5023,Revenue,CATERING.FOOD & BEVERAGES
19-MAY-2021,7011488,1.47,TOTAL PRODUCE GATESHEAD,399244,Commissioning & Asset Management,Children's & Education Services,103,Supplies and Services,504,Equipment,5023,Revenue,CATERING.FOOD & BEVERAGES
19-MAY-2021,7011488,1.47,TOTAL PRODUCE GATESHEAD,399244,Commissioning & Asset Management,Children's & Education Services,103,Supplies and Services,504,Equipment,5023,Revenue,CATERING.FOOD & BEVERAGES
19-MAY-2021,7011488,1.47,TOTAL PRODUCE GATESHEAD,399244,Commissioning & Asset Management,Children's & Education Services,103,Supplies and Services,504,Equipment,5023,Revenue,CATERING.FOOD & BEVERAGES
19-MAY-2021,7011488,1.47,TOTAL PRODUCE GATESHEAD,399244,Commissioning & Asset Management,Children's & Education Services,103,Supplies and Services,504,Equipment,5023,Revenue,CATERING.FOOD & BEVERAGES
19-MAY-2021,7011488,1.47,TOTAL PRODUCE GATESHEAD,399244,Commissioning & Asset Management,Children's & Education Services,103,Supplies and Services,504,Equipment,5023,Revenue,CATERING.FOOD & BEVERAGES
19-MAY-2021,7011488,1.47,TOTAL PRODUCE GATESHEAD,399244,Commissioning & Asset Management,Children's & Education Services,103,Supplies and Services,504,Equipment,5023,Revenue,CATERING.FOOD & BEVERAGES
19-MAY-2021,7011488,1.47,TOTAL PRODUCE GATESHEAD,399244,Commissioning & Asset Management,Children's & Education Services,103,Supplies and Services,504,Equipment,5023,Revenue,CATERING.FOOD & BEVERAGES
19-MAY-2021,7011488,1.47,TOTAL PRODUCE GATESHEAD,399244,Commissioning & Asset Management,Children's & Education Services,103,Supplies and Services,504,Equipment,5023,Revenue,CATERING.FOOD & BEVERAGES
19-MAY-2021,7011488,1.47,TOTAL PRODUCE GATESHEAD,399244,Commissioning & Asset Management,Children's & Education Services,103,Supplies and Services,504,Equipment,5023,Revenue,CATERING.FOOD & BEVERAGES
19-MAY-2021,7011488,1.47,TOTAL PRODUCE GATESHEAD,399244,Commissioning & Asset Management,Children's & Education Services,103,Supplies and Services,504,Equipment,5023,Revenue,CATERING.FOOD & BEVERAGES
19-MAY-2021,7011488,1.47,TOTAL PRODUCE GATESHEAD,399244,Commissioning & Asset Management,Children's & Education Services,103,Supplies and Services,504,Equipment,5023,Revenue,CATERING.FOOD & BEVERAGES
19-MAY-2021,7011488,1.47,TOTAL PRODUCE GATESHEAD,399244,Commissioning & Asset Management,Children's & Education Services,103,Supplies and Services,504,Equipment,5023,Revenue,CATERING.FOOD & BEVERAGES
19-MAY-2021,7011488,1.47,TOTAL PRODUCE GATESHEAD,399244,Commissioning & Asset Management,Children's & Education Services,103,Supplies and Services,504,Equipment,5023,Revenue,CATERING.FOOD & BEVERAGES
19-MAY-2021,7011488,1.47,TOTAL PRODUCE GATESHEAD,399244,Commissioning & Asset Management,Children's & Education Services,103,Supplies and Services,504,Equipment,5023,Revenue,CATERING.FOOD & BEVERAGES
19-MAY-2021,7011488,1.47,TOTAL PRODUCE GATESHEAD,399244,Commissioning & Asset Management,Children's & Education Services,103,Supplies and Services,504,Equipment,5023,Revenue,CATERING.FOOD & BEVERAGES
19-MAY-2021,7011488,1.48,TOTAL PRODUCE GATESHEAD,399244,Commissioning & Asset Management,Children's & Education Services,103,Supplies and Services,504,Equipment,5023,Revenue,CATERING.FOOD & BEVERAGES
19-MAY-2021,7011488,1.48,TOTAL PRODUCE GATESHEAD,399244,Commissioning & Asset Management,Children's & Education Services,103,Supplies and Services,504,Equipment,5023,Revenue,CATERING.FOOD & BEVERAGES
19-MAY-2021,7011488,1.48,TOTAL PRODUCE GATESHEAD,399244,Commissioning & Asset Management,Children's & Education Services,103,Supplies and Services,504,Equipment,5023,Revenue,CATERING.FOOD & BEVERAGES
19-MAY-2021,7011488,1.48,TOTAL PRODUCE GATESHEAD,399244,Commissioning & Asset Management,Children's & Education Services,103,Supplies and Services,504,Equipment,5023,Revenue,CATERING.FOOD & BEVERAGES
19-MAY-2021,7011488,1.48,TOTAL PRODUCE GATESHEAD,399244,Commissioning & Asset Management,Children's & Education Services,103,Supplies and Services,504,Equipment,5023,Revenue,CATERING.FOOD & BEVERAGES
19-MAY-2021,7011488,1.48,TOTAL PRODUCE GATESHEAD,399244,Commissioning & Asset Management,Children's & Education Services,103,Supplies and Services,504,Equipment,5023,Revenue,CATERING.FOOD & BEVERAGES
19-MAY-2021,7011488,1.49,TOTAL PRODUCE GATESHEAD,399244,Commissioning & Asset Management,Children's & Education Services,103,Supplies and Services,504,Equipment,5023,Revenue,CATERING.FOOD & BEVERAGES
19-MAY-2021,7011488,1.49,TOTAL PRODUCE GATESHEAD,399244,Commissioning & Asset Management,Children's & Education Services,103,Supplies and Services,504,Equipment,5023,Revenue,CATERING.FOOD & BEVERAGES
19-MAY-2021,7011488,1.49,TOTAL PRODUCE GATESHEAD,399244,Commissioning & Asset Management,Children's & Education Services,103,Supplies and Services,504,Equipment,5023,Revenue,CATERING.FOOD & BEVERAGES
19-MAY-2021,7011488,1.49,TOTAL PRODUCE GATESHEAD,399244,Commissioning & Asset Management,Children's & Education Services,103,Supplies and Services,504,Equipment,5023,Revenue,CATERING.FOOD & BEVERAGES
19-MAY-2021,7011488,1.49,TOTAL PRODUCE GATESHEAD,399244,Commissioning & Asset Management,Children's & Education Services,103,Supplies and Services,504,Equipment,5023,Revenue,CATERING.FOOD & BEVERAGES
19-MAY-2021,7011488,1.49,TOTAL PRODUCE GATESHEAD,399244,Commissioning & Asset Management,Children's & Education Services,103,Supplies and Services,504,Equipment,5023,Revenue,CATERING.FOOD & BEVERAGES
19-MAY-2021,7011488,1.49,TOTAL PRODUCE GATESHEAD,399244,Commissioning & Asset Management,Children's & Education Services,103,Supplies and Services,504,Equipment,5023,Revenue,CATERING.FOOD & BEVERAGES
19-MAY-2021,7011488,1.49,TOTAL PRODUCE GATESHEAD,399244,Commissioning & Asset Management,Children's & Education Services,103,Supplies and Services,504,Equipment,5023,Revenue,CATERING.FOOD & BEVERAGES
19-MAY-2021,7011488,1.49,TOTAL PRODUCE GATESHEAD,399244,Commissioning & Asset Management,Children's & Education Services,103,Supplies and Services,504,Equipment,5023,Revenue,CATERING.FOOD & BEVERAGES
19-MAY-2021,7011488,1.49,TOTAL PRODUCE GATESHEAD,399244,Commissioning & Asset Management,Children's & Education Services,103,Supplies and Services,504,Equipment,5023,Revenue,CATERING.FOOD & BEVERAGES
19-MAY-2021,7011488,1.49,TOTAL PRODUCE GATESHEAD,399244,Commissioning & Asset Management,Children's & Education Services,103,Supplies and Services,504,Equipment,5023,Revenue,CATERING.FOOD & BEVERAGES
19-MAY-2021,7011488,1.49,TOTAL PRODUCE GATESHEAD,399244,Commissioning & Asset Management,Children's & Education Services,103,Supplies and Services,504,Equipment,5023,Revenue,CATERING.FOOD & BEVERAGES
19-MAY-2021,7011488,1.49,TOTAL PRODUCE GATESHEAD,399244,Commissioning & Asset Management,Children's & Education Services,103,Supplies and Services,504,Equipment,5023,Revenue,CATERING.FOOD & BEVERAGES
19-MAY-2021,7011488,1.49,TOTAL PRODUCE GATESHEAD,399244,Commissioning & Asset Management,Children's & Education Services,103,Supplies and Services,504,Equipment,5023,Revenue,CATERING.FOOD & BEVERAGES
19-MAY-2021,7011488,1.49,TOTAL PRODUCE GATESHEAD,399244,Commissioning & Asset Management,Children's & Education Services,103,Supplies and Services,504,Equipment,5023,Revenue,CATERING.FOOD & BEVERAGES
19-MAY-2021,7011488,1.49,TOTAL PRODUCE GATESHEAD,399244,Commissioning & Asset Management,Children's & Education Services,103,Supplies and Services,504,Equipment,5023,Revenue,CATERING.FOOD & BEVERAGES
19-MAY-2021,7011488,1.49,TOTAL PRODUCE GATESHEAD,399244,Commissioning & Asset Management,Children's & Education Services,103,Supplies and Services,504,Equipment,5023,Revenue,CATERING.FOOD & BEVERAGES
19-MAY-2021,7011488,1.49,TOTAL PRODUCE GATESHEAD,399244,Commissioning & Asset Management,Children's & Education Services,103,Supplies and Services,504,Equipment,5023,Revenue,CATERING.FOOD & BEVERAGES
19-MAY-2021,7011488,1.49,TOTAL PRODUCE GATESHEAD,399244,Commissioning & Asset Management,Children's & Education Services,103,Supplies and Services,504,Equipment,5023,Revenue,CATERING.FOOD & BEVERAGES
19-MAY-2021,7011488,1.49,TOTAL PRODUCE GATESHEAD,399244,Commissioning & Asset Management,Children's & Education Services,103,Supplies and Services,504,Equipment,5023,Revenue,CATERING.FOOD & BEVERAGES
19-MAY-2021,7011488,1.49,TOTAL PRODUCE GATESHEAD,399244,Commissioning & Asset Management,Children's & Education Services,103,Supplies and Services,504,Equipment,5023,Revenue,CATERING.FOOD & BEVERAGES
19-MAY-2021,7011488,1.49,TOTAL PRODUCE GATESHEAD,399244,Commissioning & Asset Management,Children's & Education Services,103,Supplies and Services,504,Equipment,5023,Revenue,CATERING.FOOD & BEVERAGES
19-MAY-2021,7011488,1.49,TOTAL PRODUCE GATESHEAD,399244,Commissioning & Asset Management,Children's & Education Services,103,Supplies and Services,504,Equipment,5023,Revenue,CATERING.FOOD & BEVERAGES
19-MAY-2021,7011488,1.49,TOTAL PRODUCE GATESHEAD,399244,Commissioning & Asset Management,Children's & Education Services,103,Supplies and Services,504,Equipment,5023,Revenue,CATERING.FOOD & BEVERAGES
19-MAY-2021,7011488,1.49,TOTAL PRODUCE GATESHEAD,399244,Commissioning & Asset Management,Children's & Education Services,103,Supplies and Services,504,Equipment,5023,Revenue,CATERING.FOOD & BEVERAGES
19-MAY-2021,7011488,1.49,TOTAL PRODUCE GATESHEAD,399244,Commissioning & Asset Management,Children's & Education Services,103,Supplies and Services,504,Equipment,5023,Revenue,CATERING.FOOD & BEVERAGES
19-MAY-2021,7011488,1.49,TOTAL PRODUCE GATESHEAD,399244,Commissioning & Asset Management,Children's & Education Services,103,Supplies and Services,504,Equipment,5023,Revenue,CATERING.FOOD & BEVERAGES
19-MAY-2021,7011488,1.49,TOTAL PRODUCE GATESHEAD,399244,Commissioning & Asset Management,Children's & Education Services,103,Supplies and Services,504,Equipment,5023,Revenue,CATERING.FOOD & BEVERAGES
19-MAY-2021,7011488,1.49,TOTAL PRODUCE GATESHEAD,399244,Commissioning & Asset Management,Children's & Education Services,103,Supplies and Services,504,Equipment,5023,Revenue,CATERING.FOOD & BEVERAGES
19-MAY-2021,7011488,1.49,TOTAL PRODUCE GATESHEAD,399244,Commissioning & Asset Management,Children's & Education Services,103,Supplies and Services,504,Equipment,5023,Revenue,CATERING.FOOD & BEVERAGES
19-MAY-2021,7011488,1.49,TOTAL PRODUCE GATESHEAD,399244,Commissioning & Asset Management,Children's & Education Services,103,Supplies and Services,504,Equipment,5023,Revenue,CATERING.FOOD & BEVERAGES
19-MAY-2021,7011488,1.49,TOTAL PRODUCE GATESHEAD,399244,Commissioning & Asset Management,Children's & Education Services,103,Supplies and Services,504,Equipment,5023,Revenue,CATERING.FOOD & BEVERAGES
19-MAY-2021,7011488,1.49,TOTAL PRODUCE GATESHEAD,399244,Commissioning & Asset Management,Children's & Education Services,103,Supplies and Services,504,Equipment,5023,Revenue,CATERING.FOOD & BEVERAGES
19-MAY-2021,7011488,1.49,TOTAL PRODUCE GATESHEAD,399244,Commissioning & Asset Management,Children's & Education Services,103,Supplies and Services,504,Equipment,5023,Revenue,CATERING.FOOD & BEVERAGES
19-MAY-2021,7011488,1.49,TOTAL PRODUCE GATESHEAD,399244,Commissioning & Asset Management,Children's & Education Services,103,Supplies and Services,504,Equipment,5023,Revenue,CATERING.FOOD & BEVERAGES
19-MAY-2021,7011488,1.49,TOTAL PRODUCE GATESHEAD,399244,Commissioning & Asset Management,Children's & Education Services,103,Supplies and Services,504,Equipment,5023,Revenue,CATERING.FOOD & BEVERAGES
19-MAY-2021,7011488,1.49,TOTAL PRODUCE GATESHEAD,399244,Commissioning & Asset Management,Children's & Education Services,103,Supplies and Services,504,Equipment,5023,Revenue,CATERING.FOOD & BEVERAGES
19-MAY-2021,7011488,1.49,TOTAL PRODUCE GATESHEAD,399244,Commissioning & Asset Management,Children's & Education Services,103,Supplies and Services,504,Equipment,5023,Revenue,CATERING.FOOD & BEVERAGES
19-MAY-2021,7011488,1.49,TOTAL PRODUCE GATESHEAD,399244,Commissioning & Asset Management,Children's & Education Services,103,Supplies and Services,504,Equipment,5023,Revenue,CATERING.FOOD & BEVERAGES
19-MAY-2021,7011488,1.49,TOTAL PRODUCE GATESHEAD,399244,Commissioning & Asset Management,Children's & Education Services,103,Supplies and Services,504,Equipment,5023,Revenue,CATERING.FOOD & BEVERAGES
19-MAY-2021,7011488,1.49,TOTAL PRODUCE GATESHEAD,399244,Commissioning & Asset Management,Children's & Education Services,103,Supplies and Services,504,Equipment,5023,Revenue,CATERING.FOOD & BEVERAGES
19-MAY-2021,7011488,1.49,TOTAL PRODUCE GATESHEAD,399244,Commissioning & Asset Management,Children's & Education Services,103,Supplies and Services,504,Equipment,5023,Revenue,CATERING.FOOD & BEVERAGES
19-MAY-2021,7011488,1.49,TOTAL PRODUCE GATESHEAD,399244,Commissioning & Asset Management,Children's & Education Services,103,Supplies and Services,504,Equipment,5023,Revenue,CATERING.FOOD & BEVERAGES
19-MAY-2021,7011488,1.49,TOTAL PRODUCE GATESHEAD,399244,Commissioning & Asset Management,Children's & Education Services,103,Supplies and Services,504,Equipment,5023,Revenue,CATERING.FOOD & BEVERAGES
19-MAY-2021,7011488,1.49,TOTAL PRODUCE GATESHEAD,399244,Commissioning & Asset Management,Children's & Education Services,103,Supplies and Services,504,Equipment,5023,Revenue,CATERING.FOOD & BEVERAGES
19-MAY-2021,7011488,1.49,TOTAL PRODUCE GATESHEAD,399244,Commissioning & Asset Management,Children's & Education Services,103,Supplies and Services,504,Equipment,5023,Revenue,CATERING.FOOD & BEVERAGES
19-MAY-2021,7011488,1.49,TOTAL PRODUCE GATESHEAD,399244,Commissioning & Asset Management,Children's & Education Services,103,Supplies and Services,504,Equipment,5023,Revenue,CATERING.FOOD & BEVERAGES
19-MAY-2021,7011488,1.49,TOTAL PRODUCE GATESHEAD,399244,Commissioning & Asset Management,Children's & Education Services,103,Supplies and Services,504,Equipment,5023,Revenue,CATERING.FOOD & BEVERAGES
19-MAY-2021,7011488,1.49,TOTAL PRODUCE GATESHEAD,399244,Commissioning & Asset Management,Children's & Education Services,103,Supplies and Services,504,Equipment,5023,Revenue,CATERING.FOOD & BEVERAGES
19-MAY-2021,7011488,1.49,TOTAL PRODUCE GATESHEAD,399244,Commissioning & Asset Management,Children's & Education Services,103,Supplies and Services,504,Equipment,5023,Revenue,CATERING.FOOD & BEVERAGES
19-MAY-2021,7011488,1.49,TOTAL PRODUCE GATESHEAD,399244,Commissioning & Asset Management,Children's & Education Services,103,Supplies and Services,504,Equipment,5023,Revenue,CATERING.FOOD & BEVERAGES
19-MAY-2021,7011488,1.49,TOTAL PRODUCE GATESHEAD,399244,Commissioning & Asset Management,Children's & Education Services,103,Supplies and Services,504,Equipment,5023,Revenue,CATERING.FOOD & BEVERAGES
19-MAY-2021,7011488,1.49,TOTAL PRODUCE GATESHEAD,399244,Commissioning & Asset Management,Children's & Education Services,103,Supplies and Services,504,Equipment,5023,Revenue,CATERING.FOOD & BEVERAGES
19-MAY-2021,7011488,1.49,TOTAL PRODUCE GATESHEAD,399244,Commissioning & Asset Management,Children's & Education Services,103,Supplies and Services,504,Equipment,5023,Revenue,CATERING.FOOD & BEVERAGES
19-MAY-2021,7011488,1.49,TOTAL PRODUCE GATESHEAD,399244,Commissioning & Asset Management,Children's & Education Services,103,Supplies and Services,504,Equipment,5023,Revenue,CATERING.FOOD & BEVERAGES
19-MAY-2021,7011488,1.49,TOTAL PRODUCE GATESHEAD,399244,Commissioning & Asset Management,Children's & Education Services,103,Supplies and Services,504,Equipment,5023,Revenue,CATERING.FOOD & BEVERAGES
19-MAY-2021,7011488,1.49,TOTAL PRODUCE GATESHEAD,399244,Commissioning & Asset Management,Children's & Education Services,103,Supplies and Services,504,Equipment,5023,Revenue,CATERING.FOOD & BEVERAGES
19-MAY-2021,7011488,1.49,TOTAL PRODUCE GATESHEAD,399244,Commissioning & Asset Management,Children's & Education Services,103,Supplies and Services,504,Equipment,5023,Revenue,CATERING.FOOD & BEVERAGES
19-MAY-2021,7011488,1.49,TOTAL PRODUCE GATESHEAD,399244,Commissioning & Asset Management,Children's & Education Services,103,Supplies and Services,504,Equipment,5023,Revenue,CATERING.FOOD & BEVERAGES
19-MAY-2021,7011488,1.49,TOTAL PRODUCE GATESHEAD,399244,Commissioning & Asset Management,Children's & Education Services,103,Supplies and Services,504,Equipment,5023,Revenue,CATERING.FOOD & BEVERAGES
19-MAY-2021,7011488,1.49,TOTAL PRODUCE GATESHEAD,399244,Commissioning & Asset Management,Children's & Education Services,103,Supplies and Services,504,Equipment,5023,Revenue,CATERING.FOOD & BEVERAGES
19-MAY-2021,7011488,1.49,TOTAL PRODUCE GATESHEAD,399244,Commissioning & Asset Management,Children's & Education Services,103,Supplies and Services,504,Equipment,5023,Revenue,CATERING.FOOD & BEVERAGES
19-MAY-2021,7011488,1.49,TOTAL PRODUCE GATESHEAD,399244,Commissioning & Asset Management,Children's & Education Services,103,Supplies and Services,504,Equipment,5023,Revenue,CATERING.FOOD & BEVERAGES
19-MAY-2021,7011488,1.49,TOTAL PRODUCE GATESHEAD,399244,Commissioning & Asset Management,Children's & Education Services,103,Supplies and Services,504,Equipment,5023,Revenue,CATERING.FOOD & BEVERAGES
19-MAY-2021,7011488,1.49,TOTAL PRODUCE GATESHEAD,399244,Commissioning & Asset Management,Children's & Education Services,103,Supplies and Services,504,Equipment,5023,Revenue,CATERING.FOOD & BEVERAGES
19-MAY-2021,7011488,1.49,TOTAL PRODUCE GATESHEAD,399244,Commissioning & Asset Management,Children's & Education Services,103,Supplies and Services,504,Equipment,5023,Revenue,CATERING.FOOD & BEVERAGES
19-MAY-2021,7011488,1.49,TOTAL PRODUCE GATESHEAD,399244,Commissioning & Asset Management,Children's & Education Services,103,Supplies and Services,504,Equipment,5023,Revenue,CATERING.FOOD & BEVERAGES
19-MAY-2021,7011488,1.49,TOTAL PRODUCE GATESHEAD,399244,Commissioning & Asset Management,Children's & Education Services,103,Supplies and Services,504,Equipment,5023,Revenue,CATERING.FOOD & BEVERAGES
19-MAY-2021,7011488,1.49,TOTAL PRODUCE GATESHEAD,399244,Commissioning & Asset Management,Children's & Education Services,103,Supplies and Services,504,Equipment,5023,Revenue,CATERING.FOOD & BEVERAGES
19-MAY-2021,7011488,1.49,TOTAL PRODUCE GATESHEAD,399244,Commissioning & Asset Management,Children's & Education Services,103,Supplies and Services,504,Equipment,5023,Revenue,CATERING.FOOD & BEVERAGES
19-MAY-2021,7011488,1.49,TOTAL PRODUCE GATESHEAD,399244,Commissioning & Asset Management,Children's & Education Services,103,Supplies and Services,504,Equipment,5023,Revenue,CATERING.FOOD & BEVERAGES
19-MAY-2021,7011488,1.49,TOTAL PRODUCE GATESHEAD,399244,Commissioning & Asset Management,Children's & Education Services,103,Supplies and Services,504,Equipment,5023,Revenue,CATERING.FOOD & BEVERAGES
19-MAY-2021,7011488,1.49,TOTAL PRODUCE GATESHEAD,399244,Commissioning & Asset Management,Children's & Education Services,103,Supplies and Services,504,Equipment,5023,Revenue,CATERING.FOOD & BEVERAGES
19-MAY-2021,7011488,1.49,TOTAL PRODUCE GATESHEAD,399244,Commissioning & Asset Management,Children's & Education Services,103,Supplies and Services,504,Equipment,5023,Revenue,CATERING.FOOD & BEVERAGES
19-MAY-2021,7011488,1.49,TOTAL PRODUCE GATESHEAD,399244,Commissioning & Asset Management,Children's & Education Services,103,Supplies and Services,504,Equipment,5023,Revenue,CATERING.FOOD & BEVERAGES
19-MAY-2021,7011488,1.49,TOTAL PRODUCE GATESHEAD,399244,Commissioning & Asset Management,Children's & Education Services,103,Supplies and Services,504,Equipment,5023,Revenue,CATERING.FOOD & BEVERAGES
19-MAY-2021,7011488,1.49,TOTAL PRODUCE GATESHEAD,399244,Commissioning & Asset Management,Children's & Education Services,103,Supplies and Services,504,Equipment,5023,Revenue,CATERING.FOOD & BEVERAGES
19-MAY-2021,7011488,1.49,TOTAL PRODUCE GATESHEAD,399244,Commissioning & Asset Management,Children's & Education Services,103,Supplies and Services,504,Equipment,5023,Revenue,CATERING.FOOD & BEVERAGES
19-MAY-2021,7011488,1.49,TOTAL PRODUCE GATESHEAD,399244,Commissioning & Asset Management,Children's & Education Services,103,Supplies and Services,504,Equipment,5023,Revenue,CATERING.FOOD & BEVERAGES
19-MAY-2021,7011488,1.49,TOTAL PRODUCE GATESHEAD,399244,Commissioning & Asset Management,Children's & Education Services,103,Supplies and Services,504,Equipment,5023,Revenue,CATERING.FOOD & BEVERAGES
19-MAY-2021,7011488,1.49,TOTAL PRODUCE GATESHEAD,399244,Commissioning & Asset Management,Children's & Education Services,103,Supplies and Services,504,Equipment,5023,Revenue,CATERING.FOOD & BEVERAGES
19-MAY-2021,7011488,1.49,TOTAL PRODUCE GATESHEAD,399244,Commissioning & Asset Management,Children's & Education Services,103,Supplies and Services,504,Equipment,5023,Revenue,CATERING.FOOD & BEVERAGES
19-MAY-2021,7011488,1.5,TOTAL PRODUCE GATESHEAD,399244,Commissioning & Asset Management,Children's & Education Services,103,Supplies and Services,504,Equipment,5023,Revenue,CATERING.FOOD & BEVERAGES
19-MAY-2021,7011488,1.5,TOTAL PRODUCE GATESHEAD,399244,Commissioning & Asset Management,Children's & Education Services,103,Supplies and Services,504,Equipment,5023,Revenue,CATERING.FOOD & BEVERAGES
19-MAY-2021,7011488,1.5,TOTAL PRODUCE GATESHEAD,399244,Commissioning & Asset Management,Children's & Education Services,103,Supplies and Services,504,Equipment,5023,Revenue,CATERING.FOOD & BEVERAGES
19-MAY-2021,7011488,1.5,TOTAL PRODUCE GATESHEAD,399244,Commissioning & Asset Management,Children's & Education Services,103,Supplies and Services,504,Equipment,5023,Revenue,CATERING.FOOD & BEVERAGES
19-MAY-2021,7011488,1.5,TOTAL PRODUCE GATESHEAD,399244,Commissioning & Asset Management,Children's & Education Services,103,Supplies and Services,504,Equipment,5023,Revenue,CATERING.FOOD & BEVERAGES
19-MAY-2021,7011488,1.5,TOTAL PRODUCE GATESHEAD,399244,Commissioning & Asset Management,Children's & Education Services,103,Supplies and Services,504,Equipment,5023,Revenue,CATERING.FOOD & BEVERAGES
19-MAY-2021,7011488,1.5,TOTAL PRODUCE GATESHEAD,399244,Commissioning & Asset Management,Children's & Education Services,103,Supplies and Services,504,Equipment,5023,Revenue,CATERING.FOOD & BEVERAGES
19-MAY-2021,7011488,1.5,TOTAL PRODUCE GATESHEAD,399244,Commissioning & Asset Management,Children's & Education Services,103,Supplies and Services,504,Equipment,5023,Revenue,CATERING.FOOD & BEVERAGES
19-MAY-2021,7011488,1.5,TOTAL PRODUCE GATESHEAD,399244,Commissioning & Asset Management,Children's & Education Services,103,Supplies and Services,504,Equipment,5023,Revenue,CATERING.FOOD & BEVERAGES
19-MAY-2021,7011488,1.5,TOTAL PRODUCE GATESHEAD,399244,Commissioning & Asset Management,Children's & Education Services,103,Supplies and Services,504,Equipment,5023,Revenue,CATERING.FOOD & BEVERAGES
19-MAY-2021,7011488,1.5,TOTAL PRODUCE GATESHEAD,399244,Commissioning & Asset Management,Children's & Education Services,103,Supplies and Services,504,Equipment,5023,Revenue,CATERING.FOOD & BEVERAGES
19-MAY-2021,7011488,1.5,TOTAL PRODUCE GATESHEAD,399244,Commissioning & Asset Management,Children's & Education Services,103,Supplies and Services,504,Equipment,5023,Revenue,CATERING.FOOD & BEVERAGES
19-MAY-2021,7011488,1.5,TOTAL PRODUCE GATESHEAD,399244,Commissioning & Asset Management,Children's & Education Services,103,Supplies and Services,504,Equipment,5023,Revenue,CATERING.FOOD & BEVERAGES
19-MAY-2021,7011488,1.5,TOTAL PRODUCE GATESHEAD,399244,Commissioning & Asset Management,Children's & Education Services,103,Supplies and Services,504,Equipment,5023,Revenue,CATERING.FOOD & BEVERAGES
19-MAY-2021,7011488,1.5,TOTAL PRODUCE GATESHEAD,399244,Commissioning & Asset Management,Children's & Education Services,103,Supplies and Services,504,Equipment,5023,Revenue,CATERING.FOOD & BEVERAGES
19-MAY-2021,7011488,1.5,TOTAL PRODUCE GATESHEAD,399244,Commissioning & Asset Management,Children's & Education Services,103,Supplies and Services,504,Equipment,5023,Revenue,CATERING.FOOD & BEVERAGES
19-MAY-2021,7011488,1.5,TOTAL PRODUCE GATESHEAD,399244,Commissioning & Asset Management,Children's & Education Services,103,Supplies and Services,504,Equipment,5023,Revenue,CATERING.FOOD & BEVERAGES
19-MAY-2021,7011488,1.5,TOTAL PRODUCE GATESHEAD,399244,Commissioning & Asset Management,Children's & Education Services,103,Supplies and Services,504,Equipment,5023,Revenue,CATERING.FOOD & BEVERAGES
19-MAY-2021,7011488,1.5,TOTAL PRODUCE GATESHEAD,399244,Commissioning & Asset Management,Children's & Education Services,103,Supplies and Services,504,Equipment,5023,Revenue,CATERING.FOOD & BEVERAGES
19-MAY-2021,7011488,1.5,TOTAL PRODUCE GATESHEAD,399244,Commissioning & Asset Management,Children's & Education Services,103,Supplies and Services,504,Equipment,5023,Revenue,CATERING.FOOD & BEVERAGES
19-MAY-2021,7011488,1.5,TOTAL PRODUCE GATESHEAD,399244,Commissioning & Asset Management,Children's & Education Services,103,Supplies and Services,504,Equipment,5023,Revenue,CATERING.FOOD & BEVERAGES
19-MAY-2021,7011488,1.5,TOTAL PRODUCE GATESHEAD,399244,Commissioning & Asset Management,Children's & Education Services,103,Supplies and Services,504,Equipment,5023,Revenue,CATERING.FOOD & BEVERAGES
19-MAY-2021,7011488,1.5,TOTAL PRODUCE GATESHEAD,399244,Commissioning & Asset Management,Children's & Education Services,103,Supplies and Services,504,Equipment,5023,Revenue,CATERING.FOOD & BEVERAGES
19-MAY-2021,7011488,1.5,TOTAL PRODUCE GATESHEAD,399244,Commissioning & Asset Management,Children's & Education Services,103,Supplies and Services,504,Equipment,5023,Revenue,CATERING.FOOD & BEVERAGES
19-MAY-2021,7011488,1.5,TOTAL PRODUCE GATESHEAD,399244,Commissioning & Asset Management,Children's & Education Services,103,Supplies and Services,504,Equipment,5023,Revenue,CATERING.FOOD & BEVERAGES
19-MAY-2021,7011488,1.5,TOTAL PRODUCE GATESHEAD,399244,Commissioning & Asset Management,Children's & Education Services,103,Supplies and Services,504,Equipment,5023,Revenue,CATERING.FOOD & BEVERAGES
19-MAY-2021,7011488,1.5,TOTAL PRODUCE GATESHEAD,399244,Commissioning & Asset Management,Children's & Education Services,103,Supplies and Services,504,Equipment,5023,Revenue,CATERING.FOOD & BEVERAGES
19-MAY-2021,7011488,1.5,TOTAL PRODUCE GATESHEAD,399244,Commissioning & Asset Management,Children's & Education Services,103,Supplies and Services,504,Equipment,5023,Revenue,CATERING.FOOD & BEVERAGES
19-MAY-2021,7011488,1.5,TOTAL PRODUCE GATESHEAD,399244,Commissioning & Asset Management,Children's & Education Services,103,Supplies and Services,504,Equipment,5023,Revenue,CATERING.FOOD & BEVERAGES
19-MAY-2021,7011488,1.5,TOTAL PRODUCE GATESHEAD,399244,Commissioning & Asset Management,Children's & Education Services,103,Supplies and Services,504,Equipment,5023,Revenue,CATERING.FOOD & BEVERAGES
19-MAY-2021,7011488,1.5,TOTAL PRODUCE GATESHEAD,399244,Commissioning & Asset Management,Children's & Education Services,103,Supplies and Services,504,Equipment,5023,Revenue,CATERING.FOOD & BEVERAGES
19-MAY-2021,7011488,1.5,TOTAL PRODUCE GATESHEAD,399244,Commissioning & Asset Management,Children's & Education Services,103,Supplies and Services,504,Equipment,5023,Revenue,CATERING.FOOD & BEVERAGES
19-MAY-2021,7011488,1.54,TOTAL PRODUCE GATESHEAD,399244,"Environment, Housing & Leisure",Adult Social Care,101,Supplies and Services,504,Equipment,5023,Revenue,CATERING.FOOD & BEVERAGES
19-MAY-2021,7011488,1.54,TOTAL PRODUCE GATESHEAD,399244,"Environment, Housing & Leisure",Adult Social Care,101,Supplies and Services,504,Equipment,5023,Revenue,CATERING.FOOD & BEVERAGES
19-MAY-2021,7011488,1.54,TOTAL PRODUCE GATESHEAD,399244,"Environment, Housing & Leisure",Adult Social Care,101,Supplies and Services,504,Equipment,5023,Revenue,CATERING.FOOD & BEVERAGES
19-MAY-2021,7011488,1.54,TOTAL PRODUCE GATESHEAD,399244,Commissioning & Asset Management,Children's & Education Services,103,Supplies and Services,504,Equipment,5023,Revenue,CATERING.FOOD & BEVERAGES
19-MAY-2021,7011488,1.54,TOTAL PRODUCE GATESHEAD,399244,Commissioning & Asset Management,Children's & Education Services,103,Supplies and Services,504,Equipment,5023,Revenue,CATERING.FOOD & BEVERAGES
19-MAY-2021,7011488,1.54,TOTAL PRODUCE GATESHEAD,399244,Commissioning & Asset Management,Children's & Education Services,103,Supplies and Services,504,Equipment,5023,Revenue,CATERING.FOOD & BEVERAGES
19-MAY-2021,7011488,1.54,TOTAL PRODUCE GATESHEAD,399244,Commissioning & Asset Management,Children's & Education Services,103,Supplies and Services,504,Equipment,5023,Revenue,CATERING.FOOD & BEVERAGES
19-MAY-2021,7011488,1.54,TOTAL PRODUCE GATESHEAD,399244,Commissioning & Asset Management,Children's & Education Services,103,Supplies and Services,504,Equipment,5023,Revenue,CATERING.FOOD & BEVERAGES
19-MAY-2021,7011488,1.54,TOTAL PRODUCE GATESHEAD,399244,Commissioning & Asset Management,Children's & Education Services,103,Supplies and Services,504,Equipment,5023,Revenue,CATERING.FOOD & BEVERAGES
19-MAY-2021,7011488,1.54,TOTAL PRODUCE GATESHEAD,399244,Commissioning & Asset Management,Children's & Education Services,103,Supplies and Services,504,Equipment,5023,Revenue,CATERING.FOOD & BEVERAGES
19-MAY-2021,7011488,1.54,TOTAL PRODUCE GATESHEAD,399244,Commissioning & Asset Management,Children's & Education Services,103,Supplies and Services,504,Equipment,5023,Revenue,CATERING.FOOD & BEVERAGES
19-MAY-2021,7011488,1.54,TOTAL PRODUCE GATESHEAD,399244,Commissioning & Asset Management,Children's & Education Services,103,Supplies and Services,504,Equipment,5023,Revenue,CATERING.FOOD & BEVERAGES
19-MAY-2021,7011488,1.54,TOTAL PRODUCE GATESHEAD,399244,Commissioning & Asset Management,Children's & Education Services,103,Supplies and Services,504,Equipment,5023,Revenue,CATERING.FOOD & BEVERAGES
19-MAY-2021,7011488,1.54,TOTAL PRODUCE GATESHEAD,399244,Commissioning & Asset Management,Children's & Education Services,103,Supplies and Services,504,Equipment,5023,Revenue,CATERING.FOOD & BEVERAGES
19-MAY-2021,7011488,1.54,TOTAL PRODUCE GATESHEAD,399244,Commissioning & Asset Management,Children's & Education Services,103,Supplies and Services,504,Equipment,5023,Revenue,CATERING.FOOD & BEVERAGES
19-MAY-2021,7011488,1.54,TOTAL PRODUCE GATESHEAD,399244,Commissioning & Asset Management,Children's & Education Services,103,Supplies and Services,504,Equipment,5023,Revenue,CATERING.FOOD & BEVERAGES
19-MAY-2021,7011488,1.54,TOTAL PRODUCE GATESHEAD,399244,"Environment, Housing & Leisure",Cultural & Related Services,104,Supplies and Services,504,Equipment,5023,Revenue,CATERING.FOOD & BEVERAGES
19-MAY-2021,7011488,1.55,TOTAL PRODUCE GATESHEAD,399244,Commissioning & Asset Management,Children's & Education Services,103,Supplies and Services,504,Equipment,5023,Revenue,CATERING.FOOD & BEVERAGES
19-MAY-2021,7011488,1.55,TOTAL PRODUCE GATESHEAD,399244,Commissioning & Asset Management,Children's & Education Services,103,Supplies and Services,504,Equipment,5023,Revenue,CATERING.FOOD & BEVERAGES
19-MAY-2021,7011488,1.55,TOTAL PRODUCE GATESHEAD,399244,Commissioning & Asset Management,Children's & Education Services,103,Supplies and Services,504,Equipment,5023,Revenue,CATERING.FOOD & BEVERAGES
19-MAY-2021,7011488,1.55,TOTAL PRODUCE GATESHEAD,399244,Commissioning & Asset Management,Children's & Education Services,103,Supplies and Services,504,Equipment,5023,Revenue,CATERING.FOOD & BEVERAGES
19-MAY-2021,7011488,1.55,TOTAL PRODUCE GATESHEAD,399244,Commissioning & Asset Management,Children's & Education Services,103,Supplies and Services,504,Equipment,5023,Revenue,CATERING.FOOD & BEVERAGES
19-MAY-2021,7011488,1.55,TOTAL PRODUCE GATESHEAD,399244,Commissioning & Asset Management,Children's & Education Services,103,Supplies and Services,504,Equipment,5023,Revenue,CATERING.FOOD & BEVERAGES
19-MAY-2021,7011488,1.55,TOTAL PRODUCE GATESHEAD,399244,Commissioning & Asset Management,Children's & Education Services,103,Supplies and Services,504,Equipment,5023,Revenue,CATERING.FOOD & BEVERAGES
19-MAY-2021,7011488,1.55,TOTAL PRODUCE GATESHEAD,399244,Commissioning & Asset Management,Children's & Education Services,103,Supplies and Services,504,Equipment,5023,Revenue,CATERING.FOOD & BEVERAGES
19-MAY-2021,7011488,1.55,TOTAL PRODUCE GATESHEAD,399244,Commissioning & Asset Management,Children's & Education Services,103,Supplies and Services,504,Equipment,5023,Revenue,CATERING.FOOD & BEVERAGES
19-MAY-2021,7011488,1.55,TOTAL PRODUCE GATESHEAD,399244,Commissioning & Asset Management,Children's & Education Services,103,Supplies and Services,504,Equipment,5023,Revenue,CATERING.FOOD & BEVERAGES
19-MAY-2021,7011488,1.55,TOTAL PRODUCE GATESHEAD,399244,Commissioning & Asset Management,Children's & Education Services,103,Supplies and Services,504,Equipment,5023,Revenue,CATERING.FOOD & BEVERAGES
19-MAY-2021,7011488,1.55,TOTAL PRODUCE GATESHEAD,399244,Commissioning & Asset Management,Children's & Education Services,103,Supplies and Services,504,Equipment,5023,Revenue,CATERING.FOOD & BEVERAGES
19-MAY-2021,7011488,1.55,TOTAL PRODUCE GATESHEAD,399244,Commissioning & Asset Management,Children's & Education Services,103,Supplies and Services,504,Equipment,5023,Revenue,CATERING.FOOD & BEVERAGES
19-MAY-2021,7011488,1.55,TOTAL PRODUCE GATESHEAD,399244,Commissioning & Asset Management,Children's & Education Services,103,Supplies and Services,504,Equipment,5023,Revenue,CATERING.FOOD & BEVERAGES
19-MAY-2021,7011488,1.55,TOTAL PRODUCE GATESHEAD,399244,Commissioning & Asset Management,Children's & Education Services,103,Supplies and Services,504,Equipment,5023,Revenue,CATERING.FOOD & BEVERAGES
19-MAY-2021,7011488,1.55,TOTAL PRODUCE GATESHEAD,399244,Commissioning & Asset Management,Children's & Education Services,103,Supplies and Services,504,Equipment,5023,Revenue,CATERING.FOOD & BEVERAGES
19-MAY-2021,7011488,1.55,TOTAL PRODUCE GATESHEAD,399244,Commissioning & Asset Management,Children's & Education Services,103,Supplies and Services,504,Equipment,5023,Revenue,CATERING.FOOD & BEVERAGES
19-MAY-2021,7011488,1.55,TOTAL PRODUCE GATESHEAD,399244,Commissioning & Asset Management,Children's & Education Services,103,Supplies and Services,504,Equipment,5023,Revenue,CATERING.FOOD & BEVERAGES
19-MAY-2021,7011488,1.55,TOTAL PRODUCE GATESHEAD,399244,Commissioning & Asset Management,Children's & Education Services,103,Supplies and Services,504,Equipment,5023,Revenue,CATERING.FOOD & BEVERAGES
19-MAY-2021,7011488,1.55,TOTAL PRODUCE GATESHEAD,399244,Commissioning & Asset Management,Children's & Education Services,103,Supplies and Services,504,Equipment,5023,Revenue,CATERING.FOOD & BEVERAGES
19-MAY-2021,7011488,1.55,TOTAL PRODUCE GATESHEAD,399244,Commissioning & Asset Management,Children's & Education Services,103,Supplies and Services,504,Equipment,5023,Revenue,CATERING.FOOD & BEVERAGES
19-MAY-2021,7011488,1.55,TOTAL PRODUCE GATESHEAD,399244,Commissioning & Asset Management,Children's & Education Services,103,Supplies and Services,504,Equipment,5023,Revenue,CATERING.FOOD & BEVERAGES
19-MAY-2021,7011488,1.55,TOTAL PRODUCE GATESHEAD,399244,Commissioning & Asset Management,Children's & Education Services,103,Supplies and Services,504,Equipment,5023,Revenue,CATERING.FOOD & BEVERAGES
19-MAY-2021,7011488,1.55,TOTAL PRODUCE GATESHEAD,399244,Commissioning & Asset Management,Children's & Education Services,103,Supplies and Services,504,Equipment,5023,Revenue,CATERING.FOOD & BEVERAGES
19-MAY-2021,7011488,1.55,TOTAL PRODUCE GATESHEAD,399244,Commissioning & Asset Management,Children's & Education Services,103,Supplies and Services,504,Equipment,5023,Revenue,CATERING.FOOD & BEVERAGES
19-MAY-2021,7011488,1.55,TOTAL PRODUCE GATESHEAD,399244,Commissioning & Asset Management,Children's & Education Services,103,Supplies and Services,504,Equipment,5023,Revenue,CATERING.FOOD & BEVERAGES
19-MAY-2021,7011488,1.55,TOTAL PRODUCE GATESHEAD,399244,Commissioning & Asset Management,Children's & Education Services,103,Supplies and Services,504,Equipment,5023,Revenue,CATERING.FOOD & BEVERAGES
19-MAY-2021,7011488,1.55,TOTAL PRODUCE GATESHEAD,399244,Commissioning & Asset Management,Children's & Education Services,103,Supplies and Services,504,Equipment,5023,Revenue,CATERING.FOOD & BEVERAGES
19-MAY-2021,7011488,1.55,TOTAL PRODUCE GATESHEAD,399244,Commissioning & Asset Management,Children's & Education Services,103,Supplies and Services,504,Equipment,5023,Revenue,CATERING.FOOD & BEVERAGES
19-MAY-2021,7011488,1.55,TOTAL PRODUCE GATESHEAD,399244,Commissioning & Asset Management,Children's & Education Services,103,Supplies and Services,504,Equipment,5023,Revenue,CATERING.FOOD & BEVERAGES
